Workbook

Sheet Kezdőlap
B2: B U D A P E S T
L22: 2022. szeptember
M24: ©2022 Healthy Streets Ltd. All Rights Reserved

Sheet Bevezető
B2: Bevezető
B5: Mi ez? | D5: Mikor használja?
B6: Ez az eszköz tervezők és mérnökök számára készült, azzal a céllal, hogy egy adott utcát az Egészséges Utcák 10 Indikátorának való megfelelőség szempontjából értékelhessenek. Az Egészséges Utcák 10 Indikátora képezi az Egészséges Utcák megközelítésnek alapját. Ezeket prioritásként kell kezelni utcák tervezése és fenntartása során, egyensúlyba hozva a társadalmi, gazdasági és környezeti fenntarthatóság szempontjait. Ezek az indikátorok közvetlen tapasztalatok alapján kerültek meghatározásra. | D6: Az eszköz alkalmazható az utca tervezésének korai szakaszában, valamint akkor is, ha már a végrehajtott változtatásokat kívánják értékelni, felülvizsgálni. Az eszköz szakemberek (tervezők, mérnökök) számára készült, nem a helyi közösségek eszköze az utcáik felméréséhez. A helyi közösségek számára szolgáló, egyszerű ellenőrzőlistához látogasson el a healthystreets.com/resources oldalra. Ez az eszköz meglévő utcákra és tervezett állapotok értékeléséhez egyaránt alkalmazható. Egy utca átalakítását megelőzően javasolt a meglévő kialakítását értékelni, majd az abból nyert információkat felhasználni az új terv kidolgozásánál, a magasabb Egészséges Utcák pontszám elérése érdekében. Az eszköz segítséget nyújthat a különböző tervváltozatok, alternatívák közötti döntés meghozatalában. Az eszközzel érdemes részletesen megvizsgálni egyetlen utca vagy akár önállóan egy hosszabb utcaszakasz tervezését. Az eszköz nem alkalmas a gyalogos, kerékpáros és közösségi közlekedési infrastruktúrák kapcsolatainak felmérésére. Nem alkalmas arra sem, hogy nagy területeken értékelje a területhasználattal, közterülethasználattal kapcsolatos szabályozásokat, gyakorlatokat. Ha a közlekedési módok közötti kapcsolatok, vagy a területhasználattal kapcsolatos kérdésekkel kíván foglalkozni, látogasson el a healthystreets.com/resources oldalra.
B7: Az Egészséges Utcák megközelítés a meglévő feltételekre, körülményekre épít, nem pedig egy rögzített végcélt, állapotot keres, és bármely utcában alkalmazható. Ez a megközelítés fokozatos változtatásokat igényel az utcák kialakításával és a közlekedéssel kapcsolatos döntéshozatali folyamatok minden aspektusában. Ha többet szeretne megtudni az Egészséges Utcák megközelítéséről és a annak alkalmazását elősegítő értékelő táblázatokról, látogasson el a healthstreets.com oldalra.
B9: Ez egy olyan technikai eszköz, amelynek alkalmazása igényli a közterület-tervezés és kapcsolódó mérnöki ismeretek megértését. Ha nem technikai eszközt keres az utca értékeléséhez, látogasson el a healthystreets.com/resources oldalra. Az értékelési eszköz 18 mérőszámból áll, amelyek mindegyikét pontozni kell az utca minősítéséhez. Az eredmények hozzájárulhatnak a tervek módosításához, fejlesztéséhez, közvetítve a döntéshozók számára, hogy mely tényezőket kell előnyben részesíteni a tervezési folyamatban.
B11: Hol alkalmazható? | D11: Mire lesz szüksége az értékeléshez?
B12: Ez az eszköz magyarországi (budapesti) használatra készült. Magyar tervezők, mérnökök, döntéshozók és népegészségügyi szakemberek bevonásával került kifejlesztésre a helyi viszonyok figyelembevételével. Az eszköz tesztelése tervezők és mérnökök bevonásával történt. Ezt az értékelő eszközt olyan utcákon kell alkalmazni, amelyeken gyaloglás és kerékpározás iránti igény mutatkozik. Azt méri, hogy az utcák mennyire élhetőek, biztonságosak és vonzóak valamennyi ember számára, séta, kerékpározás és szabadidő céljából. | D12: Amikor először használja ezt az eszközt, tanulmányozza át a Hogyan értékeljünk című útmutatót minden mérőszámra vonatkozóan. Hasznos lehet, ha elolvassa a Súgó részt is, amely választ adhat a felmerülő kérdésekre. Az útmutató figyelmen kívül hagyása, könnyen hibás pontszámot eredményezhet. Az értékelő táblázat helyes használata érdekében javasoljuk, hogy mielőtt elkezdené, vegyen részt egy rövid tanfolyamon az értékelő táblázat használatáról. A tanfolyammal kapcsolatos érdeklődését a training@healthystreets.com címre küldje.
D15: Meg kell határoznia a vizsgált utca határait, és minden értékelésben csak egy utcát vizsgálhat. Ha az értékelendő utca nagyon hosszú, akkor az kisebb szakaszokra bontható, de minden szakasznak tartalmaznia kell legalább egy csomópontot. Öt mérőszám szolgál kifejezetten a csomópontok értékelésére.
B16: Hogyan végezze el az értékelést? Először töltse ki a Projekt lapot az ott szereplő alapinformációk megadásával. Ezután a Pontozás lapon a Meglévő állapot oszlopban pontozzon minden mérőszámot 3, 2, 1 vagy 0 értékkel. Az összesített Egészséges Utcák pontszám létrehozásához minden mérőszámot pontozni kell. Minden pontszám mellé írja be a Megjegyzés rovatba a számítással kapcsolatos háttérinformációkat (pl. felhasznált adatok, vagy az utca adott pontja, ahol a problémát azonosították). Ez elengedhetetlen ahhoz, hogy értékelését mások is áttekinthessék és megérthessék, így biztosítva a pontszám objektivitását. Az 1-11-es mérőszámokat az utca leggyengébb pontjai alapján kell értékelni. A megjegyzés rovatban meg kell jelölni az általa leggyengébbnek vélt pontot. A 12-18-as mérőszámok értékelése az utca teljes hossza alapján történik. A pontozás alapját képező számított távolságokat és arányokat a Megjegyzés rovatban kell megadni.
D17: A meglévő utcák értékeléséhez szükséges lesz csúcsidőben mért és jövőre nézve becsült gépjárműforgalmi adatokra.
D18: Egy meglévő utcát nem lehet pontosan felmérni, értékelni anélkül, hogy személyesen meglátogatnánk, bejárnánk. A műholdfelvételek és online utcaképek nem alkalmasak az olyan mérőszámok értékeléséhez, mint a gyalogút és az úttest felületének minősége, és gyakran nem is aktuális állapotot mutatnak. Meglévő állapot felmérése esetén, a pontos távolságok megállapításához mérőeszközök használata szükséges. A közvilágítás értékeléséhez értelemszerűen sötétedés után kell bejárni a területet. A tervezett állapot értékeléséhez a rendelkezésre álló tervanyagokban szereplő információkat lehet használni. Amennyiben pontos adatok nem állnak rendelkezésre, úgy becslés alapján értékelhet, indokolással az egyes mérőszámokhoz tartozó Megjegyzés mezőben.
B21: Mit jelent az eredmény? | D21: Hogyan közölje az eredményeket?
B22: Az értékelés során maximum 100 pont szerezhető. Minden mérőszám súlyozásra kerül az Egészséges Utcák 10 Indikátorában betöltött szerepe alapján. | D22: Az Eredmények oldalon generált diagram és táblázat a legegyszerűbb módja az eredmények bemutatásának. Az Egészséges Utcák összpontszáma a legfontosabb mutatószám. Ha egy meglévő utcát hasonlít össze egy javasolt tervvel, akkor a pontszám változtatásra kell összpontosítani, nem a százalékos növekményre. Például, ha a meglévő utca 30 pontot ér, a tervezett kialakítás pedig 45 pontot, akkor a 15 pont növekményre kell összpontosítania, nem a relatív, 50 százalékos növekedésre. Ugyanis a pontszám növekmény kisebb mértékű, mint a százalékban kifejett növekedés. Ha egy meglévő utca 2 pontos, a javasolt elrendezés 3 pontos az adott mérőszámban, az szintén 50 százalékos növekedést jelent, de az 1 pontos pontszám növelésének előnyei sokkal kisebbek, mint az összességében 15 pontos növekedés. Ne vonja össze a különböző utcák vagy egy hosszabb utca különböző szakaszainak értékelésével kapott pontszámokat egy területre vonatkozó általános pontszám megadásával mivel ez elrejti az egyes utcaszakaszok erősségeit és gyengeségeit.
B23: Ez a táblázat megmutatja, hogy az egyes mérőszámokhoz tartozó pontszámok milyen mértékben számítanak bele az összpontszámba.
B24: Nagyobb súllyal bírnak azok a mérőszámok, amelyek jelentősebb hatást gyakorolnak az emberi egészségre és a gyaloglás, kerékpározás valamint az utcán töltött idő minőségére. Az Egészséges Utcák 10 Indikátorának mindegyike egyaránt hozzájárul az összpontszámhoz. Az Egészséges Utcák összpontszám általános, közérthető képet nyújt arról, hogy mennyire egészséges az utca kialakítása. A gépjárműforgalom nagysága és sebessége, valamint a gyalogos és kerékpárosok számára biztosított területek nagysága, kialakítása van a legnagyobb hatással az emberi egészségre, és ezért azoknak van legnagyobb szerepe az Egészséges Utcák pontszámban is.
B25: A megszerezhető Egészséges Utcák pontszámnak nincs alsó határa, elfogadhatósági küszöbértéke. A tervezőknek törekedniük kell a pontszám növelésére, amennyire csak tudják, a rendelkezésre álló erőforrások és a fizikai korlátok keretein belül. A 3 pontot elérő mérőszám jó teljesítményt jelent az egészséges és vonzó környezet megteremtésében minden gyalogos, kerékpáros és utcán tartózkodó ember számára. Amennyiben egy tervezett állapotra vonatkozó mérőszám 0 pontra értékelt, az komoly problémára figyelmeztet az utca tervezésében, amely az utcát veszélyessé, egészségtelenné vagy nehezen használhatóvá teszi egyesek számára. A mérés a tervezőket arra ösztönzi, hogy fontolják meg, hogyan lehet lecsökkenteni a nulla pontszám esélyét az utcák tervezése során.
B26: Ez az értékelő eszköz nem azt méri, hogy az utcára vonatkozó tervek megfelelnek-e a meglévő országos vagy települési előírásoknak, szabványoknak, hanem a legfontosabbak közül néhány olyan tényezőt mér, amelyek nagyban hozzájárulnak az egészséges környezet biztosításához a gyalogosan, kerékpárral stb. közlekedő emberek számára. Gyakran előfordul, hogy a meglévő utcák alacsony pontszámot kapnak az értékelés alapján, mert azokat még úgy tervezték, hogy a gépjárművek minél gyorsabb, könnyebb áthaladását részesítsék előnyben, ami gyakran hátrányos körülményekkel jár a gyalogosok, kerékpárosok és az utcán szabadidőt eltöltők számára.

Sheet Projekt
B2: Projekt
B5: Értékelő neve | I5: E-mail cím
B9: Utca neve | I9: Utca irányítószáma
B11: Németpróna
B13: Utca (közterület) neve az értékelt utcaszakasz kezdőpontjában | I13: Utca (közterület) neve az értékelt utcaszakasz végpontjában
B15: Németpróna | I15: Pöstyén
B17: Értékelés dátuma | I17: Felelős közútkezelő
B21: Utca típusa
B23: belvároson kívüli lakóút

Sheet Pontozás
A2: Pontozás
A5: Mérőszám | C5: Pontszám | G5: Hogyan értékeljünk? | H5: Meglévő állapot | I5: Megjegyzés | J5: Tervezett állapot | K5: Megjegyzés
C6: 3 | D6: 2 | E6: 1 | F6: 0
A7: 1 | B7: Gépjárművek megengedett sebessége | C7: A megengedett legnagyobb sebesség 20 km/óra (jellemzően Lakó-pihenő övezet). | D7: A megengedett legnagyobb sebesség 30 km/óra (jellemzően Tempó 30 zóna). | E7: A megengedett legnagyobb sebesség 40 km/óra. | F7: A megengedett legnagyobb sebesség 50 km/óra vagy annál nagyobb. | G7: Információ | H7: 0 | I7: Jelenleg a megengedett legnagyobb sebesség 50 km/óra az útszakaszon | J7: 3 | K7: A megengedett legnagyobb sebesség 20 km/óra lesz.
A8: 2 | B8: Gépjárműforgalom nagysága | C8: Csúcsidőszakban 199 vagy annál kevesebb jármű halad át két irányban. | D8: Csúcsidőszakban 200-499 jármű halad át két irányban. | E8: Csúcsidőszakban 500-999 jármű halad át két irányban. | F8: Csúcsidőszakban 1000 vagy annál több jármű halad át két irányban. | G8: Információ | H8: 3 | I8: Csúcsidőszakban is 10 gépkocsinál kisebb a forgalom egy óra alatt. | J8: 3 | K8: Az egyébként sem magas gépjárműforgalom tovább csökken
A9: 3 | B9: Kerékpáros közlekedés biztosítása a kereszteződésekben | C9: főút/gyűjtőút: Jelzőlámpás forgalomirányítású csomópont balra kanyarodást is biztosító kerékpárforgalmi létesítménnyel (irányhelyes kerékpársáv vagy kerékpárút). lakóút: A megengedett legnagyobb sebesség 20 km/óra. | D9: főút/gyűjtőút: Jelzőlámpás forgalomirányítású csomópont kerékpárforgalmi létesítménnyel (irányhelyes kerékpársáv vagy kerékpárút). lakóút: A megengedett legnagyobb sebesség 30 km/óra és a gépjármű kanyarodása R≤6 m. | E9: főút/gyűjtőút: Jelzőlámpás forgalomirányítás nélküli csomópont kerékpárforgalmi létesítménnyel (irányhelyes kerékpársáv vagy kerékpárút), vagy külön szintű kerékpáros keresztezés (aluljáró, felüljáró). lakóút: A megengedett legnagyobb sebesség 30 km/óra és a gépjármű kanyarodása R>6 m. | F9: főút/gyűjtőút: Nincsen kerékpárforgalmi létesítmény. lakóút: A megengedett legnagyobb sebesség 40 km/óra vagy annál nagyobb. | G9: Információ | H9: 0 | I9: Bár az Öv utca hivatalosan gyűjtőút, azonban a valóságban ezen a szakaszon lakóutcaként funkcionál. A gépjárműforgalom minimális és az utat kettészeli a Csömöri úti felüljáró, ahová a szintkülönbség miatt az Öv utca nem köt ki. Jelenleg a megengedett legnagyobb sebesség 50 km/óra az útszakaszon | J9: 3 | K9: A megengedett legnagyobb sebesség 20 km/óra lesz.
A10: 4 | B10: Gyalogos keresztezés az útvonalhoz csatlakozó parkolók bejáratában és kis forgalmú mellékutcák torkolatában | C10: főút/gyűjtőút: A gépjármű kanyarodása R≤12 m és a csomópont területén az útpálya küszöbszerűen megemelt. lakóút: A megengedett legnagyobb sebesség 30 km/óra vagy annál kisebb, a gépjármű kanyarodása R≤6 m és a csomópont területén az útpálya küszöbszerűen megemelt. | D10: főút/gyűjtőút: A gépjármű kanyarodása R≤12 m és a csomópontban a járda lesüllyesztve. lakóút: A gépjármű kanyarodása R≤6 m és a csomópont területén az útpálya küszöbszerűen megemelt. | E10: főút/gyűjtőút: A csomópont területén az útpálya küszöbszerűen megemelt, vagy a csomópontban a járda lesüllyesztve, R>12 m. lakóút: A gépjármű kanyarodása R≤6 m és a csomópontban a járda lesüllyesztve. | F10: főút/gyűjtőút: A csomópont területén nincs a gyalogos közlekedést támogató beavatkozás, vagy nem teljes értékű. lakóút: A csomópont területén nincs a gyalogos közlekedést támogató beavatkozás, vagy nem teljes értékű, vagy a gépjármű kanyarodása R>6 m. | G10: Információ | H10: 0 | I10: Bár az Öv utca hivatalosan gyűjtőút, azonban a valóságban ezen a szakaszon lakóutcaként funkcionál. A gépjárműforgalom minimális és az utat kettészeli a Csömöri úti felüljáró, ahová a szintkülönbség miatt az Öv utca nem köt ki. | J10: 3 | K10: A megengedett legnagyobb sebesség 20 km/óra lesz.
A11: 5 | B11: Gyalogos keresztezés biztosítása csomópontok közötti szakaszon (folyópálya szakasz) | C11: főút/gyűjtőút: A csomópontok közötti folyópálya szakasz hossza nem haladja meg a 100 m-t, vagy kijelölt gyalogosátkelő (zebra) vagy középsziget segíti az átkelést, legalább 100 m-ként. lakóút: Akadálymentes gyalogos átközlekedési lehetőség biztosított az egész utcaszakaszon. | D11: főút/gyűjtőút: Legfeljebb két forgalmi sávos a közúti keresztmetszet és kijelölt gyalogosátkelő (zebra) vagy középsziget segíti az átkelést. lakóút: Akadálymentes gyalogos átközlekedési lehetőség biztosított legalább 50 m-ként. | E11: főút/gyűjtőút: Legfeljebb két forgalmi sávos a közúti keresztmetszet és nincs átkelést segítő középsziget, vagy gyalogosátkelő (zebra). lakóút: Az utca legrosszabb helyzetű részén legalább egy kijelölt gyalogos átkelőhely (zebra) segíti az átközlekedést. | F11: főút/gyűjtőút: Több mint két forgalmi sávos a közúti keresztmetszet, vagy egy / két forgalmi sávos a közúti keresztmetszet és vízelvezető árok akadályozza az átközlekedést. lakóút: Az utca legrosszabb helyzetű részén nincs kijelölt gyalogos átkelőhely (zebra). | G11: Információ | H11: 0 | I11: Bár az Öv utca hivatalosan gyűjtőút, azonban a valóságban ezen a szakaszon lakóutcaként funkcionál. A gépjárműforgalom minimális és az utat kettészeli a Csömöri úti felüljáró, ahová a szintkülönbség miatt az Öv utca nem köt ki. A Klímakert oldalán nincs járda és gyalogos átkelőhely sincs | J11: 3 | K11: A shared space miatt az akadálymentes közlekedés megoldott
A12: 6 | B12: Gyalogos keresztezés biztosítása csomópontokban | C12: főút/gyűjtőút: Kijelölt gyalogos átkelőhely (zebra) jelzőlámpás forgalomirányítással, a mellékúti gyalogos keresztezés küszöb-szerűen megemelt. lakóút: A teljes csomóponti terület a járda szintjére van emelve. | D12: főút/gyűjtőút: Kijelölt gyalogos átkelőhely (zebra) jelzőlámpás forgalomirányítással. lakóút: A megengedett legnagyobb sebesség 20 km/óra és minden gyalogos keresztezési lehetőség akadálymentes (a járda lesüllyesztve). | E12: főút/gyűjtőút: Kijelölt gyalogos átkelőhely (zebra) legfeljebb kettő forgalmi sávot keresztez jelzőlámpás forgalomirányítás nélkül. lakóút: A megengedett legnagyobb sebesség 30 km/óra vagy annál nagyobb és minden gyalogos keresztezési lehetőség akadálymentes (a járda lesüllyesztve). | F12: főút/gyűjtőút: Nincsen kijelölt gyalogos átkelőhely (zebra), vagy kettőnél több forgalmi sávot keresztez kijelölt gyalogos átkelőhely jelzőlámpás forgalomirányítás nélkül. lakóút: Nincsen akadálymentesítve a csomópont. | G12: Információ | H12: 1 | I12: A megengedett legnagyobb sebesség 50 km/óra | J12: 3 | K12: A csomóponti terület a járda szintjére van emelve
A13: 7 | B13: Akadálymentesség, esélyegyenlőség biztosítása | C13: A teljes csomópont rendelkezik taktilis elemekkel (jelző kő és rávezető kő). | D13: A teljes csomópont csak jelző kövekkel rendelkezik. | E13: A csomópontnak csak egy része rendelkezik jelző kövekkel. | F13: A csomópont nem rendelkezik jelző kövekkel. | G13: Információ | H13: 0 | I13: Pöstyén utca - Öv utcai csomópontok nem rendelkeznek jelző kövekkel | J13: 3 | K13: A csomópontoknál taktilis jelző kövek és a teljes út mentén vezető sáv
A14: 8 | B14: A járda felületének minősége | C14: Az utca legrosszabb helyzetű részén sima, nem csúszós felület van. | D14: Az utca legrosszabb helyzetű részén néhány kisebb hiba van. | E14: Az utca legrosszabb helyzetű részén több kisebb hiba van. | F14: Az utca legrosszabb helyzetű részén legalább egy nagyobb hiba van (szintkülönbség 15 mm vagy több). | G14: Információ | H14: 0 | I14: A járda hiányos, lépcsőt és emelkedőt is tartalmaz. | J14: 3 | K14: A shared space felületeken a gyalogosok az egész útszakasz felületét a többi közlekedővel azonos jogokkal használhatják
A15: 9 | B15: Gyalogos közlekedés helyigénye | C15: főút/gyűjtőút: A gyalogosjárda szélessége a közterület mindkét oldalán legalább 3 m. belvárosi lakóút: A gyalogosjárda szélessége a közterület mindkét oldalán legalább 3 m. belvároson kívüli lakóút: Lakó-pihenő övezet önálló járdafelület nélkül (megengedett legnagyobb sebesség 20 km/óra). | D15: főút/gyűjtőút: A gyalogosjárda szélessége a közterület mindkét oldalán 2,25-2,99 m. belvárosi lakóút: A gyalogosjárda szélessége legalább a közterület egyik oldalán 2,25m, a másik oldalán 1,5m. belvároson kívüli lakóút: A gyalogosjárda szélessége legalább a közterület egyik oldalán 2,25 m, a másik oldalán 1,5 m. | E15: főút/gyűjtőút: A gyalogosjárda szélessége a közterület mindkét oldalán 1,5-2,24 m. belvárosi lakóút: A gyalogosjárda szélessége a közterület mindkét oldalán legalább 1,5m. belvároson kívüli lakóút: A gyalogosjárda szélessége a közterület mindkét oldalán legalább 1,5 m. | F15: A gyalogosjárda szélessége nem éri el az 1,5 m-t a közterület egyik vagy mindkét oldalán. | G15: Információ | H15: 0 | I15: Bár az Öv utca hivatalosan gyűjtőút, azonban a valóságban ezen a szakaszon lakóutcaként funkcionál. A gépjárműforgalom minimális és az utat kettészeli a Csömöri úti felüljáró, ahová a szintkülönbség miatt az Öv utca nem köt ki. Miskolci út-Cinkótai utca között: járda csak az útszakasz egy részén van az egyik oldalon, ott is szűk Cinkótai út-Öv utca közötti szakaszon: A járda szűk, a burkolata változó minőségű, egyes szakaszokon hiányzik | J15: 3 | K15: A területen shared space lett kialakítva
A16: 10 | B16: Útburkolat minősége | C16: Az utca legrosszabb helyzetű részén egyenletes és sima, csúszásmentes felület található. | D16: Az utca legrosszabb helyzetű részén egyenletes néhány kisebb hiba található. | E16: Az utca legrosszabb helyzetű részén egyenletes több kisebb hiba található. | F16: Az utca legrosszabb helyzetű részén legalább egy nagyobb hiba van (szintkülönbség 20 mm vagy több). | G16: Információ | H16: 0 | I16: Az aszfaltozott útfelület felület rossz minőségű, össze-vissza toldozott-foltozott, kátyús. | J16: 3 | K16: Érintett terület új, térkő burkolatot kap.
A17: 11 | B17: Kerékpározás helyigénye | C17: főút/gyűjtőút: A kerékpárforgalmi létesítmény mellett biztonsági sávok találhatók. A kerékpárforgalmi létesítmény szélessége mindkét irányban eléri az előzésre alkalmas értéket (irányhelyes kerékpársáv 2 m, a kerékpárút 4,05 m). lakóút: A megengedett legnagyobb sebesség 20 km/óra, vagy egyirányú utca esetén a kerékpárosok számára a kétirányú közlekedés megengedett. | D17: főút/gyűjtőút: A kerékpárforgalmi létesítmény mellett biztonsági sávok találhatók. A kerékpárforgalmi létesítmény szélessége legalább az egyik irányban előzésre alkalmas szélességű (a szélesebb irányhelyes kerékpársáv 2 m, a kerékpárút 3,30 m). lakóút: A megengedett legnagyobb sebesség 30 km/óra, és a gépjárművek,kerékpárok által közösen használt útpálya szélessége irányonként legfeljebb 3 m. | E17: főút/gyűjtőút: A kerékpárforgalmi létesítmény mellett biztonsági sávok találhatók. A kerékpárforgalmi létesítmény szélessége eléri a minimális értéket (irányhelyes kerékpársáv 1,25 m, kerékpárút 2,55 m). lakóút: A megengedett legnagyobb sebesség 40 km/óra, és a gépjárművek, kerékpárok által közösen használt útpálya szélessége irányonként legfeljebb 3 m. | F17: főút/gyűjtőút: Nincsen kerékpárforgalmi létesítmény, vagy a biztonsági sávokat figyelembe véve nem éri el a minimális szélességet (irányhelyes kerékpársáv 1,25 m, kerékpárút 2,55 m). lakóút: A megengedett legnagyobb sebesség 40 km/óra és a gépjárművek, kerékpárok által közösen használt útpálya szélessége irányonként nagyobb mint 3 m, vagy a megengedett legnagyobb sebesség 50 km/óra vagy annál magasabb. | G17: Információ | H17: 0 | I17: Bár az Öv utca hivatalosan gyűjtőút, azonban a valóságban ezen a szakaszon lakóutcaként funkcionál. A gépjárműforgalom minimális és az utat kettészeli a Csömöri úti felüljáró, ahová a szintkülönbség miatt az Öv utca nem köt ki. A legnagyobb megengedett sebesség 50km/óra | J17: 3 | K17: A megengedett legnagyobb sebesség 20 km/óra és a kerékpárosok számára megengedett a kétirányú közlekedés
A18: 12 | B18: Közterületi kerékpártárolók | C18: főút/gyűjtőút: Az útszakasz minden 100 méterére legalább 9 kerékpártámasz jut. belvárosi lakóút: Az útszakasz minden 100 méterére legalább 6 kerékpártámasz jut. belvároson kívüli lakóút: Az útszakasz minden 100 méterére legalább 3 kerékpártámasz jut. | D18: főút/gyűjtőút: Az útszakasz minden 100 méterére 6-8 kerékpártámasz jut. belvárosi lakóút: Az útszakasz minden 100 méterére 4-5 kerékpártámasz jut. belvároson kívüli lakóút: Az útszakasz minden 100 méterére legalább 2 kerékpártámasz jut. | E18: főút/gyűjtőút: Az útszakasz minden 100 méterére legalább 3-5 kerékpártámasz jut. belvárosi lakóút: Az útszakasz minden 100 méterére 2-3 kerékpártámasz jut. belvároson kívüli lakóút: Az útszakasz minden 100 méterére legalább 1 kerékpártámasz jut. | F18: főút/gyűjtőút: Az útszakasz minden 100 méterére kevesebb, mint 3 kerékpártámasz jut. belvárosi lakóút: Az útszakasz minden 100 méterére kevesebb, mint 2 kerékpártámasz jut. belvároson kívüli lakóút: Az útszakasz minden 100 méterére kevesebb mint 1 kerékpártámasz jut. | G18: Információ | H18: 0 | I18: Bár az Öv utca hivatalosan gyűjtőút, azonban a valóságban ezen a szakaszon lakóutcaként funkcionál. A gépjárműforgalom minimális és az utat kettészeli a Csömöri úti felüljáró, ahová a szintkülönbség miatt az Öv utca nem köt ki. Nincs közterületi kerékpártároló | J18: 3 | K18: Összesen 680 fm útszakaszta 24 db kerékpártámasz telepítése
A19: 13 | B19: Ülőhelyek | C19: Az útszakasz teljes hosszát tekintve a leülési lehetőségek közötti legnagyobb távolság: <50 m | D19: Az útszakasz teljes hosszát tekintve a leülési lehetőségek közötti legnagyobb távolság: 50- 199 méter | E19: Az útszakasz teljes hosszát tekintve a leülési lehetőségek közötti legnagyobb távolság: 200- 399 méter | F19: Az útszakasz teljes hosszát tekintve a leülési lehetőségek közötti legnagyobb távolság: 400 méter, vagy több | G19: Információ | H19: 0 | I19: Jelenleg nincsek közterületi bútorok | J19: 3 | K19: Összesen 520 fm útszakaszra 23+8+3 db ülőhely elhelyezése. Legnagyobb távolság kisebb, mint 50 m
A20: 14 | B20: Közvilágítás | C20: Az útszakasz teljes hosszát tekintve az út mindkét oldalán a járdákat folyamatos megvilágítás éri. | D20: Az útszakasz teljes hosszát tekintve az út mindkét oldalán a járdákat szakaszos megvilágítás éri. | E20: Az útszakasz teljes hosszát tekintve az út egyik oldalán a járdát szakaszos megvilágítás éri, a másik oldali járdát nem éri megvilágítás. | F20: Az útszakasz teljes hosszát tekintve az út egyik oldalán lévő járdát sem éri megvilágítás. | G20: Információ | H20: 1 | I20: Jelenleg van, de hiányos közvilágítás | J20: 3 | K20: A hiányzó elemeket pótoljuk és a teljes útszakaszon.
A21: 15 | B21: Fák | C21: Az útszakasz teljes hosszán fasor található: <14 m esetén 1 oldali > 14 m esetén 2 oldali VAGY a gyalogos-kerékpáros felületekre vetítve <75 m2-enként 1 db fa található | D21: Az útszakasz teljes hosszának legalább 50%-án fasor <14 m esetén egy oldali > 14 m esetén két oldali VAGY a gyalogos-kerékpáros felületekre vetítve 75-150 m2-enként 1 db fa található | E21: Az útszakasz teljes hosszának kevesebb, mint 50%-án található fasor <14 m esetén egy oldali >14 m esetén két oldali VAGY a gyalogos-kerékpáros felületekre vetítve >150 m2-enként 1 db fa található | F21: Nincs beszámítható mennyiségű fa/fasor | G21: Információ | H21: 2 | I21: A gyalogos-kerékpáros felületekre vetítve 75 m2-enként 0,98 db fa található A gyalogos-kerékpáros felületekre vetítve 150 m2-enként 1,95 db fa található | J21: 3 | K21: A gyalogos-kerékpáros felületekre vetítve 75 m2-enként 1,83 db fa található
A22: 16 | B22: Zöldinfrastruktúra | C22: főút/gyűjtőút: Az útszakasz minden 100 méterére legalább 3 zöldinfrastruktúra elem jut. lakó út: A zöldfelületek aránya meghaladja a 10%-ot | D22: főút/gyűjtőút: Az útszakasz minden 100 méterére legalább 2 zöldinfrastruktúra elem jut. lakó út: A zöldfelületek aránya 5-10%-os | E22: főút/gyűjtőút: Az útszakasz minden 100 méterére legalább 1 zöldinfrastruktúra elem jut. lakó út: A zöldfelületek aránya 5%-nál kisebb | F22: Az útszakasz területén nincs beszámítható zöldfelület. | G22: Információ | H22: 3 | I22: Bár az Öv utca hivatalosan gyűjtőút, azonban a valóságban nem funkcionál gyűjtőútként ezen a szakaszon, a gépjármű forgalom minimális és az utat kettészeli a felüljáró, ami csak egy mellék föld szervízúton érhető el. teljes terület: 15341,55 m2 zöldterület nagysága: 8139,42 m2 zöldterület aránya: 53,05 % | J22: 3 | K22: teljes terület: 15341,55 m2 zöldterület nagysága: 9307,52 m2 zöldterület aránya: 60,67 %
A23: 17 | B23: Ivókutak | C23: Az útszakasz teljes hosszát tekintve az ivókutak közötti legnagyobb távolság: belvárosban: 150 m belvároson kívül: 200 m | D23: Az útszakasz teljes hosszát tekintve az ivókutak közötti legnagyobb távolság: belvárosban: 200 m belvároson kívül: 250 m | E23: Az útszakasz teljes hosszát tekintve az ivókutak közötti legnagyobb távolság: belvárosban: 250 m belvároson kívül: 300 m | F23: Az útszakasz teljes hosszát tekintve az ivókutak közötti legnagyobb távolság: belvárosban: >250 m belvároson kívül: >300 m | G23: Információ | H23: 0 | I23: Jelenleg nincs ivókút a közelben | J23: 3 | K23: Telepítünk 4 db ivókutat
A24: 18 | B24: Csapadékvíz elvezetése, hasznosítása | C24: belvárosban: Az útszakaszon keletkező csapadékvizek mennyiségének minimum 40 %-a visszatartásra kerül, a helyben tartása, másodlagos hasznosítása biztosított. belvároson kívül: Az útszakaszon keletkező csapadékvizek mennyiségének minimum 60 %-a visszatartásra kerül, a helyben tartása, másodlagos hasznosítása biztosított. | D24: belvárosban: Az útszakaszon keletkező csapadékvizek mennyiségének 30-39 %-a visszatartásra kerül, a helyben tartása, másodlagos hasznosítása biztosított. belvároson kívül: Az útszakaszon keletkező csapadékvizek mennyiségének 45-59 %-a visszatartásra kerül, a helyben tartása, másodlagos hasznosítása biztosított. | E24: belvárosban: Az útszakaszon keletkező csapadékvizek mennyiségének 20-29 %-a visszatartásra kerül, a helyben tartása, másodlagos hasznosítása biztosított. belvároson kívül: Az útszakaszon keletkező csapadékvizek mennyiségének 30-44 %-a visszatartásra kerül, a helyben tartása, másodlagos hasznosítása biztosított. | F24: belvárosban: Az útszakaszon keletkező csapadékvizek mennyiségének kevesebb, mint 20 %-a kerül visszatartásra, másodlagos hasznosításra. belvároson kívül: Az útszakaszon keletkező csapadékvizek mennyiségének kevesebb, mint 30 %-a kerül visszatartásra, másodlagos hasznosításra. | G24: Információ | H24: 2 | I24: Jelenlegi visszatartás, helyben tartás és másodlagos hasznosítása százalékos mértéke az alapállapotra vonatkoztatva 59% | J24: 3 | K24: Tervezett visszatartás, helyben tartás és másodlagos hasznosítása százalékos mértéke az alapállapotra vonatkoztatva 100%

Sheet Eredmények
B2: Egészséges Utcák pontszám
B5: Utca neve
B6: =Projekt!B11 -> Németpróna
B8: Utca (közterület) neve az értékelt utcaszakasz kezdőpontjában
B9: =Projekt!B15 -> Németpróna
B11: Utca (közterület) neve az értékelt utcaszakasz végpontjában
B12: =Projekt!I15 -> Pöstyén
H16: Meglévő állapot pontszám | I16: Tervezett állapot pontszám
G17: Egészséges Utcák pontszám | H17: =IF(Calculator!C24=0, Calculator!C23, "") -> 29.44444444 | I17: =IF(Calculator!C49=0, Calculator!C48, "") -> 100
G18: Mindenki otthon érzi magát | H18: =IF(Calculator!C24=0, Calculator!E23,"") -> 22.22222222 | I18: =IF(Calculator!C49=0, Calculator!E48, "") -> 100
G19: Könnyű átkelni az úttesten | H19: =IF(Calculator!C24=0, Calculator!F23, "") -> 22.22222222 | I19: =IF(Calculator!C49=0, Calculator!F48, "") -> 100
G20: Vannak árnyékos és védett helyek | H20: =IF(Calculator!C24=0, Calculator!G23,"") -> 66.66666667 | I20: =IF(Calculator!C49=0, Calculator!G48, "") -> 100
G21: Van hol megállni és megpihenni | H21: =IF(Calculator!C24=0, Calculator!H23, "") -> 0 | I21: =IF(Calculator!C49=0, Calculator!H48, "") -> 100
G22: Nincs túl nagy zaj | H22: =IF(Calculator!C24=0, Calculator!I23, "") -> 33.33333333 | I22: =IF(Calculator!C49=0, Calculator!I48, "") -> 100
G23: Az emberek szívesen sétálnak és kerékpároznak | H23: =IF(Calculator!C24=0, Calculator!J23, "") -> 22.22222222 | I23: =IF(Calculator!C49=0, Calculator!J48, "") -> 100
G24: Az emberek biztonságban érzik magukat | H24: =IF(Calculator!C24=0, Calculator!K23, "") -> 13.88888889 | I24: =IF(Calculator!C49=0, Calculator!K48, "") -> 100
G25: Van mit látni és csinálni | H25: =IF(Calculator!C24=0, Calculator!L23, "") -> 41.66666667 | I25: =IF(Calculator!C49=0, Calculator!L48, "") -> 100
G26: Az emberek jól érzik magukat | H26: =IF(Calculator!C24=0, Calculator!M23, "") -> 22.22222222 | I26: =IF(Calculator!C49=0, Calculator!M48, "") -> 100
G27: Tiszta a levegő | H27: =IF(Calculator!C24=0, Calculator!N23, "") -> 50 | I27: =IF(Calculator!C49=0, Calculator!N48, "") -> 100

Sheet Calculator (hidden)
B2: Question | C2: Existing Layout Score | E2: Everyone feels welcome | F2: Easy to cross | G2: Shade and shelter | H2: Places to stop and rest | I2: Not too noisy | J2: People choose to walk and cycle | K2: People feel safe | L2: Things to see and do | M2: People feel relaxed | N2: Clean air
B3: =1 -> 1 | C3: =IF(Pontozás!H7<>"", Pontozás!H7, "-") -> 0 | E3: =C3 -> 0 | F3: =C3 -> 0 | I3: =C3 -> 0 | J3: =C3 -> 0 | K3: =C3 -> 0 | M3: =C3 -> 0 | N3: =C3 -> 0
B4: =B3+1 -> 2 | C4: =IF(Pontozás!H8<>"", Pontozás!H8, "-") -> 3 | E4: 3 | F4: =C4 -> 3 | I4: =C4 -> 3 | J4: 3 | K4: 3 | M4: 3 | N4: =C4 -> 3
B5: =B4+1 -> 3 | C5: =IF(Pontozás!H9<>"", Pontozás!H9, "-") -> 0 | E5: 0 | J5: 0 | K5: 0 | M5: 0
B6: 4 | C6: =IF(Pontozás!H10<>"", Pontozás!H10, "-") -> 0 | E6: =C6 -> 0 | F6: =C6 -> 0 | J6: =C6 -> 0 | K6: =C6 -> 0 | M6: =C6 -> 0
B7: 5 | C7: =IF(Pontozás!H11<>"", Pontozás!H11, "-") -> 0 | E7: =C7 -> 0 | F7: =C7 -> 0 | J7: =C7 -> 0 | K7: 0 | M7: =C7 -> 0
B8: 6 | C8: =IF(Pontozás!H12<>"", Pontozás!H12, "-") -> 1 | E8: =C8 -> 1 | F8: =C8 -> 1 | J8: =C8 -> 1 | K8: 1 | M8: =C8 -> 1
B9: 7 | C9: =IF(Pontozás!H13<>"", Pontozás!H13, "-") -> 0 | E9: =C9 -> 0 | F9: =C9 -> 0 | J9: =C9 -> 0 | K9: 0 | M9: =C9 -> 0
B10: 8 | C10: =IF(Pontozás!H14<>"", Pontozás!H14, "-") -> 0 | E10: 0 | J10: 0 | M10: 0
B11: 9 | C11: =IF(Pontozás!H15<>"", Pontozás!H15, "-") -> 0 | E11: 0 | H11: =C11 -> 0 | J11: 0 | K11: =C11 -> 0 | M11: 0
B12: 10 | C12: =IF(Pontozás!H16<>"", Pontozás!H16, "-") -> 0 | E12: =C12 -> 0 | I12: =C12 -> 0 | J12: =C12 -> 0 | K12: =C12 -> 0 | M12: =C12 -> 0
B13: 11 | C13: =IF(Pontozás!H17<>"", Pontozás!H17, "-") -> 0 | E13: =C13 -> 0 | H13: =C13 -> 0 | J13: 0 | K13: =C13 -> 0 | M13: 0
B14: 12 | C14: =IF(Pontozás!H18<>"", Pontozás!H18, "-") -> 0 | E14: =C14 -> 0 | H14: =C14 -> 0 | J14: =C14 -> 0 | M14: =C14 -> 0
B15: 13 | C15: =IF(Pontozás!H19<>"", Pontozás!H19, "-") -> 0 | E15: =C15 -> 0 | H15: =C15 -> 0 | J15: =C15 -> 0 | L15: =C15 -> 0 | M15: =C15 -> 0
B16: 14 | C16: =IF(Pontozás!H20<>"", Pontozás!H20, "-") -> 1 | E16: 1 | J16: 1 | K16: =C16 -> 1 | M16: 1
B17: 15 | C17: =IF(Pontozás!H21<>"", Pontozás!H21, "-") -> 2 | E17: 2 | G17: =C17 -> 2 | J17: 2 | L17: =C17 -> 2 | M17: 2
B18: 16 | C18: =IF(Pontozás!H22<>"", Pontozás!H22, "-") -> 3 | E18: 3 | J18: 3 | L18: =C18 -> 3 | M18: 3
B19: 17 | C19: =IF(Pontozás!H23<>"", Pontozás!H23, "-") -> 0 | E19: =C19 -> 0 | H19: =C19 -> 0 | J19: 0 | K19: =C19 -> 0 | L19: =C19 -> 0 | M19: 0
B20: 18 | C20: =IF(Pontozás!H24<>"", Pontozás!H24, "-") -> 2 | E20: 2 | J20: 2 | M20: =C20 -> 2
B22: Total | C22: =SUM(E22:N22) -> 58 | E22: =SUM(E3:E20) -> 12 | F22: 4 | G22: 2 | H22: 0 | I22: 3 | J22: 12 | K22: 5 | L22: 5 | M22: 12 | N22: 3
B23: Healthy Score | C23: =SUM(E23:N23)/10 -> 29.44444444 | E23: =(100/54)*E22 -> 22.22222222 | F23: =(100/18)*F22 -> 22.22222222 | G23: =(100/3)*G22 -> 66.66666667 | H23: =(100/15)*H22 -> 0 | I23: =(100/9)*I22 -> 33.33333333 | J23: =(100/54)*J22 -> 22.22222222 | K23: =(100/36)*K22 -> 13.88888889 | L23: =(100/12)*L22 -> 41.66666667 | M23: =(100/54)*M22 -> 22.22222222 | N23: =(100/6)*N22 -> 50
C24: =COUNTIF(C3:C20, "-") -> 0
B27: Question | C27: Proposed Layout Score | E27: Everyone feels welcome | F27: Easy to cross | G27: Shade and shelter | H27: Places to stop and rest | I27: Not too noisy | J27: People choose to walk and cycle | K27: People feel safe | L27: Things to see and do | M27: People feel relaxed | N27: Clean air
B28: =1 -> 1 | C28: =IF(Pontozás!J7<>"", Pontozás!J7, "-") -> 3 | E28: =C28 -> 3 | F28: =C28 -> 3 | I28: =C28 -> 3 | J28: =C28 -> 3 | K28: =C28 -> 3 | M28: =C28 -> 3 | N28: =C28 -> 3
B29: =B28+1 -> 2 | C29: =IF(Pontozás!J8<>"", Pontozás!J8, "-") -> 3 | E29: 3 | F29: =C29 -> 3 | I29: =C29 -> 3 | J29: 3 | K29: 3 | M29: 3 | N29: =C29 -> 3
B30: =B29+1 -> 3 | C30: =IF(Pontozás!J9<>"", Pontozás!J9, "-") -> 3 | E30: 3 | J30: 3 | K30: 3 | M30: 3
B31: 4 | C31: =IF(Pontozás!J10<>"", Pontozás!J10, "-") -> 3 | E31: =C31 -> 3 | F31: =C31 -> 3 | J31: =C31 -> 3 | K31: =C31 -> 3 | M31: =C31 -> 3
B32: 5 | C32: =IF(Pontozás!J11<>"", Pontozás!J11, "-") -> 3 | E32: =C32 -> 3 | F32: =C32 -> 3 | J32: =C32 -> 3 | K32: 3 | M32: =C32 -> 3
B33: 6 | C33: =IF(Pontozás!J12<>"", Pontozás!J12, "-") -> 3 | E33: =C33 -> 3 | F33: =C33 -> 3 | J33: =C33 -> 3 | K33: 3 | M33: =C33 -> 3
B34: 7 | C34: =IF(Pontozás!J13<>"", Pontozás!J13, "-") -> 3 | E34: =C34 -> 3 | F34: =C34 -> 3 | J34: =C34 -> 3 | K34: 3 | M34: =C34 -> 3
B35: 8 | C35: =IF(Pontozás!J14<>"", Pontozás!J14, "-") -> 3 | E35: 3 | J35: 3 | M35: 3
B36: =B35+1 -> 9 | C36: =IF(Pontozás!J15<>"", Pontozás!J15, "-") -> 3 | E36: 3 | H36: =C36 -> 3 | J36: 3 | K36: =C36 -> 3 | M36: 3
B37: 10 | C37: =IF(Pontozás!J16<>"", Pontozás!J16, "-") -> 3 | E37: =C37 -> 3 | I37: =C37 -> 3 | J37: =C37 -> 3 | K37: =C37 -> 3 | M37: =C37 -> 3
B38: 11 | C38: =IF(Pontozás!J17<>"", Pontozás!J17, "-") -> 3 | E38: 3 | H38: =C38 -> 3 | J38: 3 | K38: =C38 -> 3 | M38: 3
B39: 12 | C39: =IF(Pontozás!J18<>"", Pontozás!J18, "-") -> 3 | E39: =C39 -> 3 | H39: =C39 -> 3 | J39: =C39 -> 3 | M39: =C39 -> 3
B40: 13 | C40: =IF(Pontozás!J19<>"", Pontozás!J19, "-") -> 3 | E40: =C40 -> 3 | H40: =C40 -> 3 | J40: =C40 -> 3 | L40: =C40 -> 3 | M40: =C40 -> 3
B41: 14 | C41: =IF(Pontozás!J20<>"", Pontozás!J20, "-") -> 3 | E41: 3 | J41: 3 | K41: =C41 -> 3 | M41: 3
B42: 15 | C42: =IF(Pontozás!J21<>"", Pontozás!J21, "-") -> 3 | E42: 3 | G42: =C42 -> 3 | J42: 3 | L42: =C42 -> 3 | M42: 3
B43: 16 | C43: =IF(Pontozás!J22<>"", Pontozás!J22, "-") -> 3 | E43: 3 | J43: 3 | L43: =C43 -> 3 | M43: 3
B44: 17 | C44: =IF(Pontozás!J23<>"", Pontozás!J23, "-") -> 3 | E44: 3 | H44: =C44 -> 3 | J44: 3 | K44: =C44 -> 3 | L44: =C44 -> 3 | M44: 3
B45: 18 | C45: =IF(Pontozás!J24<>"", Pontozás!J24, "-") -> 3 | E45: 3 | J45: 3 | M45: =C45 -> 3
B47: Total | C47: =SUM(E47:O47) -> 261 | E47: =SUM(E28:E45) -> 54 | F47: 18 | G47: 3 | H47: 15 | I47: 9 | J47: 54 | K47: 36 | L47: 12 | M47: 54 | N47: 6
B48: Healthy Score | C48: =SUM(E48:N48)/10 -> 100 | E48: =(100/54)*E47 -> 100 | F48: =(100/18)*F47 -> 100 | G48: =(100/3)*G47 -> 100 | H48: =(100/15)*H47 -> 100 | I48: =(100/9)*I47 -> 100 | J48: =(100/54)*J47 -> 100 | K48: =(100/36)*K47 -> 100 | L48: =(100/12)*L47 -> 100 | M48: =(100/54)*M47 -> 100 | N48: =(100/6)*N47 -> 100
C49: =COUNTIF(C28:C45, "-") -> 0

Sheet Chart data (hidden)
B1: Existing Layout Score | C1: Sector Weight | D1: % of 360 | E1: Start Angle | F1: Finish Angle | G1: 0 | H1: =G1+1 -> 1 | I1: 2 | J1: 3 | K1: 4 | L1: 5 | M1: 6 | N1: 7 | O1: 8 | P1: 9 | Q1: 10 | R1: 11 | S1: 12 | T1: 13 | U1: 14 | V1: 15 | W1: 16 | X1: 17 | Y1: 18 | Z1: 19 | AA1: 20 | AB1: 21 | AC1: 22 | AD1: 23 | AE1: 24 | AF1: 25 | AG1: 26 | AH1: 27 | AI1: 28 | AJ1: 29 | AK1: 30 | AL1: 31 | AM1: 32 | AN1: 33 | AO1: 34 | AP1: 35 | AQ1: 36 | AR1: 37 | AS1: 38 | AT1: 39 | AU1: 40 | AV1: 41 | AW1: 42 | AX1: 43 | AY1: 44 | AZ1: 45 | BA1: 46 | BB1: 47 | BC1: 48 | BD1: 49 | BE1: 50 | BF1: 51 | BG1: 52 | BH1: 53 | BI1: 54 | BJ1: 55 | BK1: 56 | BL1: 57 | BM1: 58 | BN1: 59 | BO1: 60 | BP1: 61 | BQ1: 62 | BR1: 63 | BS1: 64 | BT1: =BS1+1 -> 65 | BU1: 66 | BV1: 67 | BW1: 68 | BX1: 69 | BY1: 70 | BZ1: 71 | CA1: 72 | CB1: 73 | CC1: 74 | CD1: 75 | CE1: 76 | CF1: 77 | CG1: 78 | CH1: 79 | CI1: 80 | CJ1: 81 | CK1: 82 | CL1: 83 | CM1: 84 | CN1: 85 | CO1: 86 | CP1: 87 | CQ1: 88 | CR1: 89 | CS1: 90 | CT1: 91 | CU1: 92 | CV1: 93 | CW1: 94 | CX1: 95 | CY1: 96 | CZ1: 97 | DA1: 98 | DB1: 99 | DC1: 100 | DD1: 101 | DE1: 102 | DF1: 103 | DG1: 104 | DH1: 105 | DI1: 106 | DJ1: 107 | DK1: 108 | DL1: 109 | DM1: 110 | DN1: 111 | DO1: 112 | DP1: 113 | DQ1: 114 | DR1: 115 | DS1: 116 | DT1: 117 | DU1: 118 | DV1: 119 | DW1: 120 | DX1: 121 | DY1: 122 | DZ1: 123 | EA1: 124 | EB1: 125 | EC1: 126 | ED1: 127 | EE1: 128 | EF1: =EE1+1 -> 129 | EG1: 130 | EH1: 131 | EI1: 132 | EJ1: 133 | EK1: 134 | EL1: 135 | EM1: 136 | EN1: 137 | EO1: 138 | EP1: 139 | EQ1: 140 | ER1: 141 | ES1: 142 | ET1: 143 | EU1: 144 | EV1: 145 | EW1: 146 | EX1: 147 | EY1: 148 | EZ1: 149 | FA1: 150 | FB1: 151 | FC1: 152 | FD1: 153 | FE1: 154 | FF1: 155 | FG1: 156 | FH1: 157 | FI1: 158 | FJ1: 159 | FK1: 160 | FL1: 161 | FM1: 162 | FN1: 163 | FO1: 164 | FP1: 165 | FQ1: 166 | FR1: 167 | FS1: 168 | FT1: 169 | FU1: 170 | FV1: 171 | FW1: 172 | FX1: 173 | FY1: 174 | FZ1: 175 | GA1: 176 | GB1: 177 | GC1: 178 | GD1: 179 | GE1: 180 | GF1: 181 | GG1: 182 | GH1: 183 | GI1: 184 | GJ1: 185 | GK1: 186 | GL1: 187 | GM1: 188 | GN1: 189 | GO1: 190 | GP1: 191 | GQ1: 192 | GR1: =GQ1+1 -> 193 | GS1: 194 | GT1: 195 | GU1: 196 | GV1: 197 | GW1: 198 | GX1: 199 | GY1: 200 | GZ1: 201 | HA1: 202 | HB1: 203 | HC1: 204 | HD1: 205 | HE1: 206 | HF1: 207 | HG1: 208 | HH1: 209 | HI1: 210 | HJ1: 211 | HK1: 212 | HL1: 213 | HM1: 214 | HN1: 215 | HO1: 216 | HP1: 217 | HQ1: 218 | HR1: 219 | HS1: 220 | HT1: 221 | HU1: 222 | HV1: 223 | HW1: 224 | HX1: 225 | HY1: 226 | HZ1: 227 | IA1: 228 | IB1: 229 | IC1: 230 | ID1: 231 | IE1: 232 | IF1: 233 | IG1: 234 | IH1: 235 | II1: 236 | IJ1: 237 | IK1: 238 | IL1: 239 | IM1: 240 | IN1: 241 | IO1: 242 | IP1: 243 | IQ1: 244 | IR1: 245 | IS1: 246 | IT1: 247 | IU1: 248 | IV1: 249 | IW1: 250 | IX1: 251 | IY1: 252 | IZ1: 253 | JA1: 254 | JB1: 255 | JC1: 256 | JD1: =JC1+1 -> 257 | JE1: 258 | JF1: 259 | JG1: 260 | JH1: 261 | JI1: 262 | JJ1: 263 | JK1: 264 | JL1: 265 | JM1: 266 | JN1: 267 | JO1: 268 | JP1: 269 | JQ1: 270 | JR1: 271 | JS1: 272 | JT1: 273 | JU1: 274 | JV1: 275 | JW1: 276 | JX1: 277 | JY1: 278 | JZ1: 279 | KA1: 280 | KB1: 281 | KC1: 282 | KD1: 283 | KE1: 284 | KF1: 285 | KG1: 286 | KH1: 287 | KI1: 288 | KJ1: 289 | KK1: 290 | KL1: 291 | KM1: 292 | KN1: 293 | KO1: 294 | KP1: 295 | KQ1: 296 | KR1: 297 | KS1: 298 | KT1: 299 | KU1: 300 | KV1: 301 | KW1: 302 | KX1: 303 | KY1: 304 | KZ1: 305 | LA1: 306 | LB1: 307 | LC1: 308 | LD1: 309 | LE1: 310 | LF1: 311 | LG1: 312 | LH1: 313 | LI1: 314 | LJ1: 315 | LK1: 316 | LL1: 317 | LM1: 318 | LN1: 319 | LO1: 320 | LP1: =LO1+1 -> 321 | LQ1: 322 | LR1: 323 | LS1: 324 | LT1: 325 | LU1: 326 | LV1: 327 | LW1: 328 | LX1: 329 | LY1: 330 | LZ1: 331 | MA1: 332 | MB1: 333 | MC1: 334 | MD1: 335 | ME1: 336 | MF1: 337 | MG1: 338 | MH1: 339 | MI1: 340 | MJ1: 341 | MK1: 342 | ML1: 343 | MM1: 344 | MN1: 345 | MO1: 346 | MP1: 347 | MQ1: 348 | MR1: 349 | MS1: 350 | MT1: 351 | MU1: 352 | MV1: 353 | MW1: 354 | MX1: 355 | MY1: 356 | MZ1: 357 | NA1: 358 | NB1: 359 | NC1: 360 | ND1: 361
A2: Healthy Streets Score | B2: =IF(Calculator!C24=0, Calculator!C23, 0) -> 29.44444444
A3: Healthy Streets Score | B3: =IF(Calculator!C49=0, Calculator!C48, 0) -> 100
A4: Everyone feels welcome | B4: =IF(Calculator!C24=0, Calculator!E23, 0) -> 22.22222222 | C4: 1 | D4: =C4/SUM($C$4:$C$23) -> 0.05 | E4: 0 | F4: =360 * SUM(D$4:D4) -> 18 | G4: =IF(AND(G$1>=$E4,G$1<=$F4),$B4,0) -> 22.22222222 | H4: 22.22222222 | I4: 22.22222222 | J4: 22.22222222 | K4: 22.22222222 | L4: 22.22222222 | M4: 22.22222222 | N4: 22.22222222 | O4: 22.22222222 | P4: 22.22222222 | Q4: 22.22222222 | R4: 22.22222222 | S4: 22.22222222 | T4: 22.22222222 | U4: 22.22222222 | V4: 22.22222222 | W4: 22.22222222 | X4: 22.22222222 | Y4: 22.22222222 | Z4: 0 | AA4: 0 | AB4: 0 | AC4: 0 | AD4: 0 | AE4: 0 | AF4: 0 | AG4: 0 | AH4: 0 | AI4: 0 | AJ4: 0 | AK4: 0 | AL4: 0 | AM4: 0 | AN4: 0 | AO4: 0 | AP4: 0 | AQ4: 0 | AR4: 0 | AS4: 0 | AT4: 0 | AU4: 0 | AV4: 0 | AW4: 0 | AX4: 0 | AY4: 0 | AZ4: 0 | BA4: 0 | BB4: 0 | BC4: 0 | BD4: 0 | BE4: 0 | BF4: 0 | BG4: 0 | BH4: 0 | BI4: 0 | BJ4: 0 | BK4: 0 | BL4: 0 | BM4: 0 | BN4: 0 | BO4: 0 | BP4: 0 | BQ4: 0 | BR4: 0 | BS4: =IF(AND(BS$1>=$E4,BS$1<=$F4),$B4,0) -> 0 | BT4: 0 | BU4: 0 | BV4: 0 | BW4: 0 | BX4: 0 | BY4: 0 | BZ4: 0 | CA4: 0 | CB4: 0 | CC4: 0 | CD4: 0 | CE4: 0 | CF4: 0 | CG4: 0 | CH4: 0 | CI4: 0 | CJ4: 0 | CK4: 0 | CL4: 0 | CM4: 0 | CN4: 0 | CO4: 0 | CP4: 0 | CQ4: 0 | CR4: 0 | CS4: 0 | CT4: 0 | CU4: 0 | CV4: 0 | CW4: 0 | CX4: 0 | CY4: 0 | CZ4: 0 | DA4: 0 | DB4: 0 | DC4: 0 | DD4: 0 | DE4: 0 | DF4: 0 | DG4: 0 | DH4: 0 | DI4: 0 | DJ4: 0 | DK4: 0 | DL4: 0 | DM4: 0 | DN4: 0 | DO4: 0 | DP4: 0 | DQ4: 0 | DR4: 0 | DS4: 0 | DT4: 0 | DU4: 0 | DV4: 0 | DW4: 0 | DX4: 0 | DY4: 0 | DZ4: 0 | EA4: 0 | EB4: 0 | EC4: 0 | ED4: 0 | EE4: =IF(AND(EE$1>=$E4,EE$1<=$F4),$B4,0) -> 0 | EF4: 0 | EG4: 0 | EH4: 0 | EI4: 0 | EJ4: 0 | EK4: 0 | EL4: 0 | EM4: 0 | EN4: 0 | EO4: 0 | EP4: 0 | EQ4: 0 | ER4: 0 | ES4: 0 | ET4: 0 | EU4: 0 | EV4: 0 | EW4: 0 | EX4: 0 | EY4: 0 | EZ4: 0 | FA4: 0 | FB4: 0 | FC4: 0 | FD4: 0 | FE4: 0 | FF4: 0 | FG4: 0 | FH4: 0 | FI4: 0 | FJ4: 0 | FK4: 0 | FL4: 0 | FM4: 0 | FN4: 0 | FO4: 0 | FP4: 0 | FQ4: 0 | FR4: 0 | FS4: 0 | FT4: 0 | FU4: 0 | FV4: 0 | FW4: 0 | FX4: 0 | FY4: 0 | FZ4: 0 | GA4: 0 | GB4: 0 | GC4: 0 | GD4: 0 | GE4: 0 | GF4: 0 | GG4: 0 | GH4: 0 | GI4: 0 | GJ4: 0 | GK4: 0 | GL4: 0 | GM4: 0 | GN4: 0 | GO4: 0 | GP4: 0 | GQ4: =IF(AND(GQ$1>=$E4,GQ$1<=$F4),$B4,0) -> 0 | GR4: 0 | GS4: 0 | GT4: 0 | GU4: 0 | GV4: 0 | GW4: 0 | GX4: 0 | GY4: 0 | GZ4: 0 | HA4: 0 | HB4: 0 | HC4: 0 | HD4: 0 | HE4: 0 | HF4: 0 | HG4: 0 | HH4: 0 | HI4: 0 | HJ4: 0 | HK4: 0 | HL4: 0 | HM4: 0 | HN4: 0 | HO4: 0 | HP4: 0 | HQ4: 0 | HR4: 0 | HS4: 0 | HT4: 0 | HU4: 0 | HV4: 0 | HW4: 0 | HX4: 0 | HY4: 0 | HZ4: 0 | IA4: 0 | IB4: 0 | IC4: 0 | ID4: 0 | IE4: 0 | IF4: 0 | IG4: 0 | IH4: 0 | II4: 0 | IJ4: 0 | IK4: 0 | IL4: 0 | IM4: 0 | IN4: 0 | IO4: 0 | IP4: 0 | IQ4: 0 | IR4: 0 | IS4: 0 | IT4: 0 | IU4: 0 | IV4: 0 | IW4: 0 | IX4: 0 | IY4: 0 | IZ4: 0 | JA4: 0 | JB4: 0 | JC4: =IF(AND(JC$1>=$E4,JC$1<=$F4),$B4,0) -> 0 | JD4: 0 | JE4: 0 | JF4: 0 | JG4: 0 | JH4: 0 | JI4: 0 | JJ4: 0 | JK4: 0 | JL4: 0 | JM4: 0 | JN4: 0 | JO4: 0 | JP4: 0 | JQ4: 0 | JR4: 0 | JS4: 0 | JT4: 0 | JU4: 0 | JV4: 0 | JW4: 0 | JX4: 0 | JY4: 0 | JZ4: 0 | KA4: 0 | KB4: 0 | KC4: 0 | KD4: 0 | KE4: 0 | KF4: 0 | KG4: 0 | KH4: 0 | KI4: 0 | KJ4: 0 | KK4: 0 | KL4: 0 | KM4: 0 | KN4: 0 | KO4: 0 | KP4: 0 | KQ4: 0 | KR4: 0 | KS4: 0 | KT4: 0 | KU4: 0 | KV4: 0 | KW4: 0 | KX4: 0 | KY4: 0 | KZ4: 0 | LA4: 0 | LB4: 0 | LC4: 0 | LD4: 0 | LE4: 0 | LF4: 0 | LG4: 0 | LH4: 0 | LI4: 0 | LJ4: 0 | LK4: 0 | LL4: 0 | LM4: 0 | LN4: 0 | LO4: =IF(AND(LO$1>=$E4,LO$1<=$F4),$B4,0) -> 0 | LP4: 0 | LQ4: 0 | LR4: 0 | LS4: 0 | LT4: 0 | LU4: 0 | LV4: 0 | LW4: 0 | LX4: 0 | LY4: 0 | LZ4: 0 | MA4: 0 | MB4: 0 | MC4: 0 | MD4: 0 | ME4: 0 | MF4: 0 | MG4: 0 | MH4: 0 | MI4: 0 | MJ4: 0 | MK4: 0 | ML4: 0 | MM4: 0 | MN4: 0 | MO4: 0 | MP4: 0 | MQ4: 0 | MR4: 0 | MS4: 0 | MT4: 0 | MU4: 0 | MV4: 0 | MW4: 0 | MX4: 0 | MY4: 0 | MZ4: 0 | NA4: 0 | NB4: 0 | NC4: 0 | ND4: 0
A5: Everyone feels welcome | B5: =IF(Calculator!C49=0, Calculator!E48, 0) -> 100 | C5: 1 | D5: =C5/SUM($C$4:$C$23) -> 0.05 | E5: =F4 -> 18 | F5: =360 * SUM(D$4:D5) -> 36 | G5: =IF(AND(G$1>=$E5,G$1<=$F5),$B5,0) -> 0 | H5: 0 | I5: 0 | J5: 0 | K5: 0 | L5: 0 | M5: 0 | N5: 0 | O5: 0 | P5: 0 | Q5: =IF(AND(Q$1>=$E5,Q$1<=$F5),$B5,0) -> 0 | R5: 0 | S5: 0 | T5: 0 | U5: 0 | V5: 0 | W5: 0 | X5: 0 | Y5: 100 | Z5: 100 | AA5: =IF(AND(AA$1>=$E5,AA$1<=$F5),$B5,0) -> 100 | AB5: 100 | AC5: 100 | AD5: 100 | AE5: 100 | AF5: 100 | AG5: 100 | AH5: 100 | AI5: 100 | AJ5: 100 | AK5: =IF(AND(AK$1>=$E5,AK$1<=$F5),$B5,0) -> 100 | AL5: 100 | AM5: 100 | AN5: 100 | AO5: 100 | AP5: 100 | AQ5: 100 | AR5: 0 | AS5: 0 | AT5: 0 | AU5: =IF(AND(AU$1>=$E5,AU$1<=$F5),$B5,0) -> 0 | AV5: 0 | AW5: 0 | AX5: 0 | AY5: 0 | AZ5: 0 | BA5: 0 | BB5: 0 | BC5: 0 | BD5: 0 | BE5: =IF(AND(BE$1>=$E5,BE$1<=$F5),$B5,0) -> 0 | BF5: 0 | BG5: 0 | BH5: 0 | BI5: 0 | BJ5: 0 | BK5: 0 | BL5: 0 | BM5: 0 | BN5: 0 | BO5: =IF(AND(BO$1>=$E5,BO$1<=$F5),$B5,0) -> 0 | BP5: 0 | BQ5: 0 | BR5: 0 | BS5: 0 | BT5: 0 | BU5: 0 | BV5: 0 | BW5: 0 | BX5: 0 | BY5: =IF(AND(BY$1>=$E5,BY$1<=$F5),$B5,0) -> 0 | BZ5: 0 | CA5: 0 | CB5: 0 | CC5: 0 | CD5: 0 | CE5: 0 | CF5: 0 | CG5: 0 | CH5: 0 | CI5: =IF(AND(CI$1>=$E5,CI$1<=$F5),$B5,0) -> 0 | CJ5: 0 | CK5: 0 | CL5: 0 | CM5: 0 | CN5: 0 | CO5: 0 | CP5: 0 | CQ5: 0 | CR5: 0 | CS5: =IF(AND(CS$1>=$E5,CS$1<=$F5),$B5,0) -> 0 | CT5: 0 | CU5: 0 | CV5: 0 | CW5: 0 | CX5: 0 | CY5: 0 | CZ5: 0 | DA5: 0 | DB5: 0 | DC5: =IF(AND(DC$1>=$E5,DC$1<=$F5),$B5,0) -> 0 | DD5: 0 | DE5: 0 | DF5: 0 | DG5: 0 | DH5: 0 | DI5: 0 | DJ5: 0 | DK5: 0 | DL5: 0 | DM5: =IF(AND(DM$1>=$E5,DM$1<=$F5),$B5,0) -> 0 | DN5: 0 | DO5: 0 | DP5: 0 | DQ5: 0 | DR5: 0 | DS5: 0 | DT5: 0 | DU5: 0 | DV5: 0 | DW5: =IF(AND(DW$1>=$E5,DW$1<=$F5),$B5,0) -> 0 | DX5: 0 | DY5: 0 | DZ5: 0 | EA5: 0 | EB5: 0 | EC5: 0 | ED5: 0 | EE5: 0 | EF5: 0 | EG5: =IF(AND(EG$1>=$E5,EG$1<=$F5),$B5,0) -> 0 | EH5: 0 | EI5: 0 | EJ5: 0 | EK5: 0 | EL5: 0 | EM5: 0 | EN5: 0 | EO5: 0 | EP5: 0 | EQ5: =IF(AND(EQ$1>=$E5,EQ$1<=$F5),$B5,0) -> 0 | ER5: 0 | ES5: 0 | ET5: 0 | EU5: 0 | EV5: 0 | EW5: 0 | EX5: 0 | EY5: 0 | EZ5: 0 | FA5: =IF(AND(FA$1>=$E5,FA$1<=$F5),$B5,0) -> 0 | FB5: 0 | FC5: 0 | FD5: 0 | FE5: 0 | FF5: 0 | FG5: 0 | FH5: 0 | FI5: 0 | FJ5: 0 | FK5: =IF(AND(FK$1>=$E5,FK$1<=$F5),$B5,0) -> 0 | FL5: 0 | FM5: 0 | FN5: 0 | FO5: 0 | FP5: 0 | FQ5: 0 | FR5: 0 | FS5: 0 | FT5: 0 | FU5: =IF(AND(FU$1>=$E5,FU$1<=$F5),$B5,0) -> 0 | FV5: 0 | FW5: 0 | FX5: 0 | FY5: 0 | FZ5: 0 | GA5: 0 | GB5: 0 | GC5: 0 | GD5: 0 | GE5: =IF(AND(GE$1>=$E5,GE$1<=$F5),$B5,0) -> 0 | GF5: 0 | GG5: 0 | GH5: 0 | GI5: 0 | GJ5: 0 | GK5: 0 | GL5: 0 | GM5: 0 | GN5: 0 | GO5: =IF(AND(GO$1>=$E5,GO$1<=$F5),$B5,0) -> 0 | GP5: 0 | GQ5: 0 | GR5: 0 | GS5: 0 | GT5: 0 | GU5: 0 | GV5: 0 | GW5: 0 | GX5: 0 | GY5: =IF(AND(GY$1>=$E5,GY$1<=$F5),$B5,0) -> 0 | GZ5: 0 | HA5: 0 | HB5: 0 | HC5: 0 | HD5: 0 | HE5: 0 | HF5: 0 | HG5: 0 | HH5: 0 | HI5: =IF(AND(HI$1>=$E5,HI$1<=$F5),$B5,0) -> 0 | HJ5: 0 | HK5: 0 | HL5: 0 | HM5: 0 | HN5: 0 | HO5: 0 | HP5: 0 | HQ5: 0 | HR5: 0 | HS5: =IF(AND(HS$1>=$E5,HS$1<=$F5),$B5,0) -> 0 | HT5: 0 | HU5: 0 | HV5: 0 | HW5: 0 | HX5: 0 | HY5: 0 | HZ5: 0 | IA5: 0 | IB5: 0 | IC5: =IF(AND(IC$1>=$E5,IC$1<=$F5),$B5,0) -> 0 | ID5: 0 | IE5: 0 | IF5: 0 | IG5: 0 | IH5: 0 | II5: 0 | IJ5: 0 | IK5: 0 | IL5: 0 | IM5: =IF(AND(IM$1>=$E5,IM$1<=$F5),$B5,0) -> 0 | IN5: 0 | IO5: 0 | IP5: 0 | IQ5: 0 | IR5: 0 | IS5: 0 | IT5: 0 | IU5: 0 | IV5: 0 | IW5: =IF(AND(IW$1>=$E5,IW$1<=$F5),$B5,0) -> 0 | IX5: 0 | IY5: 0 | IZ5: 0 | JA5: 0 | JB5: 0 | JC5: 0 | JD5: 0 | JE5: 0 | JF5: 0 | JG5: =IF(AND(JG$1>=$E5,JG$1<=$F5),$B5,0) -> 0 | JH5: 0 | JI5: 0 | JJ5: 0 | JK5: 0 | JL5: 0 | JM5: 0 | JN5: 0 | JO5: 0 | JP5: 0 | JQ5: =IF(AND(JQ$1>=$E5,JQ$1<=$F5),$B5,0) -> 0 | JR5: 0 | JS5: 0 | JT5: 0 | JU5: 0 | JV5: 0 | JW5: 0 | JX5: 0 | JY5: 0 | JZ5: 0 | KA5: =IF(AND(KA$1>=$E5,KA$1<=$F5),$B5,0) -> 0 | KB5: 0 | KC5: 0 | KD5: 0 | KE5: 0 | KF5: 0 | KG5: 0 | KH5: 0 | KI5: 0 | KJ5: 0 | KK5: =IF(AND(KK$1>=$E5,KK$1<=$F5),$B5,0) -> 0 | KL5: 0 | KM5: 0 | KN5: 0 | KO5: 0 | KP5: 0 | KQ5: 0 | KR5: 0 | KS5: 0 | KT5: 0 | KU5: =IF(AND(KU$1>=$E5,KU$1<=$F5),$B5,0) -> 0 | KV5: 0 | KW5: 0 | KX5: 0 | KY5: 0 | KZ5: 0 | LA5: 0 | LB5: 0 | LC5: 0 | LD5: 0 | LE5: =IF(AND(LE$1>=$E5,LE$1<=$F5),$B5,0) -> 0 | LF5: 0 | LG5: 0 | LH5: 0 | LI5: 0 | LJ5: 0 | LK5: 0 | LL5: 0 | LM5: 0 | LN5: 0 | LO5: =IF(AND(LO$1>=$E5,LO$1<=$F5),$B5,0) -> 0 | LP5: 0 | LQ5: 0 | LR5: 0 | LS5: 0 | LT5: 0 | LU5: 0 | LV5: 0 | LW5: 0 | LX5: 0 | LY5: =IF(AND(LY$1>=$E5,LY$1<=$F5),$B5,0) -> 0 | LZ5: 0 | MA5: 0 | MB5: 0 | MC5: 0 | MD5: 0 | ME5: 0 | MF5: 0 | MG5: 0 | MH5: 0 | MI5: =IF(AND(MI$1>=$E5,MI$1<=$F5),$B5,0) -> 0 | MJ5: 0 | MK5: 0 | ML5: 0 | MM5: 0 | MN5: 0 | MO5: 0 | MP5: 0 | MQ5: 0 | MR5: 0 | MS5: =IF(AND(MS$1>=$E5,MS$1<=$F5),$B5,0) -> 0 | MT5: 0 | MU5: 0 | MV5: 0 | MW5: 0 | MX5: 0 | MY5: 0 | MZ5: 0 | NA5: 0 | NB5: 0 | NC5: 0 | ND5: 0
A6: Easy to cross | B6: =IF(Calculator!C24=0, Calculator!F23, 0) -> 22.22222222 | C6: 1 | D6: 0.05 | E6: =F5 -> 36 | F6: =360 * SUM(D$4:D6) -> 54 | G6: =IF(AND(G$1>=$E6,G$1<=$F6),$B6,0) -> 0 | H6: 0 | I6: 0 | J6: 0 | K6: 0 | L6: 0 | M6: 0 | N6: 0 | O6: 0 | P6: 0 | Q6: 0 | R6: 0 | S6: 0 | T6: 0 | U6: 0 | V6: 0 | W6: 0 | X6: 0 | Y6: 0 | Z6: 0 | AA6: 0 | AB6: 0 | AC6: 0 | AD6: 0 | AE6: 0 | AF6: 0 | AG6: 0 | AH6: 0 | AI6: 0 | AJ6: 0 | AK6: 0 | AL6: 0 | AM6: 0 | AN6: 0 | AO6: 0 | AP6: 0 | AQ6: 22.22222222 | AR6: 22.22222222 | AS6: 22.22222222 | AT6: 22.22222222 | AU6: 22.22222222 | AV6: 22.22222222 | AW6: 22.22222222 | AX6: 22.22222222 | AY6: 22.22222222 | AZ6: 22.22222222 | BA6: 22.22222222 | BB6: 22.22222222 | BC6: 22.22222222 | BD6: 22.22222222 | BE6: 22.22222222 | BF6: 22.22222222 | BG6: 22.22222222 | BH6: 22.22222222 | BI6: 22.22222222 | BJ6: 0 | BK6: 0 | BL6: 0 | BM6: 0 | BN6: 0 | BO6: 0 | BP6: 0 | BQ6: 0 | BR6: 0 | BS6: 0 | BT6: 0 | BU6: 0 | BV6: 0 | BW6: 0 | BX6: 0 | BY6: 0 | BZ6: 0 | CA6: 0 | CB6: 0 | CC6: 0 | CD6: 0 | CE6: 0 | CF6: 0 | CG6: 0 | CH6: 0 | CI6: 0 | CJ6: 0 | CK6: 0 | CL6: 0 | CM6: 0 | CN6: 0 | CO6: 0 | CP6: 0 | CQ6: 0 | CR6: 0 | CS6: 0 | CT6: 0 | CU6: 0 | CV6: 0 | CW6: 0 | CX6: 0 | CY6: 0 | CZ6: 0 | DA6: 0 | DB6: 0 | DC6: 0 | DD6: 0 | DE6: 0 | DF6: 0 | DG6: 0 | DH6: 0 | DI6: 0 | DJ6: 0 | DK6: 0 | DL6: 0 | DM6: 0 | DN6: 0 | DO6: 0 | DP6: 0 | DQ6: 0 | DR6: 0 | DS6: 0 | DT6: 0 | DU6: 0 | DV6: 0 | DW6: 0 | DX6: 0 | DY6: 0 | DZ6: 0 | EA6: 0 | EB6: 0 | EC6: 0 | ED6: 0 | EE6: 0 | EF6: 0 | EG6: 0 | EH6: 0 | EI6: 0 | EJ6: 0 | EK6: 0 | EL6: 0 | EM6: 0 | EN6: 0 | EO6: 0 | EP6: 0 | EQ6: 0 | ER6: 0 | ES6: 0 | ET6: 0 | EU6: 0 | EV6: 0 | EW6: 0 | EX6: 0 | EY6: 0 | EZ6: 0 | FA6: 0 | FB6: 0 | FC6: 0 | FD6: 0 | FE6: 0 | FF6: 0 | FG6: 0 | FH6: 0 | FI6: 0 | FJ6: 0 | FK6: 0 | FL6: 0 | FM6: 0 | FN6: 0 | FO6: 0 | FP6: 0 | FQ6: 0 | FR6: 0 | FS6: 0 | FT6: 0 | FU6: 0 | FV6: 0 | FW6: 0 | FX6: 0 | FY6: 0 | FZ6: 0 | GA6: 0 | GB6: 0 | GC6: 0 | GD6: 0 | GE6: 0 | GF6: 0 | GG6: 0 | GH6: 0 | GI6: 0 | GJ6: 0 | GK6: 0 | GL6: 0 | GM6: 0 | GN6: 0 | GO6: 0 | GP6: 0 | GQ6: 0 | GR6: 0 | GS6: 0 | GT6: 0 | GU6: 0 | GV6: 0 | GW6: 0 | GX6: 0 | GY6: 0 | GZ6: 0 | HA6: 0 | HB6: 0 | HC6: 0 | HD6: 0 | HE6: 0 | HF6: 0 | HG6: 0 | HH6: 0 | HI6: 0 | HJ6: 0 | HK6: 0 | HL6: 0 | HM6: 0 | HN6: 0 | HO6: 0 | HP6: 0 | HQ6: 0 | HR6: 0 | HS6: 0 | HT6: 0 | HU6: 0 | HV6: 0 | HW6: 0 | HX6: 0 | HY6: 0 | HZ6: 0 | IA6: 0 | IB6: 0 | IC6: 0 | ID6: 0 | IE6: 0 | IF6: 0 | IG6: 0 | IH6: 0 | II6: 0 | IJ6: 0 | IK6: 0 | IL6: 0 | IM6: 0 | IN6: 0 | IO6: 0 | IP6: 0 | IQ6: 0 | IR6: 0 | IS6: 0 | IT6: 0 | IU6: 0 | IV6: 0 | IW6: 0 | IX6: 0 | IY6: 0 | IZ6: 0 | JA6: 0 | JB6: 0 | JC6: 0 | JD6: 0 | JE6: 0 | JF6: 0 | JG6: 0 | JH6: 0 | JI6: 0 | JJ6: 0 | JK6: 0 | JL6: 0 | JM6: 0 | JN6: 0 | JO6: 0 | JP6: 0 | JQ6: 0 | JR6: 0 | JS6: 0 | JT6: 0 | JU6: 0 | JV6: 0 | JW6: 0 | JX6: 0 | JY6: 0 | JZ6: 0 | KA6: 0 | KB6: 0 | KC6: 0 | KD6: 0 | KE6: 0 | KF6: 0 | KG6: 0 | KH6: 0 | KI6: 0 | KJ6: 0 | KK6: 0 | KL6: 0 | KM6: 0 | KN6: 0 | KO6: 0 | KP6: 0 | KQ6: 0 | KR6: 0 | KS6: 0 | KT6: 0 | KU6: 0 | KV6: 0 | KW6: 0 | KX6: 0 | KY6: 0 | KZ6: 0 | LA6: 0 | LB6: 0 | LC6: 0 | LD6: 0 | LE6: 0 | LF6: 0 | LG6: 0 | LH6: 0 | LI6: 0 | LJ6: 0 | LK6: 0 | LL6: 0 | LM6: 0 | LN6: 0 | LO6: 0 | LP6: 0 | LQ6: 0 | LR6: 0 | LS6: 0 | LT6: 0 | LU6: 0 | LV6: 0 | LW6: 0 | LX6: 0 | LY6: 0 | LZ6: 0 | MA6: 0 | MB6: 0 | MC6: 0 | MD6: 0 | ME6: 0 | MF6: 0 | MG6: 0 | MH6: 0 | MI6: 0 | MJ6: 0 | MK6: 0 | ML6: 0 | MM6: 0 | MN6: 0 | MO6: 0 | MP6: 0 | MQ6: 0 | MR6: 0 | MS6: 0 | MT6: 0 | MU6: 0 | MV6: 0 | MW6: 0 | MX6: 0 | MY6: 0 | MZ6: 0 | NA6: 0 | NB6: 0 | NC6: 0 | ND6: 0
A7: Easy to cross | B7: =IF(Calculator!C49=0, Calculator!F48, 0) -> 100 | C7: 1 | D7: 0.05 | E7: 54 | F7: =360 * SUM(D$4:D7) -> 72 | G7: 0 | H7: 0 | I7: 0 | J7: 0 | K7: 0 | L7: 0 | M7: 0 | N7: 0 | O7: 0 | P7: 0 | Q7: 0 | R7: 0 | S7: 0 | T7: 0 | U7: 0 | V7: 0 | W7: 0 | X7: 0 | Y7: 0 | Z7: 0 | AA7: 0 | AB7: 0 | AC7: 0 | AD7: 0 | AE7: 0 | AF7: 0 | AG7: 0 | AH7: 0 | AI7: 0 | AJ7: 0 | AK7: 0 | AL7: 0 | AM7: 0 | AN7: 0 | AO7: 0 | AP7: 0 | AQ7: 0 | AR7: 0 | AS7: 0 | AT7: 0 | AU7: 0 | AV7: 0 | AW7: 0 | AX7: 0 | AY7: 0 | AZ7: 0 | BA7: 0 | BB7: 0 | BC7: 0 | BD7: 0 | BE7: 0 | BF7: 0 | BG7: 0 | BH7: 0 | BI7: 100 | BJ7: 100 | BK7: 100 | BL7: 100 | BM7: 100 | BN7: 100 | BO7: 100 | BP7: 100 | BQ7: 100 | BR7: 100 | BS7: 100 | BT7: 100 | BU7: 100 | BV7: 100 | BW7: 100 | BX7: 100 | BY7: 100 | BZ7: 100 | CA7: 100 | CB7: 0 | CC7: 0 | CD7: 0 | CE7: 0 | CF7: 0 | CG7: 0 | CH7: 0 | CI7: 0 | CJ7: 0 | CK7: 0 | CL7: 0 | CM7: 0 | CN7: 0 | CO7: 0 | CP7: 0 | CQ7: 0 | CR7: 0 | CS7: 0 | CT7: 0 | CU7: 0 | CV7: 0 | CW7: 0 | CX7: 0 | CY7: 0 | CZ7: 0 | DA7: 0 | DB7: 0 | DC7: 0 | DD7: 0 | DE7: 0 | DF7: 0 | DG7: 0 | DH7: 0 | DI7: 0 | DJ7: 0 | DK7: 0 | DL7: 0 | DM7: 0 | DN7: 0 | DO7: 0 | DP7: 0 | DQ7: 0 | DR7: 0 | DS7: 0 | DT7: 0 | DU7: 0 | DV7: 0 | DW7: 0 | DX7: 0 | DY7: 0 | DZ7: 0 | EA7: 0 | EB7: 0 | EC7: 0 | ED7: 0 | EE7: 0 | EF7: 0 | EG7: 0 | EH7: 0 | EI7: 0 | EJ7: 0 | EK7: 0 | EL7: 0 | EM7: 0 | EN7: 0 | EO7: 0 | EP7: 0 | EQ7: 0 | ER7: 0 | ES7: 0 | ET7: 0 | EU7: 0 | EV7: 0 | EW7: 0 | EX7: 0 | EY7: 0 | EZ7: 0 | FA7: 0 | FB7: 0 | FC7: 0 | FD7: 0 | FE7: 0 | FF7: 0 | FG7: 0 | FH7: 0 | FI7: 0 | FJ7: 0 | FK7: 0 | FL7: 0 | FM7: 0 | FN7: 0 | FO7: 0 | FP7: 0 | FQ7: 0 | FR7: 0 | FS7: 0 | FT7: 0 | FU7: 0 | FV7: 0 | FW7: 0 | FX7: 0 | FY7: 0 | FZ7: 0 | GA7: 0 | GB7: 0 | GC7: 0 | GD7: 0 | GE7: 0 | GF7: 0 | GG7: 0 | GH7: 0 | GI7: 0 | GJ7: 0 | GK7: 0 | GL7: 0 | GM7: 0 | GN7: 0 | GO7: 0 | GP7: 0 | GQ7: 0 | GR7: 0 | GS7: 0 | GT7: 0 | GU7: 0 | GV7: 0 | GW7: 0 | GX7: 0 | GY7: 0 | GZ7: 0 | HA7: 0 | HB7: 0 | HC7: 0 | HD7: 0 | HE7: 0 | HF7: 0 | HG7: 0 | HH7: 0 | HI7: 0 | HJ7: 0 | HK7: 0 | HL7: 0 | HM7: 0 | HN7: 0 | HO7: 0 | HP7: 0 | HQ7: 0 | HR7: 0 | HS7: 0 | HT7: 0 | HU7: 0 | HV7: 0 | HW7: 0 | HX7: 0 | HY7: 0 | HZ7: 0 | IA7: 0 | IB7: 0 | IC7: 0 | ID7: 0 | IE7: 0 | IF7: 0 | IG7: 0 | IH7: 0 | II7: 0 | IJ7: 0 | IK7: 0 | IL7: 0 | IM7: 0 | IN7: 0 | IO7: 0 | IP7: 0 | IQ7: 0 | IR7: 0 | IS7: 0 | IT7: 0 | IU7: 0 | IV7: 0 | IW7: 0 | IX7: 0 | IY7: 0 | IZ7: 0 | JA7: 0 | JB7: 0 | JC7: 0 | JD7: 0 | JE7: 0 | JF7: 0 | JG7: 0 | JH7: 0 | JI7: 0 | JJ7: 0 | JK7: 0 | JL7: 0 | JM7: 0 | JN7: 0 | JO7: 0 | JP7: 0 | JQ7: 0 | JR7: 0 | JS7: 0 | JT7: 0 | JU7: 0 | JV7: 0 | JW7: 0 | JX7: 0 | JY7: 0 | JZ7: 0 | KA7: 0 | KB7: 0 | KC7: 0 | KD7: 0 | KE7: 0 | KF7: 0 | KG7: 0 | KH7: 0 | KI7: 0 | KJ7: 0 | KK7: 0 | KL7: 0 | KM7: 0 | KN7: 0 | KO7: 0 | KP7: 0 | KQ7: 0 | KR7: 0 | KS7: 0 | KT7: 0 | KU7: 0 | KV7: 0 | KW7: 0 | KX7: 0 | KY7: 0 | KZ7: 0 | LA7: 0 | LB7: 0 | LC7: 0 | LD7: 0 | LE7: 0 | LF7: 0 | LG7: 0 | LH7: 0 | LI7: 0 | LJ7: 0 | LK7: 0 | LL7: 0 | LM7: 0 | LN7: 0 | LO7: 0 | LP7: 0 | LQ7: 0 | LR7: 0 | LS7: 0 | LT7: 0 | LU7: 0 | LV7: 0 | LW7: 0 | LX7: 0 | LY7: 0 | LZ7: 0 | MA7: 0 | MB7: 0 | MC7: 0 | MD7: 0 | ME7: 0 | MF7: 0 | MG7: 0 | MH7: 0 | MI7: 0 | MJ7: 0 | MK7: 0 | ML7: 0 | MM7: 0 | MN7: 0 | MO7: 0 | MP7: 0 | MQ7: 0 | MR7: 0 | MS7: 0 | MT7: 0 | MU7: 0 | MV7: 0 | MW7: 0 | MX7: 0 | MY7: 0 | MZ7: 0 | NA7: 0 | NB7: 0 | NC7: 0 | ND7: 0
A8: Shade and shelter | B8: =IF(Calculator!C24=0, Calculator!G23, 0) -> 66.66666667 | C8: 1 | D8: 0.05 | E8: 72 | F8: =360 * SUM(D$4:D8) -> 90 | G8: =IF(AND(G$1>=$E8,G$1<=$F8),$B8,0) -> 0 | H8: 0 | I8: 0 | J8: 0 | K8: 0 | L8: 0 | M8: 0 | N8: 0 | O8: 0 | P8: 0 | Q8: 0 | R8: 0 | S8: 0 | T8: 0 | U8: 0 | V8: 0 | W8: 0 | X8: 0 | Y8: 0 | Z8: 0 | AA8: 0 | AB8: 0 | AC8: 0 | AD8: 0 | AE8: 0 | AF8: 0 | AG8: 0 | AH8: 0 | AI8: 0 | AJ8: 0 | AK8: 0 | AL8: 0 | AM8: 0 | AN8: 0 | AO8: 0 | AP8: 0 | AQ8: 0 | AR8: 0 | AS8: 0 | AT8: 0 | AU8: 0 | AV8: 0 | AW8: 0 | AX8: 0 | AY8: 0 | AZ8: 0 | BA8: 0 | BB8: 0 | BC8: 0 | BD8: 0 | BE8: 0 | BF8: 0 | BG8: 0 | BH8: 0 | BI8: 0 | BJ8: 0 | BK8: 0 | BL8: 0 | BM8: 0 | BN8: 0 | BO8: 0 | BP8: 0 | BQ8: 0 | BR8: 0 | BS8: 0 | BT8: 0 | BU8: 0 | BV8: 0 | BW8: 0 | BX8: 0 | BY8: 0 | BZ8: 0 | CA8: 66.66666667 | CB8: 66.66666667 | CC8: 66.66666667 | CD8: 66.66666667 | CE8: 66.66666667 | CF8: 66.66666667 | CG8: 66.66666667 | CH8: 66.66666667 | CI8: 66.66666667 | CJ8: 66.66666667 | CK8: 66.66666667 | CL8: 66.66666667 | CM8: 66.66666667 | CN8: 66.66666667 | CO8: 66.66666667 | CP8: 66.66666667 | CQ8: 66.66666667 | CR8: 66.66666667 | CS8: 66.66666667 | CT8: 0 | CU8: 0 | CV8: 0 | CW8: 0 | CX8: 0 | CY8: 0 | CZ8: 0 | DA8: 0 | DB8: 0 | DC8: 0 | DD8: 0 | DE8: 0 | DF8: 0 | DG8: 0 | DH8: 0 | DI8: 0 | DJ8: 0 | DK8: 0 | DL8: 0 | DM8: 0 | DN8: 0 | DO8: 0 | DP8: 0 | DQ8: 0 | DR8: 0 | DS8: 0 | DT8: 0 | DU8: 0 | DV8: 0 | DW8: 0 | DX8: 0 | DY8: 0 | DZ8: 0 | EA8: 0 | EB8: 0 | EC8: 0 | ED8: 0 | EE8: 0 | EF8: 0 | EG8: 0 | EH8: 0 | EI8: 0 | EJ8: 0 | EK8: 0 | EL8: 0 | EM8: 0 | EN8: 0 | EO8: 0 | EP8: 0 | EQ8: 0 | ER8: 0 | ES8: 0 | ET8: 0 | EU8: 0 | EV8: 0 | EW8: 0 | EX8: 0 | EY8: 0 | EZ8: 0 | FA8: 0 | FB8: 0 | FC8: 0 | FD8: 0 | FE8: 0 | FF8: 0 | FG8: 0 | FH8: 0 | FI8: 0 | FJ8: 0 | FK8: 0 | FL8: 0 | FM8: 0 | FN8: 0 | FO8: 0 | FP8: 0 | FQ8: 0 | FR8: 0 | FS8: 0 | FT8: 0 | FU8: 0 | FV8: 0 | FW8: 0 | FX8: 0 | FY8: 0 | FZ8: 0 | GA8: 0 | GB8: 0 | GC8: 0 | GD8: 0 | GE8: 0 | GF8: 0 | GG8: 0 | GH8: 0 | GI8: 0 | GJ8: 0 | GK8: 0 | GL8: 0 | GM8: 0 | GN8: 0 | GO8: 0 | GP8: 0 | GQ8: 0 | GR8: 0 | GS8: 0 | GT8: 0 | GU8: 0 | GV8: 0 | GW8: 0 | GX8: 0 | GY8: 0 | GZ8: 0 | HA8: 0 | HB8: 0 | HC8: 0 | HD8: 0 | HE8: 0 | HF8: 0 | HG8: 0 | HH8: 0 | HI8: 0 | HJ8: 0 | HK8: 0 | HL8: 0 | HM8: 0 | HN8: 0 | HO8: 0 | HP8: 0 | HQ8: 0 | HR8: 0 | HS8: 0 | HT8: 0 | HU8: 0 | HV8: 0 | HW8: 0 | HX8: 0 | HY8: 0 | HZ8: 0 | IA8: 0 | IB8: 0 | IC8: 0 | ID8: 0 | IE8: 0 | IF8: 0 | IG8: 0 | IH8: 0 | II8: 0 | IJ8: 0 | IK8: 0 | IL8: 0 | IM8: 0 | IN8: 0 | IO8: 0 | IP8: 0 | IQ8: 0 | IR8: 0 | IS8: 0 | IT8: 0 | IU8: 0 | IV8: 0 | IW8: 0 | IX8: 0 | IY8: 0 | IZ8: 0 | JA8: 0 | JB8: 0 | JC8: 0 | JD8: 0 | JE8: 0 | JF8: 0 | JG8: 0 | JH8: 0 | JI8: 0 | JJ8: 0 | JK8: 0 | JL8: 0 | JM8: 0 | JN8: 0 | JO8: 0 | JP8: 0 | JQ8: 0 | JR8: 0 | JS8: 0 | JT8: 0 | JU8: 0 | JV8: 0 | JW8: 0 | JX8: 0 | JY8: 0 | JZ8: 0 | KA8: 0 | KB8: 0 | KC8: 0 | KD8: 0 | KE8: 0 | KF8: 0 | KG8: 0 | KH8: 0 | KI8: 0 | KJ8: 0 | KK8: 0 | KL8: 0 | KM8: 0 | KN8: 0 | KO8: 0 | KP8: 0 | KQ8: 0 | KR8: 0 | KS8: 0 | KT8: 0 | KU8: 0 | KV8: 0 | KW8: 0 | KX8: 0 | KY8: 0 | KZ8: 0 | LA8: 0 | LB8: 0 | LC8: 0 | LD8: 0 | LE8: 0 | LF8: 0 | LG8: 0 | LH8: 0 | LI8: 0 | LJ8: 0 | LK8: 0 | LL8: 0 | LM8: 0 | LN8: 0 | LO8: 0 | LP8: 0 | LQ8: 0 | LR8: 0 | LS8: 0 | LT8: 0 | LU8: 0 | LV8: 0 | LW8: 0 | LX8: 0 | LY8: 0 | LZ8: 0 | MA8: 0 | MB8: 0 | MC8: 0 | MD8: 0 | ME8: 0 | MF8: 0 | MG8: 0 | MH8: 0 | MI8: 0 | MJ8: 0 | MK8: 0 | ML8: 0 | MM8: 0 | MN8: 0 | MO8: 0 | MP8: 0 | MQ8: 0 | MR8: 0 | MS8: 0 | MT8: 0 | MU8: 0 | MV8: 0 | MW8: 0 | MX8: 0 | MY8: 0 | MZ8: 0 | NA8: 0 | NB8: 0 | NC8: 0 | ND8: 0
A9: Shade and shelter | B9: =IF(Calculator!C49=0, Calculator!G48, 0) -> 100 | C9: 1 | D9: 0.05 | E9: 90 | F9: =360 * SUM(D$4:D9) -> 108 | G9: 0 | H9: 0 | I9: 0 | J9: 0 | K9: 0 | L9: 0 | M9: 0 | N9: 0 | O9: 0 | P9: 0 | Q9: 0 | R9: 0 | S9: 0 | T9: 0 | U9: 0 | V9: 0 | W9: 0 | X9: 0 | Y9: 0 | Z9: 0 | AA9: 0 | AB9: 0 | AC9: 0 | AD9: 0 | AE9: 0 | AF9: 0 | AG9: 0 | AH9: 0 | AI9: 0 | AJ9: 0 | AK9: 0 | AL9: 0 | AM9: 0 | AN9: 0 | AO9: 0 | AP9: 0 | AQ9: 0 | AR9: 0 | AS9: 0 | AT9: 0 | AU9: 0 | AV9: 0 | AW9: 0 | AX9: 0 | AY9: 0 | AZ9: 0 | BA9: 0 | BB9: 0 | BC9: 0 | BD9: 0 | BE9: 0 | BF9: 0 | BG9: 0 | BH9: 0 | BI9: 0 | BJ9: 0 | BK9: 0 | BL9: 0 | BM9: 0 | BN9: 0 | BO9: 0 | BP9: 0 | BQ9: 0 | BR9: 0 | BS9: 0 | BT9: 0 | BU9: 0 | BV9: 0 | BW9: 0 | BX9: 0 | BY9: 0 | BZ9: 0 | CA9: 0 | CB9: 0 | CC9: 0 | CD9: 0 | CE9: 0 | CF9: 0 | CG9: 0 | CH9: 0 | CI9: 0 | CJ9: 0 | CK9: 0 | CL9: 0 | CM9: 0 | CN9: 0 | CO9: 0 | CP9: 0 | CQ9: 0 | CR9: 0 | CS9: 100 | CT9: 100 | CU9: 100 | CV9: 100 | CW9: 100 | CX9: 100 | CY9: 100 | CZ9: 100 | DA9: 100 | DB9: 100 | DC9: 100 | DD9: 100 | DE9: 100 | DF9: 100 | DG9: 100 | DH9: 100 | DI9: 100 | DJ9: 100 | DK9: 100 | DL9: 0 | DM9: 0 | DN9: 0 | DO9: 0 | DP9: 0 | DQ9: 0 | DR9: 0 | DS9: 0 | DT9: 0 | DU9: 0 | DV9: 0 | DW9: 0 | DX9: 0 | DY9: 0 | DZ9: 0 | EA9: 0 | EB9: 0 | EC9: 0 | ED9: 0 | EE9: 0 | EF9: 0 | EG9: 0 | EH9: 0 | EI9: 0 | EJ9: 0 | EK9: 0 | EL9: 0 | EM9: 0 | EN9: 0 | EO9: 0 | EP9: 0 | EQ9: 0 | ER9: 0 | ES9: 0 | ET9: 0 | EU9: 0 | EV9: 0 | EW9: 0 | EX9: 0 | EY9: 0 | EZ9: 0 | FA9: 0 | FB9: 0 | FC9: 0 | FD9: 0 | FE9: 0 | FF9: 0 | FG9: 0 | FH9: 0 | FI9: 0 | FJ9: 0 | FK9: 0 | FL9: 0 | FM9: 0 | FN9: 0 | FO9: 0 | FP9: 0 | FQ9: 0 | FR9: 0 | FS9: 0 | FT9: 0 | FU9: 0 | FV9: 0 | FW9: 0 | FX9: 0 | FY9: 0 | FZ9: 0 | GA9: 0 | GB9: 0 | GC9: 0 | GD9: 0 | GE9: 0 | GF9: 0 | GG9: 0 | GH9: 0 | GI9: 0 | GJ9: 0 | GK9: 0 | GL9: 0 | GM9: 0 | GN9: 0 | GO9: 0 | GP9: 0 | GQ9: 0 | GR9: 0 | GS9: 0 | GT9: 0 | GU9: 0 | GV9: 0 | GW9: 0 | GX9: 0 | GY9: 0 | GZ9: 0 | HA9: 0 | HB9: 0 | HC9: 0 | HD9: 0 | HE9: 0 | HF9: 0 | HG9: 0 | HH9: 0 | HI9: 0 | HJ9: 0 | HK9: 0 | HL9: 0 | HM9: 0 | HN9: 0 | HO9: 0 | HP9: 0 | HQ9: 0 | HR9: 0 | HS9: 0 | HT9: 0 | HU9: 0 | HV9: 0 | HW9: 0 | HX9: 0 | HY9: 0 | HZ9: 0 | IA9: 0 | IB9: 0 | IC9: 0 | ID9: 0 | IE9: 0 | IF9: 0 | IG9: 0 | IH9: 0 | II9: 0 | IJ9: 0 | IK9: 0 | IL9: 0 | IM9: 0 | IN9: 0 | IO9: 0 | IP9: 0 | IQ9: 0 | IR9: 0 | IS9: 0 | IT9: 0 | IU9: 0 | IV9: 0 | IW9: 0 | IX9: 0 | IY9: 0 | IZ9: 0 | JA9: 0 | JB9: 0 | JC9: 0 | JD9: 0 | JE9: 0 | JF9: 0 | JG9: 0 | JH9: 0 | JI9: 0 | JJ9: 0 | JK9: 0 | JL9: 0 | JM9: 0 | JN9: 0 | JO9: 0 | JP9: 0 | JQ9: 0 | JR9: 0 | JS9: 0 | JT9: 0 | JU9: 0 | JV9: 0 | JW9: 0 | JX9: 0 | JY9: 0 | JZ9: 0 | KA9: 0 | KB9: 0 | KC9: 0 | KD9: 0 | KE9: 0 | KF9: 0 | KG9: 0 | KH9: 0 | KI9: 0 | KJ9: 0 | KK9: 0 | KL9: 0 | KM9: 0 | KN9: 0 | KO9: 0 | KP9: 0 | KQ9: 0 | KR9: 0 | KS9: 0 | KT9: 0 | KU9: 0 | KV9: 0 | KW9: 0 | KX9: 0 | KY9: 0 | KZ9: 0 | LA9: 0 | LB9: 0 | LC9: 0 | LD9: 0 | LE9: 0 | LF9: 0 | LG9: 0 | LH9: 0 | LI9: 0 | LJ9: 0 | LK9: 0 | LL9: 0 | LM9: 0 | LN9: 0 | LO9: 0 | LP9: 0 | LQ9: 0 | LR9: 0 | LS9: 0 | LT9: 0 | LU9: 0 | LV9: 0 | LW9: 0 | LX9: 0 | LY9: 0 | LZ9: 0 | MA9: 0 | MB9: 0 | MC9: 0 | MD9: 0 | ME9: 0 | MF9: 0 | MG9: 0 | MH9: 0 | MI9: 0 | MJ9: 0 | MK9: 0 | ML9: 0 | MM9: 0 | MN9: 0 | MO9: 0 | MP9: 0 | MQ9: 0 | MR9: 0 | MS9: 0 | MT9: 0 | MU9: 0 | MV9: 0 | MW9: 0 | MX9: 0 | MY9: 0 | MZ9: 0 | NA9: 0 | NB9: 0 | NC9: 0 | ND9: 0
A10: Places to stop and rest | B10: =IF(Calculator!C24=0, Calculator!H23, 0) -> 0 | C10: 1 | D10: 0.05 | E10: 108 | F10: =360 * SUM(D$4:D10) -> 126 | G10: =IF(AND(G$1>=$E10,G$1<=$F10),$B10,0) -> 0 | H10: 0 | I10: 0 | J10: 0 | K10: 0 | L10: 0 | M10: 0 | N10: 0 | O10: 0 | P10: 0 | Q10: 0 | R10: 0 | S10: 0 | T10: 0 | U10: 0 | V10: 0 | W10: 0 | X10: 0 | Y10: 0 | Z10: 0 | AA10: 0 | AB10: 0 | AC10: 0 | AD10: 0 | AE10: 0 | AF10: 0 | AG10: 0 | AH10: 0 | AI10: 0 | AJ10: 0 | AK10: 0 | AL10: 0 | AM10: 0 | AN10: 0 | AO10: 0 | AP10: 0 | AQ10: 0 | AR10: 0 | AS10: 0 | AT10: 0 | AU10: 0 | AV10: 0 | AW10: 0 | AX10: 0 | AY10: 0 | AZ10: 0 | BA10: 0 | BB10: 0 | BC10: 0 | BD10: 0 | BE10: 0 | BF10: 0 | BG10: 0 | BH10: 0 | BI10: 0 | BJ10: 0 | BK10: 0 | BL10: 0 | BM10: 0 | BN10: 0 | BO10: 0 | BP10: 0 | BQ10: 0 | BR10: 0 | BS10: 0 | BT10: 0 | BU10: 0 | BV10: 0 | BW10: 0 | BX10: 0 | BY10: 0 | BZ10: 0 | CA10: 0 | CB10: 0 | CC10: 0 | CD10: 0 | CE10: 0 | CF10: 0 | CG10: 0 | CH10: 0 | CI10: 0 | CJ10: 0 | CK10: 0 | CL10: 0 | CM10: 0 | CN10: 0 | CO10: 0 | CP10: 0 | CQ10: 0 | CR10: 0 | CS10: 0 | CT10: 0 | CU10: 0 | CV10: 0 | CW10: 0 | CX10: 0 | CY10: 0 | CZ10: 0 | DA10: 0 | DB10: 0 | DC10: 0 | DD10: 0 | DE10: 0 | DF10: 0 | DG10: 0 | DH10: 0 | DI10: 0 | DJ10: 0 | DK10: 0 | DL10: 0 | DM10: 0 | DN10: 0 | DO10: 0 | DP10: 0 | DQ10: 0 | DR10: 0 | DS10: 0 | DT10: 0 | DU10: 0 | DV10: 0 | DW10: 0 | DX10: 0 | DY10: 0 | DZ10: 0 | EA10: 0 | EB10: 0 | EC10: 0 | ED10: 0 | EE10: 0 | EF10: 0 | EG10: 0 | EH10: 0 | EI10: 0 | EJ10: 0 | EK10: 0 | EL10: 0 | EM10: 0 | EN10: 0 | EO10: 0 | EP10: 0 | EQ10: 0 | ER10: 0 | ES10: 0 | ET10: 0 | EU10: 0 | EV10: 0 | EW10: 0 | EX10: 0 | EY10: 0 | EZ10: 0 | FA10: 0 | FB10: 0 | FC10: 0 | FD10: 0 | FE10: 0 | FF10: 0 | FG10: 0 | FH10: 0 | FI10: 0 | FJ10: 0 | FK10: 0 | FL10: 0 | FM10: 0 | FN10: 0 | FO10: 0 | FP10: 0 | FQ10: 0 | FR10: 0 | FS10: 0 | FT10: 0 | FU10: 0 | FV10: 0 | FW10: 0 | FX10: 0 | FY10: 0 | FZ10: 0 | GA10: 0 | GB10: 0 | GC10: 0 | GD10: 0 | GE10: 0 | GF10: 0 | GG10: 0 | GH10: 0 | GI10: 0 | GJ10: 0 | GK10: 0 | GL10: 0 | GM10: 0 | GN10: 0 | GO10: 0 | GP10: 0 | GQ10: 0 | GR10: 0 | GS10: 0 | GT10: 0 | GU10: 0 | GV10: 0 | GW10: 0 | GX10: 0 | GY10: 0 | GZ10: 0 | HA10: 0 | HB10: 0 | HC10: 0 | HD10: 0 | HE10: 0 | HF10: 0 | HG10: 0 | HH10: 0 | HI10: 0 | HJ10: 0 | HK10: 0 | HL10: 0 | HM10: 0 | HN10: 0 | HO10: 0 | HP10: 0 | HQ10: 0 | HR10: 0 | HS10: 0 | HT10: 0 | HU10: 0 | HV10: 0 | HW10: 0 | HX10: 0 | HY10: 0 | HZ10: 0 | IA10: 0 | IB10: 0 | IC10: 0 | ID10: 0 | IE10: 0 | IF10: 0 | IG10: 0 | IH10: 0 | II10: 0 | IJ10: 0 | IK10: 0 | IL10: 0 | IM10: 0 | IN10: 0 | IO10: 0 | IP10: 0 | IQ10: 0 | IR10: 0 | IS10: 0 | IT10: 0 | IU10: 0 | IV10: 0 | IW10: 0 | IX10: 0 | IY10: 0 | IZ10: 0 | JA10: 0 | JB10: 0 | JC10: 0 | JD10: 0 | JE10: 0 | JF10: 0 | JG10: 0 | JH10: 0 | JI10: 0 | JJ10: 0 | JK10: 0 | JL10: 0 | JM10: 0 | JN10: 0 | JO10: 0 | JP10: 0 | JQ10: 0 | JR10: 0 | JS10: 0 | JT10: 0 | JU10: 0 | JV10: 0 | JW10: 0 | JX10: 0 | JY10: 0 | JZ10: 0 | KA10: 0 | KB10: 0 | KC10: 0 | KD10: 0 | KE10: 0 | KF10: 0 | KG10: 0 | KH10: 0 | KI10: 0 | KJ10: 0 | KK10: 0 | KL10: 0 | KM10: 0 | KN10: 0 | KO10: 0 | KP10: 0 | KQ10: 0 | KR10: 0 | KS10: 0 | KT10: 0 | KU10: 0 | KV10: 0 | KW10: 0 | KX10: 0 | KY10: 0 | KZ10: 0 | LA10: 0 | LB10: 0 | LC10: 0 | LD10: 0 | LE10: 0 | LF10: 0 | LG10: 0 | LH10: 0 | LI10: 0 | LJ10: 0 | LK10: 0 | LL10: 0 | LM10: 0 | LN10: 0 | LO10: 0 | LP10: 0 | LQ10: 0 | LR10: 0 | LS10: 0 | LT10: 0 | LU10: 0 | LV10: 0 | LW10: 0 | LX10: 0 | LY10: 0 | LZ10: 0 | MA10: 0 | MB10: 0 | MC10: 0 | MD10: 0 | ME10: 0 | MF10: 0 | MG10: 0 | MH10: 0 | MI10: 0 | MJ10: 0 | MK10: 0 | ML10: 0 | MM10: 0 | MN10: 0 | MO10: 0 | MP10: 0 | MQ10: 0 | MR10: 0 | MS10: 0 | MT10: 0 | MU10: 0 | MV10: 0 | MW10: 0 | MX10: 0 | MY10: 0 | MZ10: 0 | NA10: 0 | NB10: 0 | NC10: 0 | ND10: 0
A11: Places to stop and rest | B11: =IF(Calculator!C49=0, Calculator!H48, 0) -> 100 | C11: 1 | D11: 0.05 | E11: 126 | F11: =360 * SUM(D$4:D11) -> 144 | G11: 0 | H11: 0 | I11: 0 | J11: 0 | K11: 0 | L11: 0 | M11: 0 | N11: 0 | O11: 0 | P11: 0 | Q11: 0 | R11: 0 | S11: 0 | T11: 0 | U11: 0 | V11: 0 | W11: 0 | X11: 0 | Y11: 0 | Z11: 0 | AA11: 0 | AB11: 0 | AC11: 0 | AD11: 0 | AE11: 0 | AF11: 0 | AG11: 0 | AH11: 0 | AI11: 0 | AJ11: 0 | AK11: 0 | AL11: 0 | AM11: 0 | AN11: 0 | AO11: 0 | AP11: 0 | AQ11: 0 | AR11: 0 | AS11: 0 | AT11: 0 | AU11: 0 | AV11: 0 | AW11: 0 | AX11: 0 | AY11: 0 | AZ11: 0 | BA11: 0 | BB11: 0 | BC11: 0 | BD11: 0 | BE11: 0 | BF11: 0 | BG11: 0 | BH11: 0 | BI11: 0 | BJ11: 0 | BK11: 0 | BL11: 0 | BM11: 0 | BN11: 0 | BO11: 0 | BP11: 0 | BQ11: 0 | BR11: 0 | BS11: 0 | BT11: 0 | BU11: 0 | BV11: 0 | BW11: 0 | BX11: 0 | BY11: 0 | BZ11: 0 | CA11: 0 | CB11: 0 | CC11: 0 | CD11: 0 | CE11: 0 | CF11: 0 | CG11: 0 | CH11: 0 | CI11: 0 | CJ11: 0 | CK11: 0 | CL11: 0 | CM11: 0 | CN11: 0 | CO11: 0 | CP11: 0 | CQ11: 0 | CR11: 0 | CS11: 0 | CT11: 0 | CU11: 0 | CV11: 0 | CW11: 0 | CX11: 0 | CY11: 0 | CZ11: 0 | DA11: 0 | DB11: 0 | DC11: 0 | DD11: 0 | DE11: 0 | DF11: 0 | DG11: 0 | DH11: 0 | DI11: 0 | DJ11: 0 | DK11: 0 | DL11: 0 | DM11: 0 | DN11: 0 | DO11: 0 | DP11: 0 | DQ11: 0 | DR11: 0 | DS11: 0 | DT11: 0 | DU11: 0 | DV11: 0 | DW11: 0 | DX11: 0 | DY11: 0 | DZ11: 0 | EA11: 0 | EB11: 0 | EC11: 100 | ED11: 100 | EE11: 100 | EF11: 100 | EG11: 100 | EH11: 100 | EI11: 100 | EJ11: 100 | EK11: 100 | EL11: 100 | EM11: 100 | EN11: 100 | EO11: 100 | EP11: 100 | EQ11: 100 | ER11: 100 | ES11: 100 | ET11: 100 | EU11: 100 | EV11: 0 | EW11: 0 | EX11: 0 | EY11: 0 | EZ11: 0 | FA11: 0 | FB11: 0 | FC11: 0 | FD11: 0 | FE11: 0 | FF11: 0 | FG11: 0 | FH11: 0 | FI11: 0 | FJ11: 0 | FK11: 0 | FL11: 0 | FM11: 0 | FN11: 0 | FO11: 0 | FP11: 0 | FQ11: 0 | FR11: 0 | FS11: 0 | FT11: 0 | FU11: 0 | FV11: 0 | FW11: 0 | FX11: 0 | FY11: 0 | FZ11: 0 | GA11: 0 | GB11: 0 | GC11: 0 | GD11: 0 | GE11: 0 | GF11: 0 | GG11: 0 | GH11: 0 | GI11: 0 | GJ11: 0 | GK11: 0 | GL11: 0 | GM11: 0 | GN11: 0 | GO11: 0 | GP11: 0 | GQ11: 0 | GR11: 0 | GS11: 0 | GT11: 0 | GU11: 0 | GV11: 0 | GW11: 0 | GX11: 0 | GY11: 0 | GZ11: 0 | HA11: 0 | HB11: 0 | HC11: 0 | HD11: 0 | HE11: 0 | HF11: 0 | HG11: 0 | HH11: 0 | HI11: 0 | HJ11: 0 | HK11: 0 | HL11: 0 | HM11: 0 | HN11: 0 | HO11: 0 | HP11: 0 | HQ11: 0 | HR11: 0 | HS11: 0 | HT11: 0 | HU11: 0 | HV11: 0 | HW11: 0 | HX11: 0 | HY11: 0 | HZ11: 0 | IA11: 0 | IB11: 0 | IC11: 0 | ID11: 0 | IE11: 0 | IF11: 0 | IG11: 0 | IH11: 0 | II11: 0 | IJ11: 0 | IK11: 0 | IL11: 0 | IM11: 0 | IN11: 0 | IO11: 0 | IP11: 0 | IQ11: 0 | IR11: 0 | IS11: 0 | IT11: 0 | IU11: 0 | IV11: 0 | IW11: 0 | IX11: 0 | IY11: 0 | IZ11: 0 | JA11: 0 | JB11: 0 | JC11: 0 | JD11: 0 | JE11: 0 | JF11: 0 | JG11: 0 | JH11: 0 | JI11: 0 | JJ11: 0 | JK11: 0 | JL11: 0 | JM11: 0 | JN11: 0 | JO11: 0 | JP11: 0 | JQ11: 0 | JR11: 0 | JS11: 0 | JT11: 0 | JU11: 0 | JV11: 0 | JW11: 0 | JX11: 0 | JY11: 0 | JZ11: 0 | KA11: 0 | KB11: 0 | KC11: 0 | KD11: 0 | KE11: 0 | KF11: 0 | KG11: 0 | KH11: 0 | KI11: 0 | KJ11: 0 | KK11: 0 | KL11: 0 | KM11: 0 | KN11: 0 | KO11: 0 | KP11: 0 | KQ11: 0 | KR11: 0 | KS11: 0 | KT11: 0 | KU11: 0 | KV11: 0 | KW11: 0 | KX11: 0 | KY11: 0 | KZ11: 0 | LA11: 0 | LB11: 0 | LC11: 0 | LD11: 0 | LE11: 0 | LF11: 0 | LG11: 0 | LH11: 0 | LI11: 0 | LJ11: 0 | LK11: 0 | LL11: 0 | LM11: 0 | LN11: 0 | LO11: 0 | LP11: 0 | LQ11: 0 | LR11: 0 | LS11: 0 | LT11: 0 | LU11: 0 | LV11: 0 | LW11: 0 | LX11: 0 | LY11: 0 | LZ11: 0 | MA11: 0 | MB11: 0 | MC11: 0 | MD11: 0 | ME11: 0 | MF11: 0 | MG11: 0 | MH11: 0 | MI11: 0 | MJ11: 0 | MK11: 0 | ML11: 0 | MM11: 0 | MN11: 0 | MO11: 0 | MP11: 0 | MQ11: 0 | MR11: 0 | MS11: 0 | MT11: 0 | MU11: 0 | MV11: 0 | MW11: 0 | MX11: 0 | MY11: 0 | MZ11: 0 | NA11: 0 | NB11: 0 | NC11: 0 | ND11: 0
A12: Not too noisy | B12: =IF(Calculator!C24=0, Calculator!I23, 0) -> 33.33333333 | C12: 1 | D12: 0.05 | E12: 144 | F12: =360 * SUM(D$4:D12) -> 162 | G12: =IF(AND(G$1>=$E12,G$1<=$F12),$B12,0) -> 0 | H12: 0 | I12: 0 | J12: 0 | K12: 0 | L12: 0 | M12: 0 | N12: 0 | O12: 0 | P12: 0 | Q12: 0 | R12: 0 | S12: 0 | T12: 0 | U12: 0 | V12: 0 | W12: 0 | X12: 0 | Y12: 0 | Z12: 0 | AA12: 0 | AB12: 0 | AC12: 0 | AD12: 0 | AE12: 0 | AF12: 0 | AG12: 0 | AH12: 0 | AI12: 0 | AJ12: 0 | AK12: 0 | AL12: 0 | AM12: 0 | AN12: 0 | AO12: 0 | AP12: 0 | AQ12: 0 | AR12: 0 | AS12: 0 | AT12: 0 | AU12: 0 | AV12: 0 | AW12: 0 | AX12: 0 | AY12: 0 | AZ12: 0 | BA12: 0 | BB12: 0 | BC12: 0 | BD12: 0 | BE12: 0 | BF12: 0 | BG12: 0 | BH12: 0 | BI12: 0 | BJ12: 0 | BK12: 0 | BL12: 0 | BM12: 0 | BN12: 0 | BO12: 0 | BP12: 0 | BQ12: 0 | BR12: 0 | BS12: 0 | BT12: 0 | BU12: 0 | BV12: 0 | BW12: 0 | BX12: 0 | BY12: 0 | BZ12: 0 | CA12: 0 | CB12: 0 | CC12: 0 | CD12: 0 | CE12: 0 | CF12: 0 | CG12: 0 | CH12: 0 | CI12: 0 | CJ12: 0 | CK12: 0 | CL12: 0 | CM12: 0 | CN12: 0 | CO12: 0 | CP12: 0 | CQ12: 0 | CR12: 0 | CS12: 0 | CT12: 0 | CU12: 0 | CV12: 0 | CW12: 0 | CX12: 0 | CY12: 0 | CZ12: 0 | DA12: 0 | DB12: 0 | DC12: 0 | DD12: 0 | DE12: 0 | DF12: 0 | DG12: 0 | DH12: 0 | DI12: 0 | DJ12: 0 | DK12: 0 | DL12: 0 | DM12: 0 | DN12: 0 | DO12: 0 | DP12: 0 | DQ12: 0 | DR12: 0 | DS12: 0 | DT12: 0 | DU12: 0 | DV12: 0 | DW12: 0 | DX12: 0 | DY12: 0 | DZ12: 0 | EA12: 0 | EB12: 0 | EC12: 0 | ED12: 0 | EE12: 0 | EF12: 0 | EG12: 0 | EH12: 0 | EI12: 0 | EJ12: 0 | EK12: 0 | EL12: 0 | EM12: 0 | EN12: 0 | EO12: 0 | EP12: 0 | EQ12: 0 | ER12: 0 | ES12: 0 | ET12: 0 | EU12: 33.33333333 | EV12: 33.33333333 | EW12: 33.33333333 | EX12: 33.33333333 | EY12: 33.33333333 | EZ12: 33.33333333 | FA12: 33.33333333 | FB12: 33.33333333 | FC12: 33.33333333 | FD12: 33.33333333 | FE12: 33.33333333 | FF12: 33.33333333 | FG12: 33.33333333 | FH12: 33.33333333 | FI12: 33.33333333 | FJ12: 33.33333333 | FK12: 33.33333333 | FL12: 33.33333333 | FM12: 33.33333333 | FN12: 0 | FO12: 0 | FP12: 0 | FQ12: 0 | FR12: 0 | FS12: 0 | FT12: 0 | FU12: 0 | FV12: 0 | FW12: 0 | FX12: 0 | FY12: 0 | FZ12: 0 | GA12: 0 | GB12: 0 | GC12: 0 | GD12: 0 | GE12: 0 | GF12: 0 | GG12: 0 | GH12: 0 | GI12: 0 | GJ12: 0 | GK12: 0 | GL12: 0 | GM12: 0 | GN12: 0 | GO12: 0 | GP12: 0 | GQ12: 0 | GR12: 0 | GS12: 0 | GT12: 0 | GU12: 0 | GV12: 0 | GW12: 0 | GX12: 0 | GY12: 0 | GZ12: 0 | HA12: 0 | HB12: 0 | HC12: 0 | HD12: 0 | HE12: 0 | HF12: 0 | HG12: 0 | HH12: 0 | HI12: 0 | HJ12: 0 | HK12: 0 | HL12: 0 | HM12: 0 | HN12: 0 | HO12: 0 | HP12: 0 | HQ12: 0 | HR12: 0 | HS12: 0 | HT12: 0 | HU12: 0 | HV12: 0 | HW12: 0 | HX12: 0 | HY12: 0 | HZ12: 0 | IA12: 0 | IB12: 0 | IC12: 0 | ID12: 0 | IE12: 0 | IF12: 0 | IG12: 0 | IH12: 0 | II12: 0 | IJ12: 0 | IK12: 0 | IL12: 0 | IM12: 0 | IN12: 0 | IO12: 0 | IP12: 0 | IQ12: 0 | IR12: 0 | IS12: 0 | IT12: 0 | IU12: 0 | IV12: 0 | IW12: 0 | IX12: 0 | IY12: 0 | IZ12: 0 | JA12: 0 | JB12: 0 | JC12: 0 | JD12: 0 | JE12: 0 | JF12: 0 | JG12: 0 | JH12: 0 | JI12: 0 | JJ12: 0 | JK12: 0 | JL12: 0 | JM12: 0 | JN12: 0 | JO12: 0 | JP12: 0 | JQ12: 0 | JR12: 0 | JS12: 0 | JT12: 0 | JU12: 0 | JV12: 0 | JW12: 0 | JX12: 0 | JY12: 0 | JZ12: 0 | KA12: 0 | KB12: 0 | KC12: 0 | KD12: 0 | KE12: 0 | KF12: 0 | KG12: 0 | KH12: 0 | KI12: 0 | KJ12: 0 | KK12: 0 | KL12: 0 | KM12: 0 | KN12: 0 | KO12: 0 | KP12: 0 | KQ12: 0 | KR12: 0 | KS12: 0 | KT12: 0 | KU12: 0 | KV12: 0 | KW12: 0 | KX12: 0 | KY12: 0 | KZ12: 0 | LA12: 0 | LB12: 0 | LC12: 0 | LD12: 0 | LE12: 0 | LF12: 0 | LG12: 0 | LH12: 0 | LI12: 0 | LJ12: 0 | LK12: 0 | LL12: 0 | LM12: 0 | LN12: 0 | LO12: 0 | LP12: 0 | LQ12: 0 | LR12: 0 | LS12: 0 | LT12: 0 | LU12: 0 | LV12: 0 | LW12: 0 | LX12: 0 | LY12: 0 | LZ12: 0 | MA12: 0 | MB12: 0 | MC12: 0 | MD12: 0 | ME12: 0 | MF12: 0 | MG12: 0 | MH12: 0 | MI12: 0 | MJ12: 0 | MK12: 0 | ML12: 0 | MM12: 0 | MN12: 0 | MO12: 0 | MP12: 0 | MQ12: 0 | MR12: 0 | MS12: 0 | MT12: 0 | MU12: 0 | MV12: 0 | MW12: 0 | MX12: 0 | MY12: 0 | MZ12: 0 | NA12: 0 | NB12: 0 | NC12: 0 | ND12: 0
A13: Not too noisy | B13: =IF(Calculator!C49=0, Calculator!I48, 0) -> 100 | C13: 1 | D13: 0.05 | E13: 162 | F13: =360 * SUM(D$4:D13) -> 180 | G13: 0 | H13: 0 | I13: 0 | J13: 0 | K13: 0 | L13: 0 | M13: 0 | N13: 0 | O13: 0 | P13: 0 | Q13: 0 | R13: 0 | S13: 0 | T13: 0 | U13: 0 | V13: 0 | W13: 0 | X13: 0 | Y13: 0 | Z13: 0 | AA13: 0 | AB13: 0 | AC13: 0 | AD13: 0 | AE13: 0 | AF13: 0 | AG13: 0 | AH13: 0 | AI13: 0 | AJ13: 0 | AK13: 0 | AL13: 0 | AM13: 0 | AN13: 0 | AO13: 0 | AP13: 0 | AQ13: 0 | AR13: 0 | AS13: 0 | AT13: 0 | AU13: 0 | AV13: 0 | AW13: 0 | AX13: 0 | AY13: 0 | AZ13: 0 | BA13: 0 | BB13: 0 | BC13: 0 | BD13: 0 | BE13: 0 | BF13: 0 | BG13: 0 | BH13: 0 | BI13: 0 | BJ13: 0 | BK13: 0 | BL13: 0 | BM13: 0 | BN13: 0 | BO13: 0 | BP13: 0 | BQ13: 0 | BR13: 0 | BS13: 0 | BT13: 0 | BU13: 0 | BV13: 0 | BW13: 0 | BX13: 0 | BY13: 0 | BZ13: 0 | CA13: 0 | CB13: 0 | CC13: 0 | CD13: 0 | CE13: 0 | CF13: 0 | CG13: 0 | CH13: 0 | CI13: 0 | CJ13: 0 | CK13: 0 | CL13: 0 | CM13: 0 | CN13: 0 | CO13: 0 | CP13: 0 | CQ13: 0 | CR13: 0 | CS13: 0 | CT13: 0 | CU13: 0 | CV13: 0 | CW13: 0 | CX13: 0 | CY13: 0 | CZ13: 0 | DA13: 0 | DB13: 0 | DC13: 0 | DD13: 0 | DE13: 0 | DF13: 0 | DG13: 0 | DH13: 0 | DI13: 0 | DJ13: 0 | DK13: 0 | DL13: 0 | DM13: 0 | DN13: 0 | DO13: 0 | DP13: 0 | DQ13: 0 | DR13: 0 | DS13: 0 | DT13: 0 | DU13: 0 | DV13: 0 | DW13: 0 | DX13: 0 | DY13: 0 | DZ13: 0 | EA13: 0 | EB13: 0 | EC13: 0 | ED13: 0 | EE13: 0 | EF13: 0 | EG13: 0 | EH13: 0 | EI13: 0 | EJ13: 0 | EK13: 0 | EL13: 0 | EM13: 0 | EN13: 0 | EO13: 0 | EP13: 0 | EQ13: 0 | ER13: 0 | ES13: 0 | ET13: 0 | EU13: 0 | EV13: 0 | EW13: 0 | EX13: 0 | EY13: 0 | EZ13: 0 | FA13: 0 | FB13: 0 | FC13: 0 | FD13: 0 | FE13: 0 | FF13: 0 | FG13: 0 | FH13: 0 | FI13: 0 | FJ13: 0 | FK13: 0 | FL13: 0 | FM13: 100 | FN13: 100 | FO13: 100 | FP13: 100 | FQ13: 100 | FR13: 100 | FS13: 100 | FT13: 100 | FU13: 100 | FV13: 100 | FW13: 100 | FX13: 100 | FY13: 100 | FZ13: 100 | GA13: 100 | GB13: 100 | GC13: 100 | GD13: 100 | GE13: 100 | GF13: 0 | GG13: 0 | GH13: 0 | GI13: 0 | GJ13: 0 | GK13: 0 | GL13: 0 | GM13: 0 | GN13: 0 | GO13: 0 | GP13: 0 | GQ13: 0 | GR13: 0 | GS13: 0 | GT13: 0 | GU13: 0 | GV13: 0 | GW13: 0 | GX13: 0 | GY13: 0 | GZ13: 0 | HA13: 0 | HB13: 0 | HC13: 0 | HD13: 0 | HE13: 0 | HF13: 0 | HG13: 0 | HH13: 0 | HI13: 0 | HJ13: 0 | HK13: 0 | HL13: 0 | HM13: 0 | HN13: 0 | HO13: 0 | HP13: 0 | HQ13: 0 | HR13: 0 | HS13: 0 | HT13: 0 | HU13: 0 | HV13: 0 | HW13: 0 | HX13: 0 | HY13: 0 | HZ13: 0 | IA13: 0 | IB13: 0 | IC13: 0 | ID13: 0 | IE13: 0 | IF13: 0 | IG13: 0 | IH13: 0 | II13: 0 | IJ13: 0 | IK13: 0 | IL13: 0 | IM13: 0 | IN13: 0 | IO13: 0 | IP13: 0 | IQ13: 0 | IR13: 0 | IS13: 0 | IT13: 0 | IU13: 0 | IV13: 0 | IW13: 0 | IX13: 0 | IY13: 0 | IZ13: 0 | JA13: 0 | JB13: 0 | JC13: 0 | JD13: 0 | JE13: 0 | JF13: 0 | JG13: 0 | JH13: 0 | JI13: 0 | JJ13: 0 | JK13: 0 | JL13: 0 | JM13: 0 | JN13: 0 | JO13: 0 | JP13: 0 | JQ13: 0 | JR13: 0 | JS13: 0 | JT13: 0 | JU13: 0 | JV13: 0 | JW13: 0 | JX13: 0 | JY13: 0 | JZ13: 0 | KA13: 0 | KB13: 0 | KC13: 0 | KD13: 0 | KE13: 0 | KF13: 0 | KG13: 0 | KH13: 0 | KI13: 0 | KJ13: 0 | KK13: 0 | KL13: 0 | KM13: 0 | KN13: 0 | KO13: 0 | KP13: 0 | KQ13: 0 | KR13: 0 | KS13: 0 | KT13: 0 | KU13: 0 | KV13: 0 | KW13: 0 | KX13: 0 | KY13: 0 | KZ13: 0 | LA13: 0 | LB13: 0 | LC13: 0 | LD13: 0 | LE13: 0 | LF13: 0 | LG13: 0 | LH13: 0 | LI13: 0 | LJ13: 0 | LK13: 0 | LL13: 0 | LM13: 0 | LN13: 0 | LO13: 0 | LP13: 0 | LQ13: 0 | LR13: 0 | LS13: 0 | LT13: 0 | LU13: 0 | LV13: 0 | LW13: 0 | LX13: 0 | LY13: 0 | LZ13: 0 | MA13: 0 | MB13: 0 | MC13: 0 | MD13: 0 | ME13: 0 | MF13: 0 | MG13: 0 | MH13: 0 | MI13: 0 | MJ13: 0 | MK13: 0 | ML13: 0 | MM13: 0 | MN13: 0 | MO13: 0 | MP13: 0 | MQ13: 0 | MR13: 0 | MS13: 0 | MT13: 0 | MU13: 0 | MV13: 0 | MW13: 0 | MX13: 0 | MY13: 0 | MZ13: 0 | NA13: 0 | NB13: 0 | NC13: 0 | ND13: 0
A14: People choose to walk and cycle | B14: =IF(Calculator!C24=0, Calculator!J23, 0) -> 22.22222222 | C14: 1 | D14: 0.05 | E14: 180 | F14: =360 * SUM(D$4:D14) -> 198 | G14: =IF(AND(G$1>=$E14,G$1<=$F14),$B14,0) -> 0 | H14: 0 | I14: 0 | J14: 0 | K14: 0 | L14: 0 | M14: 0 | N14: 0 | O14: 0 | P14: 0 | Q14: 0 | R14: 0 | S14: 0 | T14: 0 | U14: 0 | V14: 0 | W14: 0 | X14: 0 | Y14: 0 | Z14: 0 | AA14: 0 | AB14: 0 | AC14: 0 | AD14: 0 | AE14: 0 | AF14: 0 | AG14: 0 | AH14: 0 | AI14: 0 | AJ14: 0 | AK14: 0 | AL14: 0 | AM14: 0 | AN14: 0 | AO14: 0 | AP14: 0 | AQ14: 0 | AR14: 0 | AS14: 0 | AT14: 0 | AU14: 0 | AV14: 0 | AW14: 0 | AX14: 0 | AY14: 0 | AZ14: 0 | BA14: 0 | BB14: 0 | BC14: 0 | BD14: 0 | BE14: 0 | BF14: 0 | BG14: 0 | BH14: 0 | BI14: 0 | BJ14: 0 | BK14: 0 | BL14: 0 | BM14: 0 | BN14: 0 | BO14: 0 | BP14: 0 | BQ14: 0 | BR14: 0 | BS14: =IF(AND(BS$1>=$E14,BS$1<=$F14),$B14,0) -> 0 | BT14: 0 | BU14: 0 | BV14: 0 | BW14: 0 | BX14: 0 | BY14: 0 | BZ14: 0 | CA14: 0 | CB14: 0 | CC14: 0 | CD14: 0 | CE14: 0 | CF14: 0 | CG14: 0 | CH14: 0 | CI14: 0 | CJ14: 0 | CK14: 0 | CL14: 0 | CM14: 0 | CN14: 0 | CO14: 0 | CP14: 0 | CQ14: 0 | CR14: 0 | CS14: 0 | CT14: 0 | CU14: 0 | CV14: 0 | CW14: 0 | CX14: 0 | CY14: 0 | CZ14: 0 | DA14: 0 | DB14: 0 | DC14: 0 | DD14: 0 | DE14: 0 | DF14: 0 | DG14: 0 | DH14: 0 | DI14: 0 | DJ14: 0 | DK14: 0 | DL14: 0 | DM14: 0 | DN14: 0 | DO14: 0 | DP14: 0 | DQ14: 0 | DR14: 0 | DS14: 0 | DT14: 0 | DU14: 0 | DV14: 0 | DW14: 0 | DX14: 0 | DY14: 0 | DZ14: 0 | EA14: 0 | EB14: 0 | EC14: 0 | ED14: 0 | EE14: =IF(AND(EE$1>=$E14,EE$1<=$F14),$B14,0) -> 0 | EF14: 0 | EG14: 0 | EH14: 0 | EI14: 0 | EJ14: 0 | EK14: 0 | EL14: 0 | EM14: 0 | EN14: 0 | EO14: 0 | EP14: 0 | EQ14: 0 | ER14: 0 | ES14: 0 | ET14: 0 | EU14: 0 | EV14: 0 | EW14: 0 | EX14: 0 | EY14: 0 | EZ14: 0 | FA14: 0 | FB14: 0 | FC14: 0 | FD14: 0 | FE14: 0 | FF14: 0 | FG14: 0 | FH14: 0 | FI14: 0 | FJ14: 0 | FK14: 0 | FL14: 0 | FM14: 0 | FN14: 0 | FO14: 0 | FP14: 0 | FQ14: 0 | FR14: 0 | FS14: 0 | FT14: 0 | FU14: 0 | FV14: 0 | FW14: 0 | FX14: 0 | FY14: 0 | FZ14: 0 | GA14: 0 | GB14: 0 | GC14: 0 | GD14: 0 | GE14: 22.22222222 | GF14: 22.22222222 | GG14: 22.22222222 | GH14: 22.22222222 | GI14: 22.22222222 | GJ14: 22.22222222 | GK14: 22.22222222 | GL14: 22.22222222 | GM14: 22.22222222 | GN14: 22.22222222 | GO14: 22.22222222 | GP14: 22.22222222 | GQ14: =IF(AND(GQ$1>=$E14,GQ$1<=$F14),$B14,0) -> 22.22222222 | GR14: 22.22222222 | GS14: 22.22222222 | GT14: 22.22222222 | GU14: 22.22222222 | GV14: 22.22222222 | GW14: 22.22222222 | GX14: 0 | GY14: 0 | GZ14: 0 | HA14: 0 | HB14: 0 | HC14: 0 | HD14: 0 | HE14: 0 | HF14: 0 | HG14: 0 | HH14: 0 | HI14: 0 | HJ14: 0 | HK14: 0 | HL14: 0 | HM14: 0 | HN14: 0 | HO14: 0 | HP14: 0 | HQ14: 0 | HR14: 0 | HS14: 0 | HT14: 0 | HU14: 0 | HV14: 0 | HW14: 0 | HX14: 0 | HY14: 0 | HZ14: 0 | IA14: 0 | IB14: 0 | IC14: 0 | ID14: 0 | IE14: 0 | IF14: 0 | IG14: 0 | IH14: 0 | II14: 0 | IJ14: 0 | IK14: 0 | IL14: 0 | IM14: 0 | IN14: 0 | IO14: 0 | IP14: 0 | IQ14: 0 | IR14: 0 | IS14: 0 | IT14: 0 | IU14: 0 | IV14: 0 | IW14: 0 | IX14: 0 | IY14: 0 | IZ14: 0 | JA14: 0 | JB14: 0 | JC14: =IF(AND(JC$1>=$E14,JC$1<=$F14),$B14,0) -> 0 | JD14: 0 | JE14: 0 | JF14: 0 | JG14: 0 | JH14: 0 | JI14: 0 | JJ14: 0 | JK14: 0 | JL14: 0 | JM14: 0 | JN14: 0 | JO14: 0 | JP14: 0 | JQ14: 0 | JR14: 0 | JS14: 0 | JT14: 0 | JU14: 0 | JV14: 0 | JW14: 0 | JX14: 0 | JY14: 0 | JZ14: 0 | KA14: 0 | KB14: 0 | KC14: 0 | KD14: 0 | KE14: 0 | KF14: 0 | KG14: 0 | KH14: 0 | KI14: 0 | KJ14: 0 | KK14: 0 | KL14: 0 | KM14: 0 | KN14: 0 | KO14: 0 | KP14: 0 | KQ14: 0 | KR14: 0 | KS14: 0 | KT14: 0 | KU14: 0 | KV14: 0 | KW14: 0 | KX14: 0 | KY14: 0 | KZ14: 0 | LA14: 0 | LB14: 0 | LC14: 0 | LD14: 0 | LE14: 0 | LF14: 0 | LG14: 0 | LH14: 0 | LI14: 0 | LJ14: 0 | LK14: 0 | LL14: 0 | LM14: 0 | LN14: 0 | LO14: =IF(AND(LO$1>=$E14,LO$1<=$F14),$B14,0) -> 0 | LP14: 0 | LQ14: 0 | LR14: 0 | LS14: 0 | LT14: 0 | LU14: 0 | LV14: 0 | LW14: 0 | LX14: 0 | LY14: 0 | LZ14: 0 | MA14: 0 | MB14: 0 | MC14: 0 | MD14: 0 | ME14: 0 | MF14: 0 | MG14: 0 | MH14: 0 | MI14: 0 | MJ14: 0 | MK14: 0 | ML14: 0 | MM14: 0 | MN14: 0 | MO14: 0 | MP14: 0 | MQ14: 0 | MR14: 0 | MS14: 0 | MT14: 0 | MU14: 0 | MV14: 0 | MW14: 0 | MX14: 0 | MY14: 0 | MZ14: 0 | NA14: 0 | NB14: 0 | NC14: 0 | ND14: 0
A15: People choose to walk and cycle | B15: =IF(Calculator!C49=0, Calculator!J48, 0) -> 100 | C15: 1 | D15: 0.05 | E15: 198 | F15: =360 * SUM(D$4:D15) -> 216 | G15: =IF(AND(G$1>=$E15,G$1<=$F15),$B15,0) -> 0 | H15: 0 | I15: 0 | J15: 0 | K15: 0 | L15: 0 | M15: 0 | N15: 0 | O15: 0 | P15: 0 | Q15: =IF(AND(Q$1>=$E15,Q$1<=$F15),$B15,0) -> 0 | R15: 0 | S15: 0 | T15: 0 | U15: 0 | V15: 0 | W15: 0 | X15: 0 | Y15: 0 | Z15: 0 | AA15: =IF(AND(AA$1>=$E15,AA$1<=$F15),$B15,0) -> 0 | AB15: 0 | AC15: 0 | AD15: 0 | AE15: 0 | AF15: 0 | AG15: 0 | AH15: 0 | AI15: 0 | AJ15: 0 | AK15: =IF(AND(AK$1>=$E15,AK$1<=$F15),$B15,0) -> 0 | AL15: 0 | AM15: 0 | AN15: 0 | AO15: 0 | AP15: 0 | AQ15: 0 | AR15: 0 | AS15: 0 | AT15: 0 | AU15: =IF(AND(AU$1>=$E15,AU$1<=$F15),$B15,0) -> 0 | AV15: 0 | AW15: 0 | AX15: 0 | AY15: 0 | AZ15: 0 | BA15: 0 | BB15: 0 | BC15: 0 | BD15: 0 | BE15: =IF(AND(BE$1>=$E15,BE$1<=$F15),$B15,0) -> 0 | BF15: 0 | BG15: 0 | BH15: 0 | BI15: 0 | BJ15: 0 | BK15: 0 | BL15: 0 | BM15: 0 | BN15: 0 | BO15: =IF(AND(BO$1>=$E15,BO$1<=$F15),$B15,0) -> 0 | BP15: 0 | BQ15: 0 | BR15: 0 | BS15: 0 | BT15: 0 | BU15: 0 | BV15: 0 | BW15: 0 | BX15: 0 | BY15: =IF(AND(BY$1>=$E15,BY$1<=$F15),$B15,0) -> 0 | BZ15: 0 | CA15: 0 | CB15: 0 | CC15: 0 | CD15: 0 | CE15: 0 | CF15: 0 | CG15: 0 | CH15: 0 | CI15: =IF(AND(CI$1>=$E15,CI$1<=$F15),$B15,0) -> 0 | CJ15: 0 | CK15: 0 | CL15: 0 | CM15: 0 | CN15: 0 | CO15: 0 | CP15: 0 | CQ15: 0 | CR15: 0 | CS15: =IF(AND(CS$1>=$E15,CS$1<=$F15),$B15,0) -> 0 | CT15: 0 | CU15: 0 | CV15: 0 | CW15: 0 | CX15: 0 | CY15: 0 | CZ15: 0 | DA15: 0 | DB15: 0 | DC15: =IF(AND(DC$1>=$E15,DC$1<=$F15),$B15,0) -> 0 | DD15: 0 | DE15: 0 | DF15: 0 | DG15: 0 | DH15: 0 | DI15: 0 | DJ15: 0 | DK15: 0 | DL15: 0 | DM15: =IF(AND(DM$1>=$E15,DM$1<=$F15),$B15,0) -> 0 | DN15: 0 | DO15: 0 | DP15: 0 | DQ15: 0 | DR15: 0 | DS15: 0 | DT15: 0 | DU15: 0 | DV15: 0 | DW15: =IF(AND(DW$1>=$E15,DW$1<=$F15),$B15,0) -> 0 | DX15: 0 | DY15: 0 | DZ15: 0 | EA15: 0 | EB15: 0 | EC15: 0 | ED15: 0 | EE15: 0 | EF15: 0 | EG15: =IF(AND(EG$1>=$E15,EG$1<=$F15),$B15,0) -> 0 | EH15: 0 | EI15: 0 | EJ15: 0 | EK15: 0 | EL15: 0 | EM15: 0 | EN15: 0 | EO15: 0 | EP15: 0 | EQ15: =IF(AND(EQ$1>=$E15,EQ$1<=$F15),$B15,0) -> 0 | ER15: 0 | ES15: 0 | ET15: 0 | EU15: 0 | EV15: 0 | EW15: 0 | EX15: 0 | EY15: 0 | EZ15: 0 | FA15: =IF(AND(FA$1>=$E15,FA$1<=$F15),$B15,0) -> 0 | FB15: 0 | FC15: 0 | FD15: 0 | FE15: 0 | FF15: 0 | FG15: 0 | FH15: 0 | FI15: 0 | FJ15: 0 | FK15: =IF(AND(FK$1>=$E15,FK$1<=$F15),$B15,0) -> 0 | FL15: 0 | FM15: 0 | FN15: 0 | FO15: 0 | FP15: 0 | FQ15: 0 | FR15: 0 | FS15: 0 | FT15: 0 | FU15: =IF(AND(FU$1>=$E15,FU$1<=$F15),$B15,0) -> 0 | FV15: 0 | FW15: 0 | FX15: 0 | FY15: 0 | FZ15: 0 | GA15: 0 | GB15: 0 | GC15: 0 | GD15: 0 | GE15: =IF(AND(GE$1>=$E15,GE$1<=$F15),$B15,0) -> 0 | GF15: 0 | GG15: 0 | GH15: 0 | GI15: 0 | GJ15: 0 | GK15: 0 | GL15: 0 | GM15: 0 | GN15: 0 | GO15: =IF(AND(GO$1>=$E15,GO$1<=$F15),$B15,0) -> 0 | GP15: 0 | GQ15: 0 | GR15: 0 | GS15: 0 | GT15: 0 | GU15: 0 | GV15: 0 | GW15: 100 | GX15: 100 | GY15: =IF(AND(GY$1>=$E15,GY$1<=$F15),$B15,0) -> 100 | GZ15: 100 | HA15: 100 | HB15: 100 | HC15: 100 | HD15: 100 | HE15: 100 | HF15: 100 | HG15: 100 | HH15: 100 | HI15: =IF(AND(HI$1>=$E15,HI$1<=$F15),$B15,0) -> 100 | HJ15: 100 | HK15: 100 | HL15: 100 | HM15: 100 | HN15: 100 | HO15: 100 | HP15: 0 | HQ15: 0 | HR15: 0 | HS15: =IF(AND(HS$1>=$E15,HS$1<=$F15),$B15,0) -> 0 | HT15: 0 | HU15: 0 | HV15: 0 | HW15: 0 | HX15: 0 | HY15: 0 | HZ15: 0 | IA15: 0 | IB15: 0 | IC15: =IF(AND(IC$1>=$E15,IC$1<=$F15),$B15,0) -> 0 | ID15: 0 | IE15: 0 | IF15: 0 | IG15: 0 | IH15: 0 | II15: 0 | IJ15: 0 | IK15: 0 | IL15: 0 | IM15: =IF(AND(IM$1>=$E15,IM$1<=$F15),$B15,0) -> 0 | IN15: 0 | IO15: 0 | IP15: 0 | IQ15: 0 | IR15: 0 | IS15: 0 | IT15: 0 | IU15: 0 | IV15: 0 | IW15: =IF(AND(IW$1>=$E15,IW$1<=$F15),$B15,0) -> 0 | IX15: 0 | IY15: 0 | IZ15: 0 | JA15: 0 | JB15: 0 | JC15: 0 | JD15: 0 | JE15: 0 | JF15: 0 | JG15: =IF(AND(JG$1>=$E15,JG$1<=$F15),$B15,0) -> 0 | JH15: 0 | JI15: 0 | JJ15: 0 | JK15: 0 | JL15: 0 | JM15: 0 | JN15: 0 | JO15: 0 | JP15: 0 | JQ15: =IF(AND(JQ$1>=$E15,JQ$1<=$F15),$B15,0) -> 0 | JR15: 0 | JS15: 0 | JT15: 0 | JU15: 0 | JV15: 0 | JW15: 0 | JX15: 0 | JY15: 0 | JZ15: 0 | KA15: =IF(AND(KA$1>=$E15,KA$1<=$F15),$B15,0) -> 0 | KB15: 0 | KC15: 0 | KD15: 0 | KE15: 0 | KF15: 0 | KG15: 0 | KH15: 0 | KI15: 0 | KJ15: 0 | KK15: =IF(AND(KK$1>=$E15,KK$1<=$F15),$B15,0) -> 0 | KL15: 0 | KM15: 0 | KN15: 0 | KO15: 0 | KP15: 0 | KQ15: 0 | KR15: 0 | KS15: 0 | KT15: 0 | KU15: =IF(AND(KU$1>=$E15,KU$1<=$F15),$B15,0) -> 0 | KV15: 0 | KW15: 0 | KX15: 0 | KY15: 0 | KZ15: 0 | LA15: 0 | LB15: 0 | LC15: 0 | LD15: 0 | LE15: =IF(AND(LE$1>=$E15,LE$1<=$F15),$B15,0) -> 0 | LF15: 0 | LG15: 0 | LH15: 0 | LI15: 0 | LJ15: 0 | LK15: 0 | LL15: 0 | LM15: 0 | LN15: 0 | LO15: =IF(AND(LO$1>=$E15,LO$1<=$F15),$B15,0) -> 0 | LP15: 0 | LQ15: 0 | LR15: 0 | LS15: 0 | LT15: 0 | LU15: 0 | LV15: 0 | LW15: 0 | LX15: 0 | LY15: =IF(AND(LY$1>=$E15,LY$1<=$F15),$B15,0) -> 0 | LZ15: 0 | MA15: 0 | MB15: 0 | MC15: 0 | MD15: 0 | ME15: 0 | MF15: 0 | MG15: 0 | MH15: 0 | MI15: =IF(AND(MI$1>=$E15,MI$1<=$F15),$B15,0) -> 0 | MJ15: 0 | MK15: 0 | ML15: 0 | MM15: 0 | MN15: 0 | MO15: 0 | MP15: 0 | MQ15: 0 | MR15: 0 | MS15: =IF(AND(MS$1>=$E15,MS$1<=$F15),$B15,0) -> 0 | MT15: 0 | MU15: 0 | MV15: 0 | MW15: 0 | MX15: 0 | MY15: 0 | MZ15: 0 | NA15: 0 | NB15: 0 | NC15: 0 | ND15: 0
A16: People feel safe | B16: =IF(Calculator!C24=0, Calculator!K23, 0) -> 13.88888889 | C16: 1 | D16: 0.05 | E16: 216 | F16: =360 * SUM(D$4:D16) -> 234 | G16: =IF(AND(G$1>=$E16,G$1<=$F16),$B16,0) -> 0 | H16: 0 | I16: 0 | J16: 0 | K16: 0 | L16: 0 | M16: 0 | N16: 0 | O16: 0 | P16: 0 | Q16: 0 | R16: 0 | S16: 0 | T16: 0 | U16: 0 | V16: 0 | W16: 0 | X16: 0 | Y16: 0 | Z16: 0 | AA16: 0 | AB16: 0 | AC16: 0 | AD16: 0 | AE16: 0 | AF16: 0 | AG16: 0 | AH16: 0 | AI16: 0 | AJ16: 0 | AK16: 0 | AL16: 0 | AM16: 0 | AN16: 0 | AO16: 0 | AP16: 0 | AQ16: 0 | AR16: 0 | AS16: 0 | AT16: 0 | AU16: 0 | AV16: 0 | AW16: 0 | AX16: 0 | AY16: 0 | AZ16: 0 | BA16: 0 | BB16: 0 | BC16: 0 | BD16: 0 | BE16: 0 | BF16: 0 | BG16: 0 | BH16: 0 | BI16: 0 | BJ16: 0 | BK16: 0 | BL16: 0 | BM16: 0 | BN16: 0 | BO16: 0 | BP16: 0 | BQ16: 0 | BR16: 0 | BS16: 0 | BT16: 0 | BU16: 0 | BV16: 0 | BW16: 0 | BX16: 0 | BY16: 0 | BZ16: 0 | CA16: 0 | CB16: 0 | CC16: 0 | CD16: 0 | CE16: 0 | CF16: 0 | CG16: 0 | CH16: 0 | CI16: 0 | CJ16: 0 | CK16: 0 | CL16: 0 | CM16: 0 | CN16: 0 | CO16: 0 | CP16: 0 | CQ16: 0 | CR16: 0 | CS16: 0 | CT16: 0 | CU16: 0 | CV16: 0 | CW16: 0 | CX16: 0 | CY16: 0 | CZ16: 0 | DA16: 0 | DB16: 0 | DC16: 0 | DD16: 0 | DE16: 0 | DF16: 0 | DG16: 0 | DH16: 0 | DI16: 0 | DJ16: 0 | DK16: 0 | DL16: 0 | DM16: 0 | DN16: 0 | DO16: 0 | DP16: 0 | DQ16: 0 | DR16: 0 | DS16: 0 | DT16: 0 | DU16: 0 | DV16: 0 | DW16: 0 | DX16: 0 | DY16: 0 | DZ16: 0 | EA16: 0 | EB16: 0 | EC16: 0 | ED16: 0 | EE16: 0 | EF16: 0 | EG16: 0 | EH16: 0 | EI16: 0 | EJ16: 0 | EK16: 0 | EL16: 0 | EM16: 0 | EN16: 0 | EO16: 0 | EP16: 0 | EQ16: 0 | ER16: 0 | ES16: 0 | ET16: 0 | EU16: 0 | EV16: 0 | EW16: 0 | EX16: 0 | EY16: 0 | EZ16: 0 | FA16: 0 | FB16: 0 | FC16: 0 | FD16: 0 | FE16: 0 | FF16: 0 | FG16: 0 | FH16: 0 | FI16: 0 | FJ16: 0 | FK16: 0 | FL16: 0 | FM16: 0 | FN16: 0 | FO16: 0 | FP16: 0 | FQ16: 0 | FR16: 0 | FS16: 0 | FT16: 0 | FU16: 0 | FV16: 0 | FW16: 0 | FX16: 0 | FY16: 0 | FZ16: 0 | GA16: 0 | GB16: 0 | GC16: 0 | GD16: 0 | GE16: 0 | GF16: 0 | GG16: 0 | GH16: 0 | GI16: 0 | GJ16: 0 | GK16: 0 | GL16: 0 | GM16: 0 | GN16: 0 | GO16: 0 | GP16: 0 | GQ16: 0 | GR16: 0 | GS16: 0 | GT16: 0 | GU16: 0 | GV16: 0 | GW16: 0 | GX16: 0 | GY16: 0 | GZ16: 0 | HA16: 0 | HB16: 0 | HC16: 0 | HD16: 0 | HE16: 0 | HF16: 0 | HG16: 0 | HH16: 0 | HI16: 0 | HJ16: 0 | HK16: 0 | HL16: 0 | HM16: 0 | HN16: 0 | HO16: 13.88888889 | HP16: 13.88888889 | HQ16: 13.88888889 | HR16: 13.88888889 | HS16: 13.88888889 | HT16: 13.88888889 | HU16: 13.88888889 | HV16: 13.88888889 | HW16: 13.88888889 | HX16: 13.88888889 | HY16: 13.88888889 | HZ16: 13.88888889 | IA16: 13.88888889 | IB16: 13.88888889 | IC16: 13.88888889 | ID16: 13.88888889 | IE16: 13.88888889 | IF16: 13.88888889 | IG16: 13.88888889 | IH16: 0 | II16: 0 | IJ16: 0 | IK16: 0 | IL16: 0 | IM16: 0 | IN16: 0 | IO16: 0 | IP16: 0 | IQ16: 0 | IR16: 0 | IS16: 0 | IT16: 0 | IU16: 0 | IV16: 0 | IW16: 0 | IX16: 0 | IY16: 0 | IZ16: 0 | JA16: 0 | JB16: 0 | JC16: 0 | JD16: 0 | JE16: 0 | JF16: 0 | JG16: 0 | JH16: 0 | JI16: 0 | JJ16: 0 | JK16: 0 | JL16: 0 | JM16: 0 | JN16: 0 | JO16: 0 | JP16: 0 | JQ16: 0 | JR16: 0 | JS16: 0 | JT16: 0 | JU16: 0 | JV16: 0 | JW16: 0 | JX16: 0 | JY16: 0 | JZ16: 0 | KA16: 0 | KB16: 0 | KC16: 0 | KD16: 0 | KE16: 0 | KF16: 0 | KG16: 0 | KH16: 0 | KI16: 0 | KJ16: 0 | KK16: 0 | KL16: 0 | KM16: 0 | KN16: 0 | KO16: 0 | KP16: 0 | KQ16: 0 | KR16: 0 | KS16: 0 | KT16: 0 | KU16: 0 | KV16: 0 | KW16: 0 | KX16: 0 | KY16: 0 | KZ16: 0 | LA16: 0 | LB16: 0 | LC16: 0 | LD16: 0 | LE16: 0 | LF16: 0 | LG16: 0 | LH16: 0 | LI16: 0 | LJ16: 0 | LK16: 0 | LL16: 0 | LM16: 0 | LN16: 0 | LO16: 0 | LP16: 0 | LQ16: 0 | LR16: 0 | LS16: 0 | LT16: 0 | LU16: 0 | LV16: 0 | LW16: 0 | LX16: 0 | LY16: 0 | LZ16: 0 | MA16: 0 | MB16: 0 | MC16: 0 | MD16: 0 | ME16: 0 | MF16: 0 | MG16: 0 | MH16: 0 | MI16: 0 | MJ16: 0 | MK16: 0 | ML16: 0 | MM16: 0 | MN16: 0 | MO16: 0 | MP16: 0 | MQ16: 0 | MR16: 0 | MS16: 0 | MT16: 0 | MU16: 0 | MV16: 0 | MW16: 0 | MX16: 0 | MY16: 0 | MZ16: 0 | NA16: 0 | NB16: 0 | NC16: 0 | ND16: 0
A17: People feel safe | B17: =IF(Calculator!C49=0, Calculator!K48, 0) -> 100 | C17: 1 | D17: 0.05 | E17: 234 | F17: =360 * SUM(D$4:D17) -> 252 | G17: 0 | H17: 0 | I17: 0 | J17: 0 | K17: 0 | L17: 0 | M17: 0 | N17: 0 | O17: 0 | P17: 0 | Q17: 0 | R17: 0 | S17: 0 | T17: 0 | U17: 0 | V17: 0 | W17: 0 | X17: 0 | Y17: 0 | Z17: 0 | AA17: 0 | AB17: 0 | AC17: 0 | AD17: 0 | AE17: 0 | AF17: 0 | AG17: 0 | AH17: 0 | AI17: 0 | AJ17: 0 | AK17: 0 | AL17: 0 | AM17: 0 | AN17: 0 | AO17: 0 | AP17: 0 | AQ17: 0 | AR17: 0 | AS17: 0 | AT17: 0 | AU17: 0 | AV17: 0 | AW17: 0 | AX17: 0 | AY17: 0 | AZ17: 0 | BA17: 0 | BB17: 0 | BC17: 0 | BD17: 0 | BE17: 0 | BF17: 0 | BG17: 0 | BH17: 0 | BI17: 0 | BJ17: 0 | BK17: 0 | BL17: 0 | BM17: 0 | BN17: 0 | BO17: 0 | BP17: 0 | BQ17: 0 | BR17: 0 | BS17: 0 | BT17: 0 | BU17: 0 | BV17: 0 | BW17: 0 | BX17: 0 | BY17: 0 | BZ17: 0 | CA17: 0 | CB17: 0 | CC17: 0 | CD17: 0 | CE17: 0 | CF17: 0 | CG17: 0 | CH17: 0 | CI17: 0 | CJ17: 0 | CK17: 0 | CL17: 0 | CM17: 0 | CN17: 0 | CO17: 0 | CP17: 0 | CQ17: 0 | CR17: 0 | CS17: 0 | CT17: 0 | CU17: 0 | CV17: 0 | CW17: 0 | CX17: 0 | CY17: 0 | CZ17: 0 | DA17: 0 | DB17: 0 | DC17: 0 | DD17: 0 | DE17: 0 | DF17: 0 | DG17: 0 | DH17: 0 | DI17: 0 | DJ17: 0 | DK17: 0 | DL17: 0 | DM17: 0 | DN17: 0 | DO17: 0 | DP17: 0 | DQ17: 0 | DR17: 0 | DS17: 0 | DT17: 0 | DU17: 0 | DV17: 0 | DW17: 0 | DX17: 0 | DY17: 0 | DZ17: 0 | EA17: 0 | EB17: 0 | EC17: 0 | ED17: 0 | EE17: 0 | EF17: 0 | EG17: 0 | EH17: 0 | EI17: 0 | EJ17: 0 | EK17: 0 | EL17: 0 | EM17: 0 | EN17: 0 | EO17: 0 | EP17: 0 | EQ17: 0 | ER17: 0 | ES17: 0 | ET17: 0 | EU17: 0 | EV17: 0 | EW17: 0 | EX17: 0 | EY17: 0 | EZ17: 0 | FA17: 0 | FB17: 0 | FC17: 0 | FD17: 0 | FE17: 0 | FF17: 0 | FG17: 0 | FH17: 0 | FI17: 0 | FJ17: 0 | FK17: 0 | FL17: 0 | FM17: 0 | FN17: 0 | FO17: 0 | FP17: 0 | FQ17: 0 | FR17: 0 | FS17: 0 | FT17: 0 | FU17: 0 | FV17: 0 | FW17: 0 | FX17: 0 | FY17: 0 | FZ17: 0 | GA17: 0 | GB17: 0 | GC17: 0 | GD17: 0 | GE17: 0 | GF17: 0 | GG17: 0 | GH17: 0 | GI17: 0 | GJ17: 0 | GK17: 0 | GL17: 0 | GM17: 0 | GN17: 0 | GO17: 0 | GP17: 0 | GQ17: 0 | GR17: 0 | GS17: 0 | GT17: 0 | GU17: 0 | GV17: 0 | GW17: 0 | GX17: 0 | GY17: 0 | GZ17: 0 | HA17: 0 | HB17: 0 | HC17: 0 | HD17: 0 | HE17: 0 | HF17: 0 | HG17: 0 | HH17: 0 | HI17: 0 | HJ17: 0 | HK17: 0 | HL17: 0 | HM17: 0 | HN17: 0 | HO17: 0 | HP17: 0 | HQ17: 0 | HR17: 0 | HS17: 0 | HT17: 0 | HU17: 0 | HV17: 0 | HW17: 0 | HX17: 0 | HY17: 0 | HZ17: 0 | IA17: 0 | IB17: 0 | IC17: 0 | ID17: 0 | IE17: 0 | IF17: 0 | IG17: 100 | IH17: 100 | II17: 100 | IJ17: 100 | IK17: 100 | IL17: 100 | IM17: 100 | IN17: 100 | IO17: 100 | IP17: 100 | IQ17: 100 | IR17: 100 | IS17: 100 | IT17: 100 | IU17: 100 | IV17: 100 | IW17: 100 | IX17: 100 | IY17: 100 | IZ17: 0 | JA17: 0 | JB17: 0 | JC17: 0 | JD17: 0 | JE17: 0 | JF17: 0 | JG17: 0 | JH17: 0 | JI17: 0 | JJ17: 0 | JK17: 0 | JL17: 0 | JM17: 0 | JN17: 0 | JO17: 0 | JP17: 0 | JQ17: 0 | JR17: 0 | JS17: 0 | JT17: 0 | JU17: 0 | JV17: 0 | JW17: 0 | JX17: 0 | JY17: 0 | JZ17: 0 | KA17: 0 | KB17: 0 | KC17: 0 | KD17: 0 | KE17: 0 | KF17: 0 | KG17: 0 | KH17: 0 | KI17: 0 | KJ17: 0 | KK17: 0 | KL17: 0 | KM17: 0 | KN17: 0 | KO17: 0 | KP17: 0 | KQ17: 0 | KR17: 0 | KS17: 0 | KT17: 0 | KU17: 0 | KV17: 0 | KW17: 0 | KX17: 0 | KY17: 0 | KZ17: 0 | LA17: 0 | LB17: 0 | LC17: 0 | LD17: 0 | LE17: 0 | LF17: 0 | LG17: 0 | LH17: 0 | LI17: 0 | LJ17: 0 | LK17: 0 | LL17: 0 | LM17: 0 | LN17: 0 | LO17: 0 | LP17: 0 | LQ17: 0 | LR17: 0 | LS17: 0 | LT17: 0 | LU17: 0 | LV17: 0 | LW17: 0 | LX17: 0 | LY17: 0 | LZ17: 0 | MA17: 0 | MB17: 0 | MC17: 0 | MD17: 0 | ME17: 0 | MF17: 0 | MG17: 0 | MH17: 0 | MI17: 0 | MJ17: 0 | MK17: 0 | ML17: 0 | MM17: 0 | MN17: 0 | MO17: 0 | MP17: 0 | MQ17: 0 | MR17: 0 | MS17: 0 | MT17: 0 | MU17: 0 | MV17: 0 | MW17: 0 | MX17: 0 | MY17: 0 | MZ17: 0 | NA17: 0 | NB17: 0 | NC17: 0 | ND17: 0
A18: Things to see and do | B18: =IF(Calculator!C24=0, Calculator!L23, 0) -> 41.66666667 | C18: 1 | D18: 0.05 | E18: 252 | F18: =360 * SUM(D$4:D18) -> 270 | G18: =IF(AND(G$1>=$E18,G$1<=$F18),$B18,0) -> 0 | H18: 0 | I18: 0 | J18: 0 | K18: 0 | L18: 0 | M18: 0 | N18: 0 | O18: 0 | P18: 0 | Q18: 0 | R18: 0 | S18: 0 | T18: 0 | U18: 0 | V18: 0 | W18: 0 | X18: 0 | Y18: 0 | Z18: 0 | AA18: 0 | AB18: 0 | AC18: 0 | AD18: 0 | AE18: 0 | AF18: 0 | AG18: 0 | AH18: 0 | AI18: 0 | AJ18: 0 | AK18: 0 | AL18: 0 | AM18: 0 | AN18: 0 | AO18: 0 | AP18: 0 | AQ18: 0 | AR18: 0 | AS18: 0 | AT18: 0 | AU18: 0 | AV18: 0 | AW18: 0 | AX18: 0 | AY18: 0 | AZ18: 0 | BA18: 0 | BB18: 0 | BC18: 0 | BD18: 0 | BE18: 0 | BF18: 0 | BG18: 0 | BH18: 0 | BI18: 0 | BJ18: 0 | BK18: 0 | BL18: 0 | BM18: 0 | BN18: 0 | BO18: 0 | BP18: 0 | BQ18: 0 | BR18: 0 | BS18: 0 | BT18: 0 | BU18: 0 | BV18: 0 | BW18: 0 | BX18: 0 | BY18: 0 | BZ18: 0 | CA18: 0 | CB18: 0 | CC18: 0 | CD18: 0 | CE18: 0 | CF18: 0 | CG18: 0 | CH18: 0 | CI18: 0 | CJ18: 0 | CK18: 0 | CL18: 0 | CM18: 0 | CN18: 0 | CO18: 0 | CP18: 0 | CQ18: 0 | CR18: 0 | CS18: 0 | CT18: 0 | CU18: 0 | CV18: 0 | CW18: 0 | CX18: 0 | CY18: 0 | CZ18: 0 | DA18: 0 | DB18: 0 | DC18: 0 | DD18: 0 | DE18: 0 | DF18: 0 | DG18: 0 | DH18: 0 | DI18: 0 | DJ18: 0 | DK18: 0 | DL18: 0 | DM18: 0 | DN18: 0 | DO18: 0 | DP18: 0 | DQ18: 0 | DR18: 0 | DS18: 0 | DT18: 0 | DU18: 0 | DV18: 0 | DW18: 0 | DX18: 0 | DY18: 0 | DZ18: 0 | EA18: 0 | EB18: 0 | EC18: 0 | ED18: 0 | EE18: 0 | EF18: 0 | EG18: 0 | EH18: 0 | EI18: 0 | EJ18: 0 | EK18: 0 | EL18: 0 | EM18: 0 | EN18: 0 | EO18: 0 | EP18: 0 | EQ18: 0 | ER18: 0 | ES18: 0 | ET18: 0 | EU18: 0 | EV18: 0 | EW18: 0 | EX18: 0 | EY18: 0 | EZ18: 0 | FA18: 0 | FB18: 0 | FC18: 0 | FD18: 0 | FE18: 0 | FF18: 0 | FG18: 0 | FH18: 0 | FI18: 0 | FJ18: 0 | FK18: 0 | FL18: 0 | FM18: 0 | FN18: 0 | FO18: 0 | FP18: 0 | FQ18: 0 | FR18: 0 | FS18: 0 | FT18: 0 | FU18: 0 | FV18: 0 | FW18: 0 | FX18: 0 | FY18: 0 | FZ18: 0 | GA18: 0 | GB18: 0 | GC18: 0 | GD18: 0 | GE18: 0 | GF18: 0 | GG18: 0 | GH18: 0 | GI18: 0 | GJ18: 0 | GK18: 0 | GL18: 0 | GM18: 0 | GN18: 0 | GO18: 0 | GP18: 0 | GQ18: 0 | GR18: 0 | GS18: 0 | GT18: 0 | GU18: 0 | GV18: 0 | GW18: 0 | GX18: 0 | GY18: 0 | GZ18: 0 | HA18: 0 | HB18: 0 | HC18: 0 | HD18: 0 | HE18: 0 | HF18: 0 | HG18: 0 | HH18: 0 | HI18: 0 | HJ18: 0 | HK18: 0 | HL18: 0 | HM18: 0 | HN18: 0 | HO18: 0 | HP18: 0 | HQ18: 0 | HR18: 0 | HS18: 0 | HT18: 0 | HU18: 0 | HV18: 0 | HW18: 0 | HX18: 0 | HY18: 0 | HZ18: 0 | IA18: 0 | IB18: 0 | IC18: 0 | ID18: 0 | IE18: 0 | IF18: 0 | IG18: 0 | IH18: 0 | II18: 0 | IJ18: 0 | IK18: 0 | IL18: 0 | IM18: 0 | IN18: 0 | IO18: 0 | IP18: 0 | IQ18: 0 | IR18: 0 | IS18: 0 | IT18: 0 | IU18: 0 | IV18: 0 | IW18: 0 | IX18: 0 | IY18: 41.66666667 | IZ18: 41.66666667 | JA18: 41.66666667 | JB18: 41.66666667 | JC18: 41.66666667 | JD18: 41.66666667 | JE18: 41.66666667 | JF18: 41.66666667 | JG18: 41.66666667 | JH18: 41.66666667 | JI18: 41.66666667 | JJ18: 41.66666667 | JK18: 41.66666667 | JL18: 41.66666667 | JM18: 41.66666667 | JN18: 41.66666667 | JO18: 41.66666667 | JP18: 41.66666667 | JQ18: 41.66666667 | JR18: 0 | JS18: 0 | JT18: 0 | JU18: 0 | JV18: 0 | JW18: 0 | JX18: 0 | JY18: 0 | JZ18: 0 | KA18: 0 | KB18: 0 | KC18: 0 | KD18: 0 | KE18: 0 | KF18: 0 | KG18: 0 | KH18: 0 | KI18: 0 | KJ18: 0 | KK18: 0 | KL18: 0 | KM18: 0 | KN18: 0 | KO18: 0 | KP18: 0 | KQ18: 0 | KR18: 0 | KS18: 0 | KT18: 0 | KU18: 0 | KV18: 0 | KW18: 0 | KX18: 0 | KY18: 0 | KZ18: 0 | LA18: 0 | LB18: 0 | LC18: 0 | LD18: 0 | LE18: 0 | LF18: 0 | LG18: 0 | LH18: 0 | LI18: 0 | LJ18: 0 | LK18: 0 | LL18: 0 | LM18: 0 | LN18: 0 | LO18: 0 | LP18: 0 | LQ18: 0 | LR18: 0 | LS18: 0 | LT18: 0 | LU18: 0 | LV18: 0 | LW18: 0 | LX18: 0 | LY18: 0 | LZ18: 0 | MA18: 0 | MB18: 0 | MC18: 0 | MD18: 0 | ME18: 0 | MF18: 0 | MG18: 0 | MH18: 0 | MI18: 0 | MJ18: 0 | MK18: 0 | ML18: 0 | MM18: 0 | MN18: 0 | MO18: 0 | MP18: 0 | MQ18: 0 | MR18: 0 | MS18: 0 | MT18: 0 | MU18: 0 | MV18: 0 | MW18: 0 | MX18: 0 | MY18: 0 | MZ18: 0 | NA18: 0 | NB18: 0 | NC18: 0 | ND18: 0
A19: Things to see and do | B19: =IF(Calculator!C49=0, Calculator!L48, 0) -> 100 | C19: 1 | D19: 0.05 | E19: 270 | F19: =360 * SUM(D$4:D19) -> 288 | G19: 0 | H19: 0 | I19: 0 | J19: 0 | K19: 0 | L19: 0 | M19: 0 | N19: 0 | O19: 0 | P19: 0 | Q19: 0 | R19: 0 | S19: 0 | T19: 0 | U19: 0 | V19: 0 | W19: 0 | X19: 0 | Y19: 0 | Z19: 0 | AA19: 0 | AB19: 0 | AC19: 0 | AD19: 0 | AE19: 0 | AF19: 0 | AG19: 0 | AH19: 0 | AI19: 0 | AJ19: 0 | AK19: 0 | AL19: 0 | AM19: 0 | AN19: 0 | AO19: 0 | AP19: 0 | AQ19: 0 | AR19: 0 | AS19: 0 | AT19: 0 | AU19: 0 | AV19: 0 | AW19: 0 | AX19: 0 | AY19: 0 | AZ19: 0 | BA19: 0 | BB19: 0 | BC19: 0 | BD19: 0 | BE19: 0 | BF19: 0 | BG19: 0 | BH19: 0 | BI19: 0 | BJ19: 0 | BK19: 0 | BL19: 0 | BM19: 0 | BN19: 0 | BO19: 0 | BP19: 0 | BQ19: 0 | BR19: 0 | BS19: 0 | BT19: 0 | BU19: 0 | BV19: 0 | BW19: 0 | BX19: 0 | BY19: 0 | BZ19: 0 | CA19: 0 | CB19: 0 | CC19: 0 | CD19: 0 | CE19: 0 | CF19: 0 | CG19: 0 | CH19: 0 | CI19: 0 | CJ19: 0 | CK19: 0 | CL19: 0 | CM19: 0 | CN19: 0 | CO19: 0 | CP19: 0 | CQ19: 0 | CR19: 0 | CS19: 0 | CT19: 0 | CU19: 0 | CV19: 0 | CW19: 0 | CX19: 0 | CY19: 0 | CZ19: 0 | DA19: 0 | DB19: 0 | DC19: 0 | DD19: 0 | DE19: 0 | DF19: 0 | DG19: 0 | DH19: 0 | DI19: 0 | DJ19: 0 | DK19: 0 | DL19: 0 | DM19: 0 | DN19: 0 | DO19: 0 | DP19: 0 | DQ19: 0 | DR19: 0 | DS19: 0 | DT19: 0 | DU19: 0 | DV19: 0 | DW19: 0 | DX19: 0 | DY19: 0 | DZ19: 0 | EA19: 0 | EB19: 0 | EC19: 0 | ED19: 0 | EE19: 0 | EF19: 0 | EG19: 0 | EH19: 0 | EI19: 0 | EJ19: 0 | EK19: 0 | EL19: 0 | EM19: 0 | EN19: 0 | EO19: 0 | EP19: 0 | EQ19: 0 | ER19: 0 | ES19: 0 | ET19: 0 | EU19: 0 | EV19: 0 | EW19: 0 | EX19: 0 | EY19: 0 | EZ19: 0 | FA19: 0 | FB19: 0 | FC19: 0 | FD19: 0 | FE19: 0 | FF19: 0 | FG19: 0 | FH19: 0 | FI19: 0 | FJ19: 0 | FK19: 0 | FL19: 0 | FM19: 0 | FN19: 0 | FO19: 0 | FP19: 0 | FQ19: 0 | FR19: 0 | FS19: 0 | FT19: 0 | FU19: 0 | FV19: 0 | FW19: 0 | FX19: 0 | FY19: 0 | FZ19: 0 | GA19: 0 | GB19: 0 | GC19: 0 | GD19: 0 | GE19: 0 | GF19: 0 | GG19: 0 | GH19: 0 | GI19: 0 | GJ19: 0 | GK19: 0 | GL19: 0 | GM19: 0 | GN19: 0 | GO19: 0 | GP19: 0 | GQ19: 0 | GR19: 0 | GS19: 0 | GT19: 0 | GU19: 0 | GV19: 0 | GW19: 0 | GX19: 0 | GY19: 0 | GZ19: 0 | HA19: 0 | HB19: 0 | HC19: 0 | HD19: 0 | HE19: 0 | HF19: 0 | HG19: 0 | HH19: 0 | HI19: 0 | HJ19: 0 | HK19: 0 | HL19: 0 | HM19: 0 | HN19: 0 | HO19: 0 | HP19: 0 | HQ19: 0 | HR19: 0 | HS19: 0 | HT19: 0 | HU19: 0 | HV19: 0 | HW19: 0 | HX19: 0 | HY19: 0 | HZ19: 0 | IA19: 0 | IB19: 0 | IC19: 0 | ID19: 0 | IE19: 0 | IF19: 0 | IG19: 0 | IH19: 0 | II19: 0 | IJ19: 0 | IK19: 0 | IL19: 0 | IM19: 0 | IN19: 0 | IO19: 0 | IP19: 0 | IQ19: 0 | IR19: 0 | IS19: 0 | IT19: 0 | IU19: 0 | IV19: 0 | IW19: 0 | IX19: 0 | IY19: 0 | IZ19: 0 | JA19: 0 | JB19: 0 | JC19: 0 | JD19: 0 | JE19: 0 | JF19: 0 | JG19: 0 | JH19: 0 | JI19: 0 | JJ19: 0 | JK19: 0 | JL19: 0 | JM19: 0 | JN19: 0 | JO19: 0 | JP19: 0 | JQ19: 100 | JR19: 100 | JS19: 100 | JT19: 100 | JU19: 100 | JV19: 100 | JW19: 100 | JX19: 100 | JY19: 100 | JZ19: 100 | KA19: 100 | KB19: 100 | KC19: 100 | KD19: 100 | KE19: 100 | KF19: 100 | KG19: 100 | KH19: 100 | KI19: 100 | KJ19: 0 | KK19: 0 | KL19: 0 | KM19: 0 | KN19: 0 | KO19: 0 | KP19: 0 | KQ19: 0 | KR19: 0 | KS19: 0 | KT19: 0 | KU19: 0 | KV19: 0 | KW19: 0 | KX19: 0 | KY19: 0 | KZ19: 0 | LA19: 0 | LB19: 0 | LC19: 0 | LD19: 0 | LE19: 0 | LF19: 0 | LG19: 0 | LH19: 0 | LI19: 0 | LJ19: 0 | LK19: 0 | LL19: 0 | LM19: 0 | LN19: 0 | LO19: 0 | LP19: 0 | LQ19: 0 | LR19: 0 | LS19: 0 | LT19: 0 | LU19: 0 | LV19: 0 | LW19: 0 | LX19: 0 | LY19: 0 | LZ19: 0 | MA19: 0 | MB19: 0 | MC19: 0 | MD19: 0 | ME19: 0 | MF19: 0 | MG19: 0 | MH19: 0 | MI19: 0 | MJ19: 0 | MK19: 0 | ML19: 0 | MM19: 0 | MN19: 0 | MO19: 0 | MP19: 0 | MQ19: 0 | MR19: 0 | MS19: 0 | MT19: 0 | MU19: 0 | MV19: 0 | MW19: 0 | MX19: 0 | MY19: 0 | MZ19: 0 | NA19: 0 | NB19: 0 | NC19: 0 | ND19: 0
A20: People feel relaxed | B20: =IF(Calculator!C24=0, Calculator!M23, 0) -> 22.22222222 | C20: 1 | D20: 0.05 | E20: 288 | F20: =360 * SUM(D$4:D20) -> 306 | G20: =IF(AND(G$1>=$E20,G$1<=$F20),$B20,0) -> 0 | H20: 0 | I20: 0 | J20: 0 | K20: 0 | L20: 0 | M20: 0 | N20: 0 | O20: 0 | P20: 0 | Q20: 0 | R20: 0 | S20: 0 | T20: 0 | U20: 0 | V20: 0 | W20: 0 | X20: 0 | Y20: 0 | Z20: 0 | AA20: 0 | AB20: 0 | AC20: 0 | AD20: 0 | AE20: 0 | AF20: 0 | AG20: 0 | AH20: 0 | AI20: 0 | AJ20: 0 | AK20: 0 | AL20: 0 | AM20: 0 | AN20: 0 | AO20: 0 | AP20: 0 | AQ20: 0 | AR20: 0 | AS20: 0 | AT20: 0 | AU20: 0 | AV20: 0 | AW20: 0 | AX20: 0 | AY20: 0 | AZ20: 0 | BA20: 0 | BB20: 0 | BC20: 0 | BD20: 0 | BE20: 0 | BF20: 0 | BG20: 0 | BH20: 0 | BI20: 0 | BJ20: 0 | BK20: 0 | BL20: 0 | BM20: 0 | BN20: 0 | BO20: 0 | BP20: 0 | BQ20: 0 | BR20: 0 | BS20: 0 | BT20: 0 | BU20: 0 | BV20: 0 | BW20: 0 | BX20: 0 | BY20: 0 | BZ20: 0 | CA20: 0 | CB20: 0 | CC20: 0 | CD20: 0 | CE20: 0 | CF20: 0 | CG20: 0 | CH20: 0 | CI20: 0 | CJ20: 0 | CK20: 0 | CL20: 0 | CM20: 0 | CN20: 0 | CO20: 0 | CP20: 0 | CQ20: 0 | CR20: 0 | CS20: 0 | CT20: 0 | CU20: 0 | CV20: 0 | CW20: 0 | CX20: 0 | CY20: 0 | CZ20: 0 | DA20: 0 | DB20: 0 | DC20: 0 | DD20: 0 | DE20: 0 | DF20: 0 | DG20: 0 | DH20: 0 | DI20: 0 | DJ20: 0 | DK20: 0 | DL20: 0 | DM20: 0 | DN20: 0 | DO20: 0 | DP20: 0 | DQ20: 0 | DR20: 0 | DS20: 0 | DT20: 0 | DU20: 0 | DV20: 0 | DW20: 0 | DX20: 0 | DY20: 0 | DZ20: 0 | EA20: 0 | EB20: 0 | EC20: 0 | ED20: 0 | EE20: 0 | EF20: 0 | EG20: 0 | EH20: 0 | EI20: 0 | EJ20: 0 | EK20: 0 | EL20: 0 | EM20: 0 | EN20: 0 | EO20: 0 | EP20: 0 | EQ20: 0 | ER20: 0 | ES20: 0 | ET20: 0 | EU20: 0 | EV20: 0 | EW20: 0 | EX20: 0 | EY20: 0 | EZ20: 0 | FA20: 0 | FB20: 0 | FC20: 0 | FD20: 0 | FE20: 0 | FF20: 0 | FG20: 0 | FH20: 0 | FI20: 0 | FJ20: 0 | FK20: 0 | FL20: 0 | FM20: 0 | FN20: 0 | FO20: 0 | FP20: 0 | FQ20: 0 | FR20: 0 | FS20: 0 | FT20: 0 | FU20: 0 | FV20: 0 | FW20: 0 | FX20: 0 | FY20: 0 | FZ20: 0 | GA20: 0 | GB20: 0 | GC20: 0 | GD20: 0 | GE20: 0 | GF20: 0 | GG20: 0 | GH20: 0 | GI20: 0 | GJ20: 0 | GK20: 0 | GL20: 0 | GM20: 0 | GN20: 0 | GO20: 0 | GP20: 0 | GQ20: 0 | GR20: 0 | GS20: 0 | GT20: 0 | GU20: 0 | GV20: 0 | GW20: 0 | GX20: 0 | GY20: 0 | GZ20: 0 | HA20: 0 | HB20: 0 | HC20: 0 | HD20: 0 | HE20: 0 | HF20: 0 | HG20: 0 | HH20: 0 | HI20: 0 | HJ20: 0 | HK20: 0 | HL20: 0 | HM20: 0 | HN20: 0 | HO20: 0 | HP20: 0 | HQ20: 0 | HR20: 0 | HS20: 0 | HT20: 0 | HU20: 0 | HV20: 0 | HW20: 0 | HX20: 0 | HY20: 0 | HZ20: 0 | IA20: 0 | IB20: 0 | IC20: 0 | ID20: 0 | IE20: 0 | IF20: 0 | IG20: 0 | IH20: 0 | II20: 0 | IJ20: 0 | IK20: 0 | IL20: 0 | IM20: 0 | IN20: 0 | IO20: 0 | IP20: 0 | IQ20: 0 | IR20: 0 | IS20: 0 | IT20: 0 | IU20: 0 | IV20: 0 | IW20: 0 | IX20: 0 | IY20: 0 | IZ20: 0 | JA20: 0 | JB20: 0 | JC20: 0 | JD20: 0 | JE20: 0 | JF20: 0 | JG20: 0 | JH20: 0 | JI20: 0 | JJ20: 0 | JK20: 0 | JL20: 0 | JM20: 0 | JN20: 0 | JO20: 0 | JP20: 0 | JQ20: 0 | JR20: 0 | JS20: 0 | JT20: 0 | JU20: 0 | JV20: 0 | JW20: 0 | JX20: 0 | JY20: 0 | JZ20: 0 | KA20: 0 | KB20: 0 | KC20: 0 | KD20: 0 | KE20: 0 | KF20: 0 | KG20: 0 | KH20: 0 | KI20: 22.22222222 | KJ20: 22.22222222 | KK20: 22.22222222 | KL20: 22.22222222 | KM20: 22.22222222 | KN20: 22.22222222 | KO20: 22.22222222 | KP20: 22.22222222 | KQ20: 22.22222222 | KR20: 22.22222222 | KS20: 22.22222222 | KT20: 22.22222222 | KU20: 22.22222222 | KV20: 22.22222222 | KW20: 22.22222222 | KX20: 22.22222222 | KY20: 22.22222222 | KZ20: 22.22222222 | LA20: 22.22222222 | LB20: 0 | LC20: 0 | LD20: 0 | LE20: 0 | LF20: 0 | LG20: 0 | LH20: 0 | LI20: 0 | LJ20: 0 | LK20: 0 | LL20: 0 | LM20: 0 | LN20: 0 | LO20: 0 | LP20: 0 | LQ20: 0 | LR20: 0 | LS20: 0 | LT20: 0 | LU20: 0 | LV20: 0 | LW20: 0 | LX20: 0 | LY20: 0 | LZ20: 0 | MA20: 0 | MB20: 0 | MC20: 0 | MD20: 0 | ME20: 0 | MF20: 0 | MG20: 0 | MH20: 0 | MI20: 0 | MJ20: 0 | MK20: 0 | ML20: 0 | MM20: 0 | MN20: 0 | MO20: 0 | MP20: 0 | MQ20: 0 | MR20: 0 | MS20: 0 | MT20: 0 | MU20: 0 | MV20: 0 | MW20: 0 | MX20: 0 | MY20: 0 | MZ20: 0 | NA20: 0 | NB20: 0 | NC20: 0 | ND20: 0
A21: People feel relaxed | B21: =IF(Calculator!C49=0, Calculator!M48, 0) -> 100 | C21: 1 | D21: 0.05 | E21: 306 | F21: =360 * SUM(D$4:D21) -> 324 | G21: 0 | H21: 0 | I21: 0 | J21: 0 | K21: 0 | L21: 0 | M21: 0 | N21: 0 | O21: 0 | P21: 0 | Q21: 0 | R21: 0 | S21: 0 | T21: 0 | U21: 0 | V21: 0 | W21: 0 | X21: 0 | Y21: 0 | Z21: 0 | AA21: 0 | AB21: 0 | AC21: 0 | AD21: 0 | AE21: 0 | AF21: 0 | AG21: 0 | AH21: 0 | AI21: 0 | AJ21: 0 | AK21: 0 | AL21: 0 | AM21: 0 | AN21: 0 | AO21: 0 | AP21: 0 | AQ21: 0 | AR21: 0 | AS21: 0 | AT21: 0 | AU21: 0 | AV21: 0 | AW21: 0 | AX21: 0 | AY21: 0 | AZ21: 0 | BA21: 0 | BB21: 0 | BC21: 0 | BD21: 0 | BE21: 0 | BF21: 0 | BG21: 0 | BH21: 0 | BI21: 0 | BJ21: 0 | BK21: 0 | BL21: 0 | BM21: 0 | BN21: 0 | BO21: 0 | BP21: 0 | BQ21: 0 | BR21: 0 | BS21: 0 | BT21: 0 | BU21: 0 | BV21: 0 | BW21: 0 | BX21: 0 | BY21: 0 | BZ21: 0 | CA21: 0 | CB21: 0 | CC21: 0 | CD21: 0 | CE21: 0 | CF21: 0 | CG21: 0 | CH21: 0 | CI21: 0 | CJ21: 0 | CK21: 0 | CL21: 0 | CM21: 0 | CN21: 0 | CO21: 0 | CP21: 0 | CQ21: 0 | CR21: 0 | CS21: 0 | CT21: 0 | CU21: 0 | CV21: 0 | CW21: 0 | CX21: 0 | CY21: 0 | CZ21: 0 | DA21: 0 | DB21: 0 | DC21: 0 | DD21: 0 | DE21: 0 | DF21: 0 | DG21: 0 | DH21: 0 | DI21: 0 | DJ21: 0 | DK21: 0 | DL21: 0 | DM21: 0 | DN21: 0 | DO21: 0 | DP21: 0 | DQ21: 0 | DR21: 0 | DS21: 0 | DT21: 0 | DU21: 0 | DV21: 0 | DW21: 0 | DX21: 0 | DY21: 0 | DZ21: 0 | EA21: 0 | EB21: 0 | EC21: 0 | ED21: 0 | EE21: 0 | EF21: 0 | EG21: 0 | EH21: 0 | EI21: 0 | EJ21: 0 | EK21: 0 | EL21: 0 | EM21: 0 | EN21: 0 | EO21: 0 | EP21: 0 | EQ21: 0 | ER21: 0 | ES21: 0 | ET21: 0 | EU21: 0 | EV21: 0 | EW21: 0 | EX21: 0 | EY21: 0 | EZ21: 0 | FA21: 0 | FB21: 0 | FC21: 0 | FD21: 0 | FE21: 0 | FF21: 0 | FG21: 0 | FH21: 0 | FI21: 0 | FJ21: 0 | FK21: 0 | FL21: 0 | FM21: 0 | FN21: 0 | FO21: 0 | FP21: 0 | FQ21: 0 | FR21: 0 | FS21: 0 | FT21: 0 | FU21: 0 | FV21: 0 | FW21: 0 | FX21: 0 | FY21: 0 | FZ21: 0 | GA21: 0 | GB21: 0 | GC21: 0 | GD21: 0 | GE21: 0 | GF21: 0 | GG21: 0 | GH21: 0 | GI21: 0 | GJ21: 0 | GK21: 0 | GL21: 0 | GM21: 0 | GN21: 0 | GO21: 0 | GP21: 0 | GQ21: 0 | GR21: 0 | GS21: 0 | GT21: 0 | GU21: 0 | GV21: 0 | GW21: 0 | GX21: 0 | GY21: 0 | GZ21: 0 | HA21: 0 | HB21: 0 | HC21: 0 | HD21: 0 | HE21: 0 | HF21: 0 | HG21: 0 | HH21: 0 | HI21: 0 | HJ21: 0 | HK21: 0 | HL21: 0 | HM21: 0 | HN21: 0 | HO21: 0 | HP21: 0 | HQ21: 0 | HR21: 0 | HS21: 0 | HT21: 0 | HU21: 0 | HV21: 0 | HW21: 0 | HX21: 0 | HY21: 0 | HZ21: 0 | IA21: 0 | IB21: 0 | IC21: 0 | ID21: 0 | IE21: 0 | IF21: 0 | IG21: 0 | IH21: 0 | II21: 0 | IJ21: 0 | IK21: 0 | IL21: 0 | IM21: 0 | IN21: 0 | IO21: 0 | IP21: 0 | IQ21: 0 | IR21: 0 | IS21: 0 | IT21: 0 | IU21: 0 | IV21: 0 | IW21: 0 | IX21: 0 | IY21: 0 | IZ21: 0 | JA21: 0 | JB21: 0 | JC21: 0 | JD21: 0 | JE21: 0 | JF21: 0 | JG21: 0 | JH21: 0 | JI21: 0 | JJ21: 0 | JK21: 0 | JL21: 0 | JM21: 0 | JN21: 0 | JO21: 0 | JP21: 0 | JQ21: 0 | JR21: 0 | JS21: 0 | JT21: 0 | JU21: 0 | JV21: 0 | JW21: 0 | JX21: 0 | JY21: 0 | JZ21: 0 | KA21: 0 | KB21: 0 | KC21: 0 | KD21: 0 | KE21: 0 | KF21: 0 | KG21: 0 | KH21: 0 | KI21: 0 | KJ21: 0 | KK21: 0 | KL21: 0 | KM21: 0 | KN21: 0 | KO21: 0 | KP21: 0 | KQ21: 0 | KR21: 0 | KS21: 0 | KT21: 0 | KU21: 0 | KV21: 0 | KW21: 0 | KX21: 0 | KY21: 0 | KZ21: 0 | LA21: 100 | LB21: 100 | LC21: 100 | LD21: 100 | LE21: 100 | LF21: 100 | LG21: 100 | LH21: 100 | LI21: 100 | LJ21: 100 | LK21: 100 | LL21: 100 | LM21: 100 | LN21: 100 | LO21: 100 | LP21: 100 | LQ21: 100 | LR21: 100 | LS21: 100 | LT21: 0 | LU21: 0 | LV21: 0 | LW21: 0 | LX21: 0 | LY21: 0 | LZ21: 0 | MA21: 0 | MB21: 0 | MC21: 0 | MD21: 0 | ME21: 0 | MF21: 0 | MG21: 0 | MH21: 0 | MI21: 0 | MJ21: 0 | MK21: 0 | ML21: 0 | MM21: 0 | MN21: 0 | MO21: 0 | MP21: 0 | MQ21: 0 | MR21: 0 | MS21: 0 | MT21: 0 | MU21: 0 | MV21: 0 | MW21: 0 | MX21: 0 | MY21: 0 | MZ21: 0 | NA21: 0 | NB21: 0 | NC21: 0 | ND21: 0
A22: Clean air | B22: =IF(Calculator!C24=0, Calculator!N23, 0) -> 50 | C22: 1 | D22: 0.05 | E22: 324 | F22: =360 * SUM(D$4:D22) -> 342 | G22: =IF(AND(G$1>=$E22,G$1<=$F22),$B22,0) -> 0 | H22: 0 | I22: 0 | J22: 0 | K22: 0 | L22: 0 | M22: 0 | N22: 0 | O22: 0 | P22: 0 | Q22: 0 | R22: 0 | S22: 0 | T22: 0 | U22: 0 | V22: 0 | W22: 0 | X22: 0 | Y22: 0 | Z22: 0 | AA22: 0 | AB22: 0 | AC22: 0 | AD22: 0 | AE22: 0 | AF22: 0 | AG22: 0 | AH22: 0 | AI22: 0 | AJ22: 0 | AK22: 0 | AL22: 0 | AM22: 0 | AN22: 0 | AO22: 0 | AP22: 0 | AQ22: 0 | AR22: 0 | AS22: 0 | AT22: 0 | AU22: 0 | AV22: 0 | AW22: 0 | AX22: 0 | AY22: 0 | AZ22: 0 | BA22: 0 | BB22: 0 | BC22: 0 | BD22: 0 | BE22: 0 | BF22: 0 | BG22: 0 | BH22: 0 | BI22: 0 | BJ22: 0 | BK22: 0 | BL22: 0 | BM22: 0 | BN22: 0 | BO22: 0 | BP22: 0 | BQ22: 0 | BR22: 0 | BS22: 0 | BT22: 0 | BU22: 0 | BV22: 0 | BW22: 0 | BX22: 0 | BY22: 0 | BZ22: 0 | CA22: 0 | CB22: 0 | CC22: 0 | CD22: 0 | CE22: 0 | CF22: 0 | CG22: 0 | CH22: 0 | CI22: 0 | CJ22: 0 | CK22: 0 | CL22: 0 | CM22: 0 | CN22: 0 | CO22: 0 | CP22: 0 | CQ22: 0 | CR22: 0 | CS22: 0 | CT22: 0 | CU22: 0 | CV22: 0 | CW22: 0 | CX22: 0 | CY22: 0 | CZ22: 0 | DA22: 0 | DB22: 0 | DC22: 0 | DD22: 0 | DE22: 0 | DF22: 0 | DG22: 0 | DH22: 0 | DI22: 0 | DJ22: 0 | DK22: 0 | DL22: 0 | DM22: 0 | DN22: 0 | DO22: 0 | DP22: 0 | DQ22: 0 | DR22: 0 | DS22: 0 | DT22: 0 | DU22: 0 | DV22: 0 | DW22: 0 | DX22: 0 | DY22: 0 | DZ22: 0 | EA22: 0 | EB22: 0 | EC22: 0 | ED22: 0 | EE22: 0 | EF22: 0 | EG22: 0 | EH22: 0 | EI22: 0 | EJ22: 0 | EK22: 0 | EL22: 0 | EM22: 0 | EN22: 0 | EO22: 0 | EP22: 0 | EQ22: 0 | ER22: 0 | ES22: 0 | ET22: 0 | EU22: 0 | EV22: 0 | EW22: 0 | EX22: 0 | EY22: 0 | EZ22: 0 | FA22: 0 | FB22: 0 | FC22: 0 | FD22: 0 | FE22: 0 | FF22: 0 | FG22: 0 | FH22: 0 | FI22: 0 | FJ22: 0 | FK22: 0 | FL22: 0 | FM22: 0 | FN22: 0 | FO22: 0 | FP22: 0 | FQ22: 0 | FR22: 0 | FS22: 0 | FT22: 0 | FU22: 0 | FV22: 0 | FW22: 0 | FX22: 0 | FY22: 0 | FZ22: 0 | GA22: 0 | GB22: 0 | GC22: 0 | GD22: 0 | GE22: 0 | GF22: 0 | GG22: 0 | GH22: 0 | GI22: 0 | GJ22: 0 | GK22: 0 | GL22: 0 | GM22: 0 | GN22: 0 | GO22: 0 | GP22: 0 | GQ22: 0 | GR22: 0 | GS22: 0 | GT22: 0 | GU22: 0 | GV22: 0 | GW22: 0 | GX22: 0 | GY22: 0 | GZ22: 0 | HA22: 0 | HB22: 0 | HC22: 0 | HD22: 0 | HE22: 0 | HF22: 0 | HG22: 0 | HH22: 0 | HI22: 0 | HJ22: 0 | HK22: 0 | HL22: 0 | HM22: 0 | HN22: 0 | HO22: 0 | HP22: 0 | HQ22: 0 | HR22: 0 | HS22: 0 | HT22: 0 | HU22: 0 | HV22: 0 | HW22: 0 | HX22: 0 | HY22: 0 | HZ22: 0 | IA22: 0 | IB22: 0 | IC22: 0 | ID22: 0 | IE22: 0 | IF22: 0 | IG22: 0 | IH22: 0 | II22: 0 | IJ22: 0 | IK22: 0 | IL22: 0 | IM22: 0 | IN22: 0 | IO22: 0 | IP22: 0 | IQ22: 0 | IR22: 0 | IS22: 0 | IT22: 0 | IU22: 0 | IV22: 0 | IW22: 0 | IX22: 0 | IY22: 0 | IZ22: 0 | JA22: 0 | JB22: 0 | JC22: 0 | JD22: 0 | JE22: 0 | JF22: 0 | JG22: 0 | JH22: 0 | JI22: 0 | JJ22: 0 | JK22: 0 | JL22: 0 | JM22: 0 | JN22: 0 | JO22: 0 | JP22: 0 | JQ22: 0 | JR22: 0 | JS22: 0 | JT22: 0 | JU22: 0 | JV22: 0 | JW22: 0 | JX22: 0 | JY22: 0 | JZ22: 0 | KA22: 0 | KB22: 0 | KC22: 0 | KD22: 0 | KE22: 0 | KF22: 0 | KG22: 0 | KH22: 0 | KI22: 0 | KJ22: 0 | KK22: 0 | KL22: 0 | KM22: 0 | KN22: 0 | KO22: 0 | KP22: 0 | KQ22: 0 | KR22: 0 | KS22: 0 | KT22: 0 | KU22: 0 | KV22: 0 | KW22: 0 | KX22: 0 | KY22: 0 | KZ22: 0 | LA22: 0 | LB22: 0 | LC22: 0 | LD22: 0 | LE22: 0 | LF22: 0 | LG22: 0 | LH22: 0 | LI22: 0 | LJ22: 0 | LK22: 0 | LL22: 0 | LM22: 0 | LN22: 0 | LO22: 0 | LP22: 0 | LQ22: 0 | LR22: 0 | LS22: 50 | LT22: 50 | LU22: 50 | LV22: 50 | LW22: 50 | LX22: 50 | LY22: 50 | LZ22: 50 | MA22: 50 | MB22: 50 | MC22: 50 | MD22: 50 | ME22: 50 | MF22: 50 | MG22: 50 | MH22: 50 | MI22: 50 | MJ22: 50 | MK22: 50 | ML22: 0 | MM22: 0 | MN22: 0 | MO22: 0 | MP22: 0 | MQ22: 0 | MR22: 0 | MS22: 0 | MT22: 0 | MU22: 0 | MV22: 0 | MW22: 0 | MX22: 0 | MY22: 0 | MZ22: 0 | NA22: 0 | NB22: 0 | NC22: 0 | ND22: 0
A23: Clean air | B23: =IF(Calculator!C49=0, Calculator!N48, 0) -> 100 | C23: 1 | D23: 0.05 | E23: 342 | F23: =360 * SUM(D$4:D23) -> 360 | G23: 0 | H23: 0 | I23: 0 | J23: 0 | K23: 0 | L23: 0 | M23: 0 | N23: 0 | O23: 0 | P23: 0 | Q23: 0 | R23: 0 | S23: 0 | T23: 0 | U23: 0 | V23: 0 | W23: 0 | X23: 0 | Y23: 0 | Z23: 0 | AA23: 0 | AB23: 0 | AC23: 0 | AD23: 0 | AE23: 0 | AF23: 0 | AG23: 0 | AH23: 0 | AI23: 0 | AJ23: 0 | AK23: 0 | AL23: 0 | AM23: 0 | AN23: 0 | AO23: 0 | AP23: 0 | AQ23: 0 | AR23: 0 | AS23: 0 | AT23: 0 | AU23: 0 | AV23: 0 | AW23: 0 | AX23: 0 | AY23: 0 | AZ23: 0 | BA23: 0 | BB23: 0 | BC23: 0 | BD23: 0 | BE23: 0 | BF23: 0 | BG23: 0 | BH23: 0 | BI23: 0 | BJ23: 0 | BK23: 0 | BL23: 0 | BM23: 0 | BN23: 0 | BO23: 0 | BP23: 0 | BQ23: 0 | BR23: 0 | BS23: 0 | BT23: 0 | BU23: 0 | BV23: 0 | BW23: 0 | BX23: 0 | BY23: 0 | BZ23: 0 | CA23: 0 | CB23: 0 | CC23: 0 | CD23: 0 | CE23: 0 | CF23: 0 | CG23: 0 | CH23: 0 | CI23: 0 | CJ23: 0 | CK23: 0 | CL23: 0 | CM23: 0 | CN23: 0 | CO23: 0 | CP23: 0 | CQ23: 0 | CR23: 0 | CS23: 0 | CT23: 0 | CU23: 0 | CV23: 0 | CW23: 0 | CX23: 0 | CY23: 0 | CZ23: 0 | DA23: 0 | DB23: 0 | DC23: 0 | DD23: 0 | DE23: 0 | DF23: 0 | DG23: 0 | DH23: 0 | DI23: 0 | DJ23: 0 | DK23: 0 | DL23: 0 | DM23: 0 | DN23: 0 | DO23: 0 | DP23: 0 | DQ23: 0 | DR23: 0 | DS23: 0 | DT23: 0 | DU23: 0 | DV23: 0 | DW23: 0 | DX23: 0 | DY23: 0 | DZ23: 0 | EA23: 0 | EB23: 0 | EC23: 0 | ED23: 0 | EE23: 0 | EF23: 0 | EG23: 0 | EH23: 0 | EI23: 0 | EJ23: 0 | EK23: 0 | EL23: 0 | EM23: 0 | EN23: 0 | EO23: 0 | EP23: 0 | EQ23: 0 | ER23: 0 | ES23: 0 | ET23: 0 | EU23: 0 | EV23: 0 | EW23: 0 | EX23: 0 | EY23: 0 | EZ23: 0 | FA23: 0 | FB23: 0 | FC23: 0 | FD23: 0 | FE23: 0 | FF23: 0 | FG23: 0 | FH23: 0 | FI23: 0 | FJ23: 0 | FK23: 0 | FL23: 0 | FM23: 0 | FN23: 0 | FO23: 0 | FP23: 0 | FQ23: 0 | FR23: 0 | FS23: 0 | FT23: 0 | FU23: 0 | FV23: 0 | FW23: 0 | FX23: 0 | FY23: 0 | FZ23: 0 | GA23: 0 | GB23: 0 | GC23: 0 | GD23: 0 | GE23: 0 | GF23: 0 | GG23: 0 | GH23: 0 | GI23: 0 | GJ23: 0 | GK23: 0 | GL23: 0 | GM23: 0 | GN23: 0 | GO23: 0 | GP23: 0 | GQ23: 0 | GR23: 0 | GS23: 0 | GT23: 0 | GU23: 0 | GV23: 0 | GW23: 0 | GX23: 0 | GY23: 0 | GZ23: 0 | HA23: 0 | HB23: 0 | HC23: 0 | HD23: 0 | HE23: 0 | HF23: 0 | HG23: 0 | HH23: 0 | HI23: 0 | HJ23: 0 | HK23: 0 | HL23: 0 | HM23: 0 | HN23: 0 | HO23: 0 | HP23: 0 | HQ23: 0 | HR23: 0 | HS23: 0 | HT23: 0 | HU23: 0 | HV23: 0 | HW23: 0 | HX23: 0 | HY23: 0 | HZ23: 0 | IA23: 0 | IB23: 0 | IC23: 0 | ID23: 0 | IE23: 0 | IF23: 0 | IG23: 0 | IH23: 0 | II23: 0 | IJ23: 0 | IK23: 0 | IL23: 0 | IM23: 0 | IN23: 0 | IO23: 0 | IP23: 0 | IQ23: 0 | IR23: 0 | IS23: 0 | IT23: 0 | IU23: 0 | IV23: 0 | IW23: 0 | IX23: 0 | IY23: 0 | IZ23: 0 | JA23: 0 | JB23: 0 | JC23: 0 | JD23: 0 | JE23: 0 | JF23: 0 | JG23: 0 | JH23: 0 | JI23: 0 | JJ23: 0 | JK23: 0 | JL23: 0 | JM23: 0 | JN23: 0 | JO23: 0 | JP23: 0 | JQ23: 0 | JR23: 0 | JS23: 0 | JT23: 0 | JU23: 0 | JV23: 0 | JW23: 0 | JX23: 0 | JY23: 0 | JZ23: 0 | KA23: 0 | KB23: 0 | KC23: 0 | KD23: 0 | KE23: 0 | KF23: 0 | KG23: 0 | KH23: 0 | KI23: 0 | KJ23: 0 | KK23: 0 | KL23: 0 | KM23: 0 | KN23: 0 | KO23: 0 | KP23: 0 | KQ23: 0 | KR23: 0 | KS23: 0 | KT23: 0 | KU23: 0 | KV23: 0 | KW23: 0 | KX23: 0 | KY23: 0 | KZ23: 0 | LA23: 0 | LB23: 0 | LC23: 0 | LD23: 0 | LE23: 0 | LF23: 0 | LG23: 0 | LH23: 0 | LI23: 0 | LJ23: 0 | LK23: 0 | LL23: 0 | LM23: 0 | LN23: 0 | LO23: 0 | LP23: 0 | LQ23: 0 | LR23: 0 | LS23: 0 | LT23: 0 | LU23: 0 | LV23: 0 | LW23: 0 | LX23: 0 | LY23: 0 | LZ23: 0 | MA23: 0 | MB23: 0 | MC23: 0 | MD23: 0 | ME23: 0 | MF23: 0 | MG23: 0 | MH23: 0 | MI23: 0 | MJ23: 0 | MK23: 100 | ML23: 100 | MM23: 100 | MN23: 100 | MO23: 100 | MP23: 100 | MQ23: 100 | MR23: 100 | MS23: 100 | MT23: 100 | MU23: 100 | MV23: 100 | MW23: 100 | MX23: 100 | MY23: 100 | MZ23: 100 | NA23: 100 | NB23: 100 | NC23: 100 | ND23: 0
B25: Proposed Layout Score

Sheet Hogyan értékeljünk
A2: Hogyan értékeljünk
A5: Mérőszám | C5: Miért fontos | D5: Hogyan mérjük | E5: Kiegészítő információk
A6: 1 | B6: Gépjárművek megengedett sebessége | C6: Az alacsonyabb sebesség a zajterhelés és a légszennyezés csökkentését, valamint az ütközéssel vagy gázolással járó balesetek megelőzését is szolgálja (biztonságos, komfortos utcák). Ugyanakkor a gyaloglás, a kerékpározás és a közterületeken történő időtöltés szempontjából is kedvező változást jelent. | D6: Az értékelésre kerülő útszakasz estében a meglévő és tervezett megengedett legnagyobb sebesség kerül figyelembevételre. Bízva abban, hogy a közlekedők betartják a saját érdeküket szolgáló közlekedési szabályokat. Egy értékelésre kerülő útszakasz teljes hosszában azonosnak kell lennie a megengedett legnagyobb sebességnek. Amennyiben rendszeres gépjármű forgalom nincsen, vagy megszűnik, mert az utca gyalogos út, gyalogos-kerékpáros út, vagy gyalogos zóna, gyalogos-kerékpáros zóna része, továbbá a mindkét irányból behajtani tilos jelzőtáblával védett útvonal, 3 pontot kaphat.
A7: 2 | B7: Gépjárműforgalom nagysága | C7: A gépjárműforgalom csökkenése a zajterhelés és a légszennyezés csökkentését, valamint az ütközéssel vagy gázolással járó balesetek megelőzését is szolgálja (biztonságos, komfortos utcák). Ugyanakkor a gyaloglás, a kerékpározás és a közterületeken történő időtöltés szempontjából is kedvező változást jelent, egyúttal könnyebbé teszi az útpályán való átkelést is. | D7: Az értékelésre kerülő útszakasz jelenlegi gépjármű forgalmát a reggeli csúcsidőszakban, a legnagyobb forgalmú órára kell meghatározni forgalomszámlálással, minden irányban mért forgalom figyelembevételével (két irányú út esetében az irányonként mért forgalmakat összeadva). A megelőző egy évben végzett forgalomszámlálás is felhasználható, ha nem történt időközben az útszakasz környezetében olyan változás, ami jelentősen befolyásolta azóta a forgalom nagyságát. A gépjárművek forgalma esetében az elektromos kerékpárokat és elektromos robogókat nem kell figyelembe venni. Egy értékelésre kerülő útszakasz különböző pontjain a jelenlegi forgalom értéke közel azonos kell legyen (maximum 30% eltérés engedhető meg), ellenkező esetben több szakaszra kell bontani az utat. A tervezett forgalom nagyságát az utca átépítését követő évre kell előrebecsléssel meghatározni. Amennyiben rendszeres gépjármű forgalom nincsen vagy megszűnik, mert az utca gyalogos út, gyalogos-kerékpáros út, vagy gyalogos zóna, gyalogos-kerékpáros zóna, továbbá a mindkét irányból behajtani tilos jelzőtáblával védett útvonal, 3 pontot kaphat.
A8: 3 | B8: Kerékpáros közlekedés biztosítása a kereszteződésekben | C8: Az utcán belül a biztonságos, komfortos kerékpározás feltételeinek biztosítása érdekében kerül vizsgálatra. A járművek kereszteződésekbe való bekanyarodása esetén megnő a kerékpárosok elgázolásának veszélye, veszélyeztetve azok testi épségét, vagy akár életét. E kockázat miatt sokan vonakodnak a kerékpározástól, vagy nem érzik magukat biztonságosan kerékpározás közben. Ez a kockázat a csomópontok megfelelő kialakításával, forgalomszervezéssel mérsékelhető. | D8: Az értékelésre kerülő útszakasz esetében a kerékpárosok igényeinek való megfelelést a meglévő és tervezett műszaki kialakítás alapján kell meghatározni. Ennek mérésére értékelje az utca összes csomópontját, és pontozza azt a csomópontot, amely a legkedvezőtlenebb kialakítású. A kerékpározást másképpen kell támogatni a főutak/gyűjtőutak esetében, mint a lakóutak esetében, ezért az értékelésre kerülő útszakasz hálózati szerepének megfelelő differenciálás szükséges. Egy főút/gyűjtőút esetében a gyorsabb gépjármű forgalomtól való fizikai elválasztás a cél. Ebben a városi környezetben a kerékpározást leginkább az önálló kerékpárforgalmi létesítmény (kerékpárút, irányhelyes kerékpársáv) kialakítása és a csomópontokban a jelzőlámpás forgalomirányítás segíti. A kerékpárforgalmi létesítmény aluljáróban vagy felüljáróban történő vezetése biztonsági szempontból egyes esetekben szükséges lehet, de az hosszabb szakaszon elszakítja a városi környezettől a kerékpárost, ezért az egészséges utcák szempontjából nem kedvező. Egy lakóút esetében a kerékpárosok haladási sebességével zajló közös forgalom megteremtése a cél. Ebben a városi környezetben a kerékpározást leginkább a gépjárművek sebességének csökkentése és különösen a csomópontokban történő kanyarodásuknak a lassítása segíti. A kanyarodás esetében nem a járda szegélyének a sugarát (R) kell értékelni, hanem a parkolósávok figyelembevételével a gépjárművek tényleges kanyarodási sugarának nagyságát kell figyelembe venni. Amennyiben az értékelésre kerülő útszakasz magasabb hálózati szerepkörrel bíró útba torkollik, a végén levő csomópontot nem kell értékelni, de az értékelésre kerülő útszakaszt úgy kell kijelölni, hogy legalább egy értékelendő közbenső csomópontot tartalmazzon. Amennyiben rendszeres gépjármű forgalom nincsen vagy megszűnik, mert az utca gyalogos-kerékpáros út, vagy gyalogos-kerékpáros zóna, továbbá mindkét irányból behajtani tilos jelzőtáblával védett útvonal, 3 pontot kaphat.
A9: 4 | B9: Gyalogos keresztezés az útvonalhoz csatlakozó parkolók bejáratában és kis forgalmú mellékutcák torkolatában | C9: Az utcán belül a biztonságos, komfortos hossz irányú gyaloglás és kisebb mértékben a kerékpározás feltételeinek biztosítása érdekében kerül vizsgálatra. Amennyiben a járművek nagy sebességgel kanyarodhatnak ki és be az ingatlanokra, megnő a gyalogosok és kerékpárosok elgázolásának veszélye. A nagyobb sebesség emellett megnehezíti, stresszesebbé és félelmetesebbé teszi az emberek számára az ingatlanok bejáratai előtt történő elhaladást. | D9: Az értékelésre kerülő útszakasz esetében a gyalogosok és kerékpárosok igényeinek való megfelelést a meglévő és tervezett műszaki kialakítás alapján kell meghatározni. Ennek mérésére értékelje az utca mindkét oldalán az összes ingatlan csatlakozását (lakóház, intézmény, iroda stb.) és kisforgalmú mellékutcát jelentő magánutak csatlakozását (bevásárló központ, irodapark, lakópark). Ne az egész utcát általánosan értékelje, hanem a legrosszabbul teljesítő csatlakozást pontozza. A gyaloglást eltérő geometriával lehet támogatni a főutak/gyűjtőutak és a lakó utak esetében, ezért az értékelésre kerülő útszakasz hálózati szerepének megfelelő differenciálás szükséges. A gyalogos közlekedést legjobban a járda szintjére emelt keresztezési pontok, a szűk gépjármű kanyarodások, az oldalirányú kitérés nélküli gyaloglási útvonalak szolgálják. Az értékelés során fel kell mérni az utca minden lehetséges pontját, ahol gépjárművek keresztezhetik a gyalogosok útját. Amennyiben nincsen a járdát keresztező gépjárműforgalom (pl. ingatlan-kiszolgálás, parkoló megközelítés), akkor 3 pont adható.
A10: 5 | B10: Gyalogos keresztezés biztosítása csomópontok közötti szakaszon (folyópálya szakasz) | C10: Az utcán belül a biztonságos, komfortos keresztirányú gyaloglás feltételeinek biztosítása érdekében kerül vizsgálatra. Fontos, hogy az emberek könnyen átkelhessenek az utcákon a csomópontok közötti szakaszokon is, ez különösen a mozgáskorlátozottaknál csökkenti a gyaloglási erőfeszítést, növeli a kényelmet és megkönnyíti a kapcsolatteremtést. | D10: Az értékelésre kerülő útszakasz esetében a gyalogosok igényeinek való megfelelést a meglévő és tervezett műszaki kialakítás alapján kell meghatározni. Ennek mérésére értékelje az utca minden egyes (6. mérőszám szerinti) csomópontja közötti szakaszt külön-külön. Ne az egész utcát általánosan értékelje, hanem a csomópontok közötti leggyengébb szakaszt pontozza. A gyaloglás érdekében eltérő műszaki megoldások alkalmazhatóak a főutak/gyűjtőutak és a lakó utak esetében, ezért az útszakasz hálózati szerepének megfelelő differenciálás szükséges. Amennyiben az értékelésre kerülő utcaszakasz teljes hosszában az egyik oldalon nincs járda és nincs úti cél sem, akkor 3 pontot kaphat. Amennyiben rendszeres gépjármű forgalom nincsen vagy megszűnik, mert az utca gyalogos út, gyalogos-kerékpáros út, vagy gyalogos zóna, gyalogos-kerékpáros zóna, továbbá a mindkét irányból behajtani tilos jelzőtáblával védett útvonal, 3 pont adható.
A11: 6 | B11: Gyalogos keresztezés biztosítása csomópontokban | C11: Az utca más utcákkal alkotott csomópontjaiban a biztonságos, komfortos gyalogos átkelés biztosítása érdekében kerül vizsgálatra. Az emberek számára biztosítani kell annak lehetőségét, hogy minden kereszteződésben biztonságosan, közvetlenül és kényelmesen átkelhessenek az úton. | D11: Az értékelésre kerülő útszakasz esetében a gyalogosok igényeinek való megfelelést a más közutakkal alkotott csomópontok meglévő és tervezett műszaki kialakítása alapján kell meghatározni. Ennek mérésére értékelje az utca összes csomópontjának minden ágát. Ne az utca összes csomópontját pontozza, hanem a csomópontok közül a leggyengébbet. A gyaloglás érdekében eltérő műszaki megoldások alkalmazhatóak a főutak/gyűjtőutak és a lakó utak esetében, ezért az útszakasz hálózati szerepének megfelelő differenciálás szükséges. Egy főút/gyűjtőút esetében a gépjármű forgalom és gyalogos forgalom időbeli szétválasztása a cél, a városi környezettől való elszakítás nélkül. Ebben a városi környezetben a gyaloglást a csomópontok jelzőlámpás forgalomirányítás alá vonása segíti. Egy lakóút esetében a gépjárműforgalom haladási sebességének nagymértékű csökkentésével a forgalom irányítása nélküli keresztezés megteremtése a cél. Ebben a városi környezetben a gyaloglást a csomópontokon történő akadálymentes átvezetés segíti. Amennyiben a vizsgált csomópont egy főút/gyűjtőút és egy lakóút csomópontja, azt főút/gyűjtőút csomópont kritériumai szerint kell értékelni. Amennyiben az értékelésre kerülő csomópontban kizárólag gyalogos aluljáró vagy felüljáró szolgálja a gyalogosokat az 0 pontot kap. Amennyiben az értékelésre kerülő útszakasz magasabb hálózati szerepkörrel bíró útba torkollik, a végén levő csomópontot nem kell értékelni, de az értékelésre kerülő útszakaszt úgy kell kijelölni, hogy legalább egy értékelendő közbenső csomópontot tartalmazzon. Meglévő csomópont megszűnése esetén a tervezett állapot 3 pontot kap. Amennyiben rendszeres gépjármű forgalom nincsen vagy megszűnik, mert az utca gyalogos út, gyalogos-kerékpáros út, vagy gyalogos zóna, gyalogos-kerékpáros zóna, továbbá a mindkét irányból behajtani tilos jelzőtáblával védett útvonal, 3 pont adható.
A12: 7 | B12: Akadálymentesség, esélyegyenlőség biztosítása | C12: Az esélyegyenlőség biztosítására kiemelt figyelmet kell fordítani. A látássérült emberek számára a megfelelően tapintható útburkolat meghatározó jelentőséggel bír a gépjárműforgalom keresztezési pontjaiban. | D12: Az értékelésre kerülő útszakasz esetében a látássérült gyalogosok igényeinek való megfelelést a magánutakkal (4. mérőszám szerinti kisforgalmú mellékutcákkal) más közutakkal alkotott (6. mérőszám szerinti) csomópontok meglévő és tervezett műszaki kialakítása alapján kell meghatározni. Ennek mérésére értékelje az utca összes csomópontjának minden ágát. Nem az utca összes csomópontját pontozza, hanem a csomópontok közül a leggyengébbet. Amennyiben az értékelésre kerülő útszakasz magasabb hálózati szerepkörrel bíró útba torkollik, a végén levő csomópontot nem kell értékelni, de az értékelésre kerülő útszakaszt úgy kell kijelölni, hogy legalább egy értékelendő közbenső csomópontot tartalmazzon. Amennyiben a rendszeres gépjármű forgalom megszűnik, mert az utcából gyalogos út, gyalogos-kerékpáros út lesz, vagy gyalogos zóna, gyalogos-kerékpáros zóna részévé válik, továbbá a mindkét irányból behajtani tilos jelzőtáblával védett útvonalak esetében is 3 pont adható a csomópontra.
A13: 8 | B13: A járda felületének minősége | C13: A sima, csúszás és botlás mentes járófelület biztosítása a gyalogosan közlekedő ember számára fontos, továbbá a mozgást segítő eszközök, pl. a kerekes poggyász, a babakocsik és a kerekesszékek akadálytalan használatához is szükséges. | D13: Az értékelésre kerülő útszakasz esetében a gyalogosok igényeinek való megfelelést a meglévő és tervezett műszaki kialakítás alapján kell meghatározni. Ennek mérésére be kell járni a teljes utcaszakaszt és az alapján értékelni az utca összes járda felületét. Ne a teljes járdafelületet pontozza, hanem a legrosszabbul teljesítő helyét. Az értékelésnél vegye figyelembe a botlásveszélyt jelentő szintkülönbséget (repedés, egymáshoz képest elmozdult elemek), a kényelmes haladást rontó hullámosságot (megemelkedett fagyökerek), az elesést eredményező burkolati hiányt és csúszósságot (keresztirányú esés). Amennyiben a járda lépcsővel tagolt pl. meredek lejtésviszonyok miatt, csak 0 pontot kaphat. Amennyiben a járda keresztirányú esése meghaladja a 3 %-ot, csak 0 pontot kaphat. A járdaburkolat kiválasztásnál vegye figyelembe a könnyű karbantarthatóságot és az idő múlásával kialakuló botlásveszély kockázatát.
A14: 9 | B14: Gyalogos közlekedés helyigénye | C14: A komfortos közterület használat egyik alappillére, hogy az adott útszakaszon jelentkező, távlatban várható gyalogosforgalom nagyságára méretezett, akadályoktól, utcabútoroktól mentes gyalogos felületek álljanak rendelkezésre. Az embereknek megfelelő térre van szükségük ahhoz, hogy párban vagy kis csoportokban kényelmesen tudjanak közlekedni. A csomagokkal, babakocsival, kerekesszékkel és egyéb mozgást segítő eszközökkel közlekedőknek több helyre van szükségük. | D14: Az értékelésre kerülő útszakasz esetében a gyalogosok helyigényeinek – 1 ember helyigénye 0,75 m széles sáv – való megfelelést a meglévő és tervezett műszaki kialakítás alapján kell meghatározni. Ennek mérésére be kell járni a teljes utcaszakaszt és az alapján értékelni az utca összes járda felületének a szélességét. Ne a teljes járdafelületet pontozza, hanem a legrosszabbul teljesítő helyét. A járda szélét érintő biztonsági és berendezési sáv szélessége beszámítható, amennyiben a gyalogosok számára akadály nélkül járható. A járda szélességét csökkentik – többek között – az utcabútorok, padok, kukák, jelzőtáblák, közvilágítási oszlopok, vendéglátó teraszok, járdán parkoló autók sávjai, fák és zöldfelületek. A járda szélességéből csak a fentieknek megfelelően csökkentett szabad szélesség vehető figyelembe. Amennyiben a járda egy részén a szabad szélesség nem éri el a 1,5 m-t, de van úti cél, csak 0 pontot kaphat. A lakó utakon belül eltérően értékelendő „belvárosi lakóutak” a mellékelt térképen lehatárolt belső zóna, vagy központi területen belül helyezkednek el.
A15: 10 | B15: Útburkolat minősége | C15: A jármű forgalom (gépjárművek, kerékpárok, egyéb eszközök) számára fontos a sima és csúszásmentes közlekedőfelület a biztonságos haladás és megállás, a zajterhelés csökkentése érdekében, továbbá biztonságossá válik a felület a kerékpározás szempontjából, csökkenti a légszennyezést és az úttesten átkelő emberek megbotlásának kockázatát. | D15: Az értékelésre kerülő útszakasz esetében a járművek igényeinek való megfelelést a meglévő és tervezett műszaki kialakítás alapján kell meghatározni. Ennek mérésére be kell járni a teljes utcaszakaszt és az alapján értékelni az utca jármű közlekedésre szolgáló felületeit. Ne a teljes felületet pontozza, hanem a legrosszabbul teljesítő helyét. Az értékelésnél vegye figyelembe a zajterhelést fokozó szintkülönbséget (repedés, egymáshoz képest elmozdult elemek), a kényelmes utazást rontó hullámosságot, a burkolathiányt (kátyú) és az elmozduló aknafedeleket. Amennyiben rendszeres gépjármű forgalom nincsen vagy megszűnik, mert az utca gyalogos út, gyalogos-kerékpáros út, vagy gyalogos zóna, gyalogos-kerékpáros zóna, akkor a 8. mérőszámmal azonos pontszámot kell adni, mert ebben az esetben az utca teljes szélességét járdának kell tekinteni. A nagykockakő és a kiskockakő burkolatok 0 pontot kapnak.
A16: 11 | B16: Kerékpározás helyigénye | C16: A kerékpáros közlekedés jól illeszkedik az egészséges utcáról alkotott vízióba, ezért támogatásra érdemes. A kerékpározás általánossá válásához az egyik szükséges feltétel a jól, biztonságosan kerékpározható közúthálózat megteremtése. Az embereknek legalább annyi helyre van szükségük, hogy párban és kis csoportokban kényelmesen tudjanak kerékpározni. Az átalakított kerékpárokkal, például triciklivel közlekedőknek, amelyek lehetnek mozgást segítő eszközök vagy a szállítmányozásra szolgáló eszközök, nagyobb helyre van szükségük. | D16: Az értékelésre kerülő útszakasz esetében a kerékpárosok igényeinek való megfelelést a meglévő és tervezett műszaki kialakítás alapján kell meghatározni. Ennek mérésére be kell járni a teljes utcaszakaszt és az alapján értékelni az utca minden egyes (6. mérőszám szerinti) csomópontja közötti szakaszt külön-külön. Ne az egész utcát általánosan értékelje, hanem a leggyengébb szakaszt pontozza. A kerékpározást másképpen kell támogatni a főutak/gyűjtőutak esetében, mint a lakó utak esetében. Egy főút/gyűjtőút esetében a gyorsabb gépjármű forgalomtól való fizikai elválasztás a cél. Ebben a városi környezetben a kerékpározást leginkább az önálló kerékpárforgalmi létesítmény (kerékpárút, irányhelyes kerékpársáv) kialakítása segíti. Az irányhelyes kerékpársáv minimális szélessége 1,25 m, a kétirányú kerékpárút szélessége legalább 2,55 m kerékpársáv. Amennyiben az utcában párhuzamos parkolósáv is található, a mellette lévő 0,8 m széles sáv nem vehető figyelembe a kerékpárforgalmi létesítmény részeként. Amennyiben a kerékpáros infrastruktúrában 20 m-nél kisebb megszakítás található (autóbuszmegálló, rakodóhely) azt nem kell figyelembe venni. Amennyiben az utca egy szakaszán nincsen kerékpárforgalmi létesítmény, vagy a kerékpáros infrastruktúrában lévő megszakítás meghaladja a 20 m-t, azt kell leggyengébb szakaszként pontozni. Főút/gyűjtőút esetében, ha a rendszeres gépjármű forgalom megszűnik, mert az utcából gyalogos-kerékpáros út lesz, vagy gyalogos-kerékpáros zóna részévé válik, továbbá a mindkét irányból behajtani tilos jelzőtáblával védett útvonallá válik, a pontszámot a kerékpárforgalmi létesítmény szélessége határozza meg (irányhelyes kerékpársáv 1,25-2 m, a kerékpárút 2,55-4,05 m). Egy lakóút esetében a kerékpárosok haladási sebességével zajló közös járműforgalom megteremtése a cél. Ebben a városi környezetben a kerékpározást leginkább a sebesség csökkentését eredményező forgalomcsillapítás segíti. Fontos szempont a közösen használt forgalmi sáv szélessége is. Lakóút esetében, ha a rendszeres gépjármű forgalom megszűnik, mert az utcából gyalogos-kerékpáros út lesz, vagy gyalogos-kerékpáros zóna részévé válik, továbbá a mindkét irányból behajtani tilos jelzőtáblával védett útvonalak esetében 3 pont adható.
A17: 12 | B17: Közterületi kerékpártárolók | C17: A kerékpározás általánossá válásához szükséges feltétel az utazás kezdő és végpontján a kerékpárok tárolásának biztosítása, amely elsősorban telken belül kerül megoldásra. Sokan, akiknek a gyaloglás nehézséget okoz, rövid utakra is kerékpároznának, ha az úti céljuk közelében hozzáférhető, akadálymentes kerékpártároló rendelkezésre állna. | D17: Az értékelésre kerülő útszakasz esetében a közterületi kerékpár tárolás igényeinek való megfelelést a meglévő és tervezett műszaki kialakítás alapján kell meghatározni. Ennek mérésére be kell járni a teljes utcaszakaszt és az alapján értékelni. Ne a teljes utcát, hanem annak legrosszabb helyzetű 100 m-es hosszát pontozza, ahol a legkevesebb a kerékpár tároló. A közterületek estében kerékpártámaszok kerülnek csak figyelembevételre, amelyeknél a mikromobilitási pontok és kerékpár megosztó állomások erre a célra alkalmas kerékpártámaszai is figyelembe vehetőek. A lakó utakon belül eltérően értékelendő „belvárosi lakóutak” a mellékelt térképen lehatárolt belső zóna, vagy központi területen belül helyezkednek el.
A18: 13 | B18: Ülőhelyek | C18: Az embereknek szükségük van olyan helyekre az utcákon, ahol leülhetnek - pihenés, találkozás, várakozás, étkezés, vagy egyszerűen levegőzés céljából. Sokak számára nehézséget okoz a gyaloglás, kerékpározás vagy a közösségi közlekedés használata, ha nem tudnak rendszeres időközönként megpihenni útjuk során. | D18: A mérőszám értékeléséhez keresse meg az utcán lévő nyilvános ülőhelyek közötti leghosszabb távolságot és a pontszámot e leghosszabb távolság alapján határozza meg. Ha csak 1 ülőhely van az utcán, akkor mérje meg a távolságot a legközelebbi ülőhelytől az utca mentén, de a vizsgált területen kívül. Ha nincs ülőhely az utcán, akkor mérje meg a távolságot a területen kívül eső, két legközelebbi ülőhely között. A nyilvános ülőhelyek közé nem tartoznak bele a vendéglátóhelyek (kávézók, éttermek stb.) szabadtéri ülőhelyei még akkor sem, ha közterületen vannak. A nyilvános ülőhelyek közé nem számítanak be a magánterületen / magánépületek előtt kialakított lépcsők és alacsony támfalak. A nyilvános ülőhelyek közé tartoznak viszont a közösségi közlekedési megállókban kialakított ülések, továbbá a középületek előtti, valamint a középületek és a magánépületek (pl. irodaépületek) előtti nyilvános területeken kialakított, leülésre alkalmas lépcsők és alacsony támfalak. Nem vehetők figyelembe az utcán kívüli nyilvános parkokban található ülőhelyek. Nem vehetők figyelembe olyan ülőhelyek, amelyek tönkrementek, így használhatatlanok.
A19: 14 | B19: Közvilágítás | C19: Az utca biztonságosságához hozzátartozik a megfelelő megvilágítást biztosító köz- és térvilágítási infrastruktúra mind a közúti, mind a gyalogosforgalmú utak esetében. A világítás hozzájárul ahhoz, hogy az emberek biztonságban és nyugodtan érezzék magukat, amikor sötétedés után sétálnak. | D19: Ennek a mérőszámnak a meghatározásához sötétedés után azonosítani kell az útszakasz járdájának leggyengébb megvilágított területét. E mérőszámnál az utca teljes hosszának a kivilágított gyalogos úttestek arányát kell értékelni, nem pedig a leggyengébb pontot. Ha csak az utca egyik oldalán van járda, akkor csak akkor kaphat 1 vagy annál magasabb pontszámot, ha az utca járda nélküli oldalán nincsenek épületek vagy létesítmények, azaz az utcának azt az oldalát, ahol a járda van, a teljes gyalogosfelületnek kell tekinteni. Ha az utca mindkét oldalán szakaszosan van világítás, azaz az utca egyik oldalának egy szakaszát, majd a másik oldalának egy szakaszát világítják meg, 2 pontot kap. A 3-as pontszám eléréséhez nem lehetnek sötét területek a járdán, a gyalogútnak egyenletesen megvilágítottnak kell lennie annak teljes hosszában.
A20: 15 | B20: Fák | C20: Minden embernek árnyékra van szüksége a tűző nap elől, különösen a nyári, hőség időszakokban. Az árnyékolás védi az embereket a napsugárzás által okozott bőrkárosodástól, lehetővé teszi számukra a komfortos hőmérséklet fenntartását, továbbá kellemesebbé teszi a sétát és az utcán töltött időt. Az árnyékon túl a fák hozzájárulhatnak ahhoz, hogy az utcák pihentetőbbé és vonzóbbá váljanak. | D20: A mérőszám kétféleképpen számítható: a) a fasorok hossza szerint a közterületi szakasz hosszához viszonyítva, VAGY b) a gyalogos-kerékpáros területekhez viszonyított fásítási sűrűség alapján (lombkorona borítottság). a) A mérőszám értékeléséhez járja be az utca teljes hosszát az utca mindkét oldalán. Az utca teljes hosszában azt az arányt értékelje, ahol ennek a mérőszám szerint számításba vehető fák vannak, nem pedig a leggyengébb ponton. A fák nem értékelhetők olyan helyen (pl. a körforgalom közepén), ahol nem adnak árnyékot a gyalogosoknak. A magánterületen lévő fák nem, csak a közterületen lévő fák számíthatók be. A budapesti adottságokat és fővárosi szabályozási követelményeket figyelembe véve a 14 m-nél keskenyebb (átlagos) utcaszakaszok esetében elégséges az egy oldali fasor, míg 14 m-nél szélesebb utcakeresztmetszet esetén két oldali fasor kialakítása szükséges. Tehát 14 méternél keskenyebb útszakasz esetében a fásított szakasz hosszát az útszakasz hosszához kell viszonyítani, míg 14 méternél szélesebb útszakasz esetében a fásított szakasz hosszát az útszakasz hosszának kétszereséhez kell viszonyítani. b) Adott esetben kézenfekvőbb a gyalogos felületek árnyékoltságát jobban kifejező, fásítottsági mértéket számon kérni – egyes utcák esetében a merev, lineáris fasor kialakítástól eltérő megoldások kedvezőbb hatást eredményeznek. A mérőszám értékeléséhez számolja meg a gyalogos-kerékpáros területeket árnyékoló, tehát azokon, vagy azok szélén telepített / tervezett lombos fákat, és arányosítsa a gyalogos-kerékpáros felületek nagyságához (db fa/m2). A mérőszám értékelésénél csak a legalább 3,375 m3 ültetőközeggel kialakított, közepes lombkoronaméretet eredményező lombos faegyedeket lehet figyelembe venni.
A21: 16 | B21: Zöldinfrastruktúra | C21: A növényzettel kialakított utcák általában pihentetőbbek, vonzóbbak és érdekesebbek az emberek számára. A növények segíthetnek csökkenteni a helyi csapadékelöntéseket és élőhelyet biztosítanak a városi élőlények számára. A jó tervezés kulcsfontosságú, annak érdekében hogy az egészséges utcák egyéb mérőszámai is érvényesüljenek, pl. a zöldfelületek nem csökkenthetik túlzott mértékben a gyalogláshoz szükséges helyet, és nem okozhatnak botlásveszélyt. | D21: A mérőszám értékelése eltérő módon történik a) főút/gyűjtőút és b) lakóút esetében. a) A fő- és gyűjtőút esetében a mérőszám értékeléséhez számolja meg a figyelembe vehető zöldinfrastruktúra elemek számát. Ne a teljes utcát, hanem annak legrosszabb helyzetű 100 m-es hosszát pontozza, ahol a legkevesebb a figyelembe vehető zöldinfrastruktúra elem. Ez azért fontos, mert a zöldinfrastruktúra elemek egyenletes eloszlása eredményez élhetőbb utcát, szemben az egy-két pontban koncentráltan elhelyezett zöldfelületekkel. A beszámítható zöldinfrastruktúra elemek: talajszintű zöldfelületek, vagy kiemelt ágyások (gyep, évelő és egynyári virágos felületek), esőkertek, valamint vertikális zöldfelületek (zöldfalak, amennyiben talajkapcsolatosan kerülnek kialakításra), de a planténerek nem beszámíthatóak. A beszámítható zöldfelületi egység legkisebb nagysága 2 m2. b) A lakóút esetében mérje fel az utca teljes hosszát, annak mindkét oldalán mérje fel a zöldfelületeket és azok összes területnagyságát arányosítsa az utcaszakasz (közterület) teljes területéhez. A talajkapcsolódó zöldfelületek 100%-ban beszámíthatók, míg a talajjal nem érintkező zöldfelületek (pl. mélygarázs miatt) a jogszabályok szerint, talajvastagság alapján méréssel vagy becsléssel (8-20 cm/egyszintes növényzet, extenzív zöldfelület: 15%; 21-40 cm/egyszintes növényzet, félintenzív zöldfelület: 25%, 41-80 cm/kétszintes növényzet, intenzív zöldfelület: 40%, 81 cm felett/háromszintes növényzet, intenzív zöldfelület: 75%). A gyeprácsfelületet nem lehet beszámítani. A beszámítható zöldfelületeknek minden esetben nyilvánosnak kell lenniük, nem pedig magántulajdonban, pl. nem számíthatók be a magán előkertek határoló sövényei.
A22: 17 | B22: Ivókutak | C22: A megfelelő sűrűségben kihelyezett ivóvízvételi lehetőség fontos a nyári hőségidőszakokban, különösen a gyermekek, idősek, betegek számára van jelentősége, komfortosabbá téve a gyaloglást. | D22: A mérőszám a közterületi ivóvízvételi helyszínek számán, gyalogos elérhetőségén alapul. A mérőszám megállapításához és pontozásához az utcán lévő ivókutak közötti leghosszabb távolságot kell figyelembe venni az értékelt útszakasz teljes hosszát figyelembe véve. A vizsgált útszakaszon kívül, de az adott távolságra lévő meglévő ivókutak is beszámíthatók az utca két végpontjánál. Az egyes ivókutak távolságának meghatározása során az útszakasz teljes hosszán teljesülnie kell a feltételeknek. Az eltérően értékelendő „belváros” a mellékelt térképen lehatárolt területeken belül értelmezendő.
A23: 18 | B23: Csapadékvíz visszatartása, hasznosítása | C23: Az utcák fenntarthatósága, valamint a klímahatások elleni védekezés szempontjából kiemelt fontosságú a csapadékvizek lehetőség szerinti helyben tartása és/vagy másodlagos hasznosítása. | D23: A mérőszám azt vizsgálja, hogy a csapadékvíz visszatartását, gyűjtését, helyben tartását és/vagy másodlagos hasznosítását milyen mértékben biztosítják. A számítás során (a számítási metodika alapján) meg kell határozni, hogy a különböző módszerek milyen mértékben és eszközökkel biztosítottak jelenleg, illetve milyen módszerek tervezettek. A számítást az útszakasz teljes felületére kell vonatkoztatni.
D24: Az értékeléshez mérje fel az utca teljes területén a háttértáblázatban megadott kategóriák szerinti felületek nagyságát m2-ben, illetve tervezett állapot értékelése esetén a rendelkezésre álló terv alapján számítsa ki / becsülje meg azok felületnagyságát m2-ben. A mellékelt táblázat a megadott felületnagyságok alapján kalkulálja, megadja a csapadékvíz-visszatartás mértékét %-ban a szabványok és a tervezési segédletek alapján.
D25: Az útszakaszt határoló épületek tetőfelületeiről származó csapadékokat nem kell beszámítani, így ezen tetőfelületek megadása nem szükséges. Csak azon tetőfelületeket figyelembe venni, amelyek közvetlenül a vizsgált útszakaszon találhatóak. Árok esetében, amennyiben abból a csapadékvíz továbbvezetésre kerül, úgy annak tározókapacitását nem kell megadni. Ebben az esetben az árok felületét a burkolatának megfelelően kell beszámítani. Amennyiben az árokból nem kerül továbbvezetésre a csapadékvíz, hanem szikkasztóárokként működik, akkor az árok tározókapacitása beszámítandó a csapadékvíz helyben tartásába (Qtár, jel, Qtár, terv). Azon módszerek tározókapacitása, amelyek során a csapadékvíz, ha késleltetve is, de továbbvezetésre kerül, nem számítandóak bele a csapadékvíz helyben tartásába. Szikkasztóblokkok, szikkasztóalagutak térfogata beleszámítandó a csapadékvíz helyben tartásába (Qtár, jel, Qtár, terv). "Kövezet"-nek minősül a kiskocka kő és a nagykocka kő burkolat. Amennyiben a felület fajtája eltér a megadott felsorolástól, abban az esetben ki kell egészíteni az „Egyéb, mégpedig" sort a felület fajtájának és annak lefolyási tényezőjének megadásával.
D26: Az eltérően értékelendő „belváros” a mellékelt térképen lehatárolt területeken belül értelmezendő.

Sheet Budapest belvárosi és központi
B2: Budapest belvárosi és központi területei

Sheet Csapadékvíz visszatartás
B1: Alapállapot (0. állapot) - a mértékadó csapadékmennyiség a területen
K2: Kitöltendő mezők
E3: Felület nagysága (m2) | F3: Felület lefolyási tényezője (yx)
D4: Vizsgált utcaszakasz | E4: 15378.57 | F4: 1
B5: Budapest esetén a 4 éves gyakoriságú 10 perces csapadékintenzitás értéke (Budapest Pestszentlőrinc-külterület mérőpont) | C5: qe | D5: 115.09 | E5: mm/h | F5: 319.69 | G5: l/(s*ha)
B6: Mértékadó csapadékterhelés | C6: qcs, alap | F6: =E4*F4*F5/10000 -> 491.6375043 | G6: l/s
B7: A területen keletkező csapadékmennyiség mértéke 10 perces csapadékeseményt figyelembe véve | C7: Q10, alap | F7: =F6*10*60/1000 -> 294.9825026 | G7: m3
D9: Meglévő állapot
D10: Felület fajtája | E10: Felület nagysága (m2) | F10: Felület lefolyási tényezője (yx)
D11: Aszfaltburkolat | E11: 5554.11 | F11: 0.9
D12: Tetőfelület | E12: 0 | F12: 0.9
D13: Kövezet | E13: 0 | F13: 0.7
D14: Zúzott kőburkolat | E14: 236.13 | F14: 0.45
D15: Burkolatlan földfelület | E15: 1161.74 | F15: 0.15
D16: Park, kert | E16: 6349.95 | F16: 0.1
D17: Térkő burkolat homokágyon | E17: 194.92 | F17: 0.7
D18: Térkő burkolat > 15% hézaggal | E18: 0 | F18: 0.6
D19: Vízáteresztő műfű és gumi burkolat | E19: 0 | F19: 0.6
D20: Szórt burkolatú sportpálya | E20: 0 | F20: 0.4
D21: Stabilizált szórt burkolat | E21: 0 | F21: 0.3
D22: Gyeprács | E22: 74.77 | F22: 0.1
D23: Zöldfelület | E23: 1806.95 | F23: 0.1
D24: Egyéb, mégpedig:
D25: Egyéb, mégpedig:
D26: Egyéb, mégpedig:
D27: Felület nagysága összesen | E27: =SUM(E11:E24) -> 15378.57
D29: Ellenőrzés (felület) | E29: =E4-E27 -> 0 | G29: Amennyiben nem 0, akkor nem megfelelő
B31: Budapest esetén a 4 éves gyakoriságú 10 perces csapadékintenzitás értéke (Budapest Pestszentlőrinc-külterület mérőpont) | C31: qe | D31: 115.09 | E31: mm/h | F31: 319.69 | G31: l/(s*ha)
B32: Mértékadó csapadékterhelés | C32: qcs, jel | F32: =(E11*F11+E12*F12+E13*F13+E14*F14+E15*F15+E16*F16+E17*F17+E18*F18+E19*F19+E20*F20+E21*F21+E22*F22+E23*F23+E24*F24+E25*F25+E26*F26)*F31/10000 -> 199.4491403 | G32: l/s
B33: A területen keletkező csapadékmennyiség mértéke 10 perces csapadékeseményt figyelembe véve | C33: Q10, jel | F33: =F32*10*60/1000 -> 119.6694842 | G33: m3
B34: Jelenleg is működő csapadékvíz helyben tartás, visszatartás és másodlagos hasznosítás tározókapacitása | C34: Qtár, jel | F34: 0 | G34: m3
B35: Jelenleg elfolyó csapadékvíz mennyisége | C35: Qjel | F35: =F33-F34 -> 119.6694842 | G35: m3
B36: Jelenlegi visszatartás, helyben tartás és másodlagos hasznosítása százalékos mértéke az alapállapotra vonatkoztatva | C36: Δjel | F36: =(1-F35/F7)*100 -> 59.43166692 | G36: %
D38: Tervezett állapot
D39: Felület fajtája | E39: Felület nagysága (m2) | F39: Felület lefolyási tényezője (yx)
D40: Aszfaltburkolat | E40: 310.74 | F40: 0.9
D41: Tetőfelület | E41: 0 | F41: 0.9
D42: Kövezet | E42: 0 | F42: 0.7
D43: Zúzott kőburkolat | E43: 0 | F43: 0.45
D44: Burkolatlan földfelület | E44: 0 | F44: 0.15
D45: Park, kert | E45: 5049.6 | F45: 0.1
D46: Térkő burkolat homokágyon | E46: 3465.31 | F46: 0.7
D47: Térkő burkolat > 15% hézaggal | E47: 447.59 | F47: 0.6
D48: Vízáteresztő műfű és gumi burkolat | E48: 0 | F48: 0.6
D49: Szórt burkolatú sportpálya | E49: 0 | F49: 0.4
D50: Stabilizált szórt burkolat | E50: 1843.36 | F50: 0.3
D51: Gyeprács | E51: 0 | F51: 0.1
D52: Zöldfelület | E52: 4249.97 | F52: 0.1
D53: Egyéb, mégpedig: beépített terület | E53: 12
D54: Egyéb, mégpedig:
D55: Egyéb, mégpedig:
D56: Felület nagysága összesen | E56: =SUM(E40:E53) -> 15378.57
D58: Ellenőrzés (felület) | E58: =E56-E27 -> 0 | G58: Amennyiben nem 0, akkor nem megfelelő
B60: Budapest esetén a 4 éves gyakoriságú 10 perces csapadékintenzitás értéke (Budapest Pestszentlőrinc-külterület mérőpont) | C60: qe | D60: 115.09 | E60: mm/h | F60: 319.69 | G60: l/(s*ha)
B61: Mértékadó csapadékterhelés | C61: qcs, terv | F61: =(E40*F40+E41*F41+E42*F42+E43*F43+E44*F44+E45*F45+E46*F46+E47*F47+E48*F48+E49*F49+E50*F50+E51*F51+E52*F52+E53*F53+E54*F54+E55*F55)*F60/10000 -> 142.4827 | G61: l/s
B62: A területen keletkező csapadékmennyiség mértéke 10 perces csapadékeseményt figyelembe véve | C62: Q10, terv | F62: =F61*10*60/1000 -> 85.48962002 | G62: m3
B63: Tervezett csapadékvíz helyben tartás, visszatartás és másodlagos hasznosítás tározókapacitása | C63: Qtár, terv | F63: 85 | G63: m3
B64: Tervezetten elfolyó csapadékvíz mennyisége | C64: Qtervezett | F64: =F62-F63 -> 0.4896200228 | G64: m3
B65: Tervezett visszatartás, helyben tartás és másodlagos hasznosítása százalékos mértéke az alapállapotra vonatkoztatva | C65: Δtervezett | F65: =(1-F64/F7)*100 -> 99.83401727 | G65: %

Sheet Súgó
B2: Súgó
B5: Mennyi ideig tart kitölteni az Értékelő eszközt?
B6: Első alkalommal körülbelül egy óráig tart, mivel a kitöltéshez el kell olvasni a Bevezetőt, a Hogyan értékeljünk és a Súgó című útmutatókat. Ha már megismerte az Értékelő eszközt, a kitöltése körülbelül 30 percet vehet igénybe, ha pedig nagyon jól ismeri az értékelendő utcát vagy tervet, akkor akár 15 perc alatt is végezhet vele.
B7: Milyen hosszú legyen egy utcaszakasz?
B8: Ha az értékelni kívánt utca hosszú, akkor dönthet úgy, hogy szakaszokra bontja. Ügyeljen arra, hogy az utca minden szakaszán legyen legalább egy csomópont. A csomópontok pontozására 5 mérőszám áll rendelkezésre, és ezeket ki kell tölteni az Egészséges utcák pontszámának kiszámításához. A pontozás módja ebben az értékelő táblázatban azt jelenti, hogy nem lehet elrejteni a gyengeségeket azáltal, hogy az utca szakaszokra van osztva. A gyengeségek vagy az egyik, vagy a másik szakaszon meg fognak jelenni. Ez az értékelő táblázat nem alkalmas olyan kérdések értékelésére, amelyek túlmutatnak egy-egy utca földrajzi helyzetén, pl. a hálózat összekapcsolhatósága vagy a nagy területeket érintő területhasználattal, közterülethasználattal kapcsolatos szabályozásokat, gyakorlatok. Ha az összekapcsolhatóságra vagy a területhasználatra koncentrál, akkor ne használja ezt az értékelő eszközt, hanem látogasson el a healthystreets.com/resources weboldalra.
B9: Hogyan értékeljük az elektromos rollereket?
B10: Hasonló haladási sebességük és sérülékenységük miatt az elektromos rollereket használókat ugyanúgy kell tekinteni, mint a kerékpárral közlekedőket.
B11: Honnan származnak a mérőszámok?
B12: A mérőszámok többsége az angliai és ausztrál Egészséges Utcák Értékelési Eszközökből került átvételre, melyeket magyarországi szakemberek a magyar viszonyokhoz igazítottak. Ők dolgozták ki a csapadékvíz másodlagos hasznosítására vonatkozó mérőszámot is. A mérőszámok meghatározása során alapkritériumként került meghatározásra, hogy azok jelentős hatással legyenek a gyalogosok, kerékpárosok és az utcán tartózkodók egészségére és biztonságára, hogy egyszerűen mérhetőek legyenek, valamint hogy azokat a tervezési folyamat során befolyásolni lehessen.
B13: Ez a pontozás nagyon szigorúnak tűnik, min alapul?
B14: Ez a pontozás nem azt vizsgálja, hogy az utca megfelel-e a meglévő tervezési szabványoknak. Azt értékeli, hogy az utca milyen mértékben támogatja az emberek gyaloglását, kerékpározását, a tömegközlekedés igénybevételét és az utcában töltött időt. Gyakori, hogy a meglévő utcák alacsony pontszámot kapnak ebben az értékelésben, mivel úgy tervezték őket, hogy a járművek átmenő forgalmát helyezzék előtérbe, ami gyakran hátrányos a gyalogosok, kerékpárosok és az utcán tartózkodók számára. Ez egy konzervatív értékelés, amely a leggyengébb pontot használja számos mérőszám értékeléséhez. Célja, hogy a legproblémásabb részek érdekében emelje az utak tervezésének színvonalát. A 3,2,1 és 0 pontszámok az egyes mérőszámok esetében a gyakorlatban bevált legjobb nemzetközi tervezési útmutatásokon és a közegészségügyre gyakorolt hatáson alapulnak.
B15: Hogyan kell értékelni egy olyan utcát, amely nem teszi lehetővé a gépjárművek számára a behajtást?
B16: Egy olyan utca, amely nem teszi lehetővé a gépjárművek közlekedését, az 1., 2., 3., 4., 5., 6., 7. mérőszámra vonatkozó mérőszámok esetében 3 pontot kap.
B17: Hogyan működik a pontozás?
B18: Az értékelő eszközben elérhető összpontszám 100 pont. Minden egyes mérőszámot az Egészséges Utca 10 Indikátorában betöltött szerepe alapján súlyozunk.
B19: Ez az értékelő táblázat mutatja, hogy az egyes mérőszámokhoz tartozó pontszámok milyen mértékben járulnak hozzá az összpontszámhoz.
B20: Nagyobb súlyt kapnak azok a mérőszámok, amelyek nagyobb hatással vannak az emberi egészségre és az emberek gyaloglási, kerékpározási és utcán való időtöltési hajlandóságára. Az Egészséges Utcák 10 Indikátora egyenlő mértékben járul hozzá az általános pontszámhoz.
B21: Hogyan válasszam ki, hogy az utca melyik pontját értékeljem?
B22: Az 1. mérőszám esetében az utcára vonatkozó sebességhatárt kell alkalmazni, amennyiben az utca egyes szakaszain eltérő a sebességhatár, akkor ezek közül a legmagasabb sebességhatárral rendelkező szakasz szerint kell értékelni. A 2. mérőszám esetében a reggeli csúcsidőszak forgalmi adatait kell használni. A 3-11. mérőszám esetében meg kell határozni az utca leggyengébb pontját az adott mérőszám tekintetében és a megjegyzés rovatban meg kell adni a leggyengébbnek ítélt helyet. A 12-18. mérőszám esetében az utca egészét kell értékelni, nem pedig az utca leggyengébb pontját.
B23: Hogyan pontozhatok olyan mérőszámokat, amelyek nem vonatkoznak az utcámra?
B24: Az összes mérőszámot minden utca esetében pontozni kell. Az Ön Egészséges Utcák pontszáma nem állítható elő, ha egy vagy több mérőszámra nem ad pontszámot. Ha úgy gondolja, hogy egy mérőszám nem alkalmazható az Ön utcájára, akkor olvassa el a Hogyan értékeljünk című útmutatót, ez tanácsot ad arra vonatkozóan, hogy a szokásostól eltérő körülmények között hogyan kell pontozni, és hogy mi az a probléma, amelyet a mérőszám értékelni próbál. Ha még mindig nem biztos abban, hogy milyen pontszámot adjon, akkor küldje el megkeresését a contact@healthystreets.com e-mail címre.
B25: Hogyan pontozhatok egy mérőszámot, ha nem rendelkezem a szükséges adatokkal?
B26: Olvassa el a Hogyan értékeljünk című útmutatót a mérőszámokhoz. A "Miért fontos" segíthet a pontszám becslésében, ha nem rendelkezik adatokkal. A Megjegyzés rovatban világosan meg kell jelölni, hogy mi alapján adott a mérőszámhoz pontszámot.
B27: Honnan tudom, hogy a pontszámom megfelelő?
B28: Ezzel az értékelő eszközzel könnyű hibázni. A kockázatot csökkentheti, ha az egyes mérőszámok pontozása előtt figyelmesen elolvassa a Hogyan értékeljünk című útmutatót. Nagyon fontos, hogy ezután kérjen meg egy másik tervezőt vagy mérnököt, aki már használta ezt az értékelő eszközt, hogy nézze meg az Ön által adott pontszámokat és készített jegyzeteket, és nézze át az értékelt utcát vagy tervet, hogy ellenőrizze, nem követett-e el hibát.
B29: Összevonhatóak a pontszámok?
B30: Ne vonja össze a pontszámokat, hogy egy környék, egy hosszabb utcaszakasz vagy egy projektportfólió átlagát kapja. Minden egyes ellenőrzési eredményt külön-külön kell bemutatni, hogy az egyes utcaszakaszok erősségei és gyengeségei egyértelműek legyenek. A pontszámok összevonása egy átlagos érték létrejöttéhez vezet, amely elrejti az egyes ellenőrzések során azonosított gyengeségeket és erősségeket.
B31: Honnan kaphatok segítséget az Értékelő eszköz használatához?
B32: Írjon a training@healthystreets.com e-mail címre és érdeklődjön a képzési lehetőségekről.
B33: Hogyan tudhatok meg többet az Egészséges utcák módszertanról?
B34: Látogasson el a healthystreets.com weboldalra, ahol további információkat talál az Egészséges Utcák módszertanról, egyéb értékelő eszközökről és rendelkezésre álló forrásokról angol nyelven. Ha nem találja, amire szüksége van, írjon a contact@healthystreets.com e mail címre.
B35: Hogyan tudhatok meg többet az Egészséges utcák indikátorairól?
B36: Látogasson el a healthystreets.com weboldalra, ahol elérhetőek az egyes indikátorok összefoglalói angolul, és ahonnan letölthető a Qualitative Streets Assessment című dokumentum.

Sheet Hogyan jön létre a pontszám
A2: Hogyan jön létre a pontszám
A5: Mérőszám | C5: Mindenki otthon érzi magát | D5: Könnyű átkelni az úttesten | E5: Vannak árnyékos és védett helyek | F5: Van hol megállni és megpihenni | G5: Nincs túl nagy zaj | H5: Az emberek szívesen sétálnak és kerékpároznak | I5: Az emberek biztonságban érzik magukat | J5: Van mit látni és csinálni | K5: Az emberek jól érzik magukat | L5: Tiszta a levegő
A6: 1 | B6: Gépjárművek megengedett sebessége | C6: • | D6: • | G6: • | H6: • | I6: • | K6: • | L6: •
A7: 2 | B7: Gépjárműforgalom nagysága | C7: • | D7: • | G7: • | H7: • | I7: • | K7: • | L7: •
A8: 3 | B8: Kerékpáros közlekedés biztosítása a kereszteződésekben | C8: • | H8: • | I8: • | K8: •
A9: 4 | B9: Gyalogos keresztezés az útvonalhoz csatlakozó parkolók bejáratában és kis forgalmú mellékutcák torkolatában | C9: • | D9: • | H9: • | I9: • | K9: •
A10: 5 | B10: Gyalogos keresztezés biztosítása csomópontok közötti szakaszon (folyópálya szakasz) | C10: • | D10: • | H10: • | I10: • | K10: •
A11: 6 | B11: Gyalogos keresztezés biztosítása csomópontokban | C11: • | D11: • | H11: • | I11: • | K11: •
A12: 7 | B12: Akadálymentesség, esélyegyenlőség biztosítása | C12: • | D12: • | H12: • | I12: • | K12: •
A13: 8 | B13: A járda felületének minősége | C13: • | H13: • | K13: •
A14: 9 | B14: Gyalogos közlekedés helyigénye | C14: • | F14: • | H14: • | I14: • | K14: •
A15: 10 | B15: Útburkolat minősége | C15: • | G15: • | H15: • | I15: • | K15: •
A16: 11 | B16: Kerékpározás helyigénye | C16: • | F16: • | H16: • | I16: • | K16: •
A17: 12 | B17: Közterületi kerékpártárolók | C17: • | F17: • | H17: • | K17: •
A18: 13 | B18: Ülőhelyek | C18: • | F18: • | H18: • | J18: • | K18: •
A19: 14 | B19: Közvilágítás | C19: • | H19: • | I19: • | K19: •
A20: 15 | B20: Fák | C20: • | E20: • | H20: • | J20: • | K20: •
A21: 16 | B21: Zöldinfrastruktúra | C21: • | H21: • | J21: • | K21: •
A22: 17 | B22: Ivókutak | C22: • | F22: • | H22: • | I22: • | J22: • | K22: •
A23: 18 | B23: Csapadékvíz elvezetése, hasznosítása | C23: • | H23: • | K23: •
